Workbook

Sheet Net12 (2)
B1: =SUM(F22:O22) -> 0 | D1: =IF(O21<'AUX2'!B6,1,0) -> 0 | E1: =+'AUX2'!J5 -> m
B2: =+'AUX2'!M8 -> 62.07209069 | C2: U start, V | D2: =+O5*1 -> 0.4668648648 | F2: 1 | G2: 2 | H2: 3 | I2: 4 | J2: 5 | K2: 6 | L2: 7 | M2: 8 | N2: 9 | O2: iteration10
E3: mult. | F3: =F6+F5*F4 -> 62.36898354 | G3: =G6+G5*G4 -> 62.07351756 | H3: 62.07209758 | I3: 62.07209072 | J3: 62.07209069 | K3: 62.07209069 | L3: 62.07209069 | M3: 62.07209069 | N3: 62.07209069 | O3: 62.07209069
C4: cable type | D4: C565 | E4: 0 | F4: =VLOOKUP($D4,specs!$K$5:$L$19,2)*IF($E$1="m",$D5,($D5*0.3048))/1000 -> 0.639 | G4: =VLOOKUP($D4,specs!$K$5:$L$19,2)*IF($E$1="m",$D5,($D5*0.3048))/1000 -> 0.639 | H4: =VLOOKUP($D4,specs!$K$5:$L$19,2)*IF($E$1="m",$D5,($D5*0.3048))/1000 -> 0.639 | I4: =VLOOKUP($D4,specs!$K$5:$L$19,2)*IF($E$1="m",$D5,($D5*0.3048))/1000 -> 0.639 | J4: =VLOOKUP($D4,specs!$K$5:$L$19,2)*IF($E$1="m",$D5,($D5*0.3048))/1000 -> 0.639 | K4: =VLOOKUP($D4,specs!$K$5:$L$19,2)*IF($E$1="m",$D5,($D5*0.3048))/1000 -> 0.639 | L4: =VLOOKUP($D4,specs!$K$5:$L$19,2)*IF($E$1="m",$D5,($D5*0.3048))/1000 -> 0.639 | M4: =VLOOKUP($D4,specs!$K$5:$L$19,2)*IF($E$1="m",$D5,($D5*0.3048))/1000 -> 0.639 | N4: =VLOOKUP($D4,specs!$K$5:$L$19,2)*IF($E$1="m",$D5,($D5*0.3048))/1000 -> 0.639 | O4: =VLOOKUP($D4,specs!$K$5:$L$19,2)*IF($E$1="m",$D5,($D5*0.3048))/1000 -> 0.639
C5: span length,m | D5: 150 | E5: 0 | F5: =VLOOKUP($D6,specs!$D$5:$H$17,4)/F6*1.03*$E6+F8 -> 0.4646210508 | G5: =VLOOKUP($D6,specs!$D$5:$H$17,4)/G6*1.03*$E6+G8 -> 0.4668540289 | H5: =VLOOKUP($D6,specs!$D$5:$H$17,4)/H6*1.03*$E6+H8 -> 0.4668648125 | I5: =VLOOKUP($D6,specs!$D$5:$H$17,4)/I6*1.03*$E6+I8 -> 0.4668648646 | J5: =VLOOKUP($D6,specs!$D$5:$H$17,4)/J6*1.03*$E6+J8 -> 0.4668648648 | K5: =VLOOKUP($D6,specs!$D$5:$H$17,4)/K6*1.03*$E6+K8 -> 0.4668648648 | L5: =VLOOKUP($D6,specs!$D$5:$H$17,4)/L6*1.03*$E6+L8 -> 0.4668648648 | M5: =VLOOKUP($D6,specs!$D$5:$H$17,4)/M6*1.03*$E6+M8 -> 0.4668648648 | N5: =VLOOKUP($D6,specs!$D$5:$H$17,4)/N6*1.03*$E6+N8 -> 0.4668648648 | O5: =VLOOKUP($D6,specs!$D$5:$H$17,4)/O6*1.03*$E6+O8 -> 0.4668648648
C6: amplifier | D6: DBLE | E6: 1 | F6: =F9+F8*F7 -> 62.07209069 | G6: =G9+G8*G7 -> 61.77519784 | H6: 61.77377097 | I6: 61.77376408 | J6: 61.77376404 | K6: 61.77376404 | L6: 61.77376404 | M6: 61.77376404 | N6: 61.77376404 | O6: 61.77376404
C7: cable type | D7: cable | E7: 0 | F7: =VLOOKUP($D7,specs!$K$5:$L$19,2)*IF($E$1="m",$D8,($D8*0.3048))/1000 -> 0 | G7: =VLOOKUP($D7,specs!$K$5:$L$19,2)*IF($E$1="m",$D8,($D8*0.3048))/1000 -> 0 | H7: =VLOOKUP($D7,specs!$K$5:$L$19,2)*IF($E$1="m",$D8,($D8*0.3048))/1000 -> 0 | I7: =VLOOKUP($D7,specs!$K$5:$L$19,2)*IF($E$1="m",$D8,($D8*0.3048))/1000 -> 0 | J7: =VLOOKUP($D7,specs!$K$5:$L$19,2)*IF($E$1="m",$D8,($D8*0.3048))/1000 -> 0 | K7: =VLOOKUP($D7,specs!$K$5:$L$19,2)*IF($E$1="m",$D8,($D8*0.3048))/1000 -> 0 | L7: =VLOOKUP($D7,specs!$K$5:$L$19,2)*IF($E$1="m",$D8,($D8*0.3048))/1000 -> 0 | M7: =VLOOKUP($D7,specs!$K$5:$L$19,2)*IF($E$1="m",$D8,($D8*0.3048))/1000 -> 0 | N7: =VLOOKUP($D7,specs!$K$5:$L$19,2)*IF($E$1="m",$D8,($D8*0.3048))/1000 -> 0 | O7: =VLOOKUP($D7,specs!$K$5:$L$19,2)*IF($E$1="m",$D8,($D8*0.3048))/1000 -> 0
C8: span length,m | D8: 0 | E8: 0 | F8: =VLOOKUP($D9,specs!$D$5:$H$17,4)/F9*1.03*$E9+F11 -> 0 | G8: =VLOOKUP($D9,specs!$D$5:$H$17,4)/G9*1.03*$E9+G11 -> 0 | H8: =VLOOKUP($D9,specs!$D$5:$H$17,4)/H9*1.03*$E9+H11 -> 0 | I8: =VLOOKUP($D9,specs!$D$5:$H$17,4)/I9*1.03*$E9+I11 -> 0 | J8: =VLOOKUP($D9,specs!$D$5:$H$17,4)/J9*1.03*$E9+J11 -> 0 | K8: =VLOOKUP($D9,specs!$D$5:$H$17,4)/K9*1.03*$E9+K11 -> 0 | L8: =VLOOKUP($D9,specs!$D$5:$H$17,4)/L9*1.03*$E9+L11 -> 0 | M8: =VLOOKUP($D9,specs!$D$5:$H$17,4)/M9*1.03*$E9+M11 -> 0 | N8: =VLOOKUP($D9,specs!$D$5:$H$17,4)/N9*1.03*$E9+N11 -> 0 | O8: =VLOOKUP($D9,specs!$D$5:$H$17,4)/O9*1.03*$E9+O11 -> 0
C9: amplifier | D9: load | E9: 0 | F9: =F12+F11*F10 -> 62.07209069 | G9: =G12+G11*G10 -> 61.77519784 | H9: 61.77377097 | I9: 61.77376408 | J9: 61.77376404 | K9: 61.77376404 | L9: 61.77376404 | M9: 61.77376404 | N9: 61.77376404 | O9: 61.77376404
C10: cable type | D10: cable | E10: 0 | F10: =VLOOKUP($D10,specs!$K$5:$L$19,2)*IF($E$1="m",$D11,($D11*0.3048))/1000 -> 0 | G10: =VLOOKUP($D10,specs!$K$5:$L$19,2)*IF($E$1="m",$D11,($D11*0.3048))/1000 -> 0 | H10: =VLOOKUP($D10,specs!$K$5:$L$19,2)*IF($E$1="m",$D11,($D11*0.3048))/1000 -> 0 | I10: =VLOOKUP($D10,specs!$K$5:$L$19,2)*IF($E$1="m",$D11,($D11*0.3048))/1000 -> 0 | J10: =VLOOKUP($D10,specs!$K$5:$L$19,2)*IF($E$1="m",$D11,($D11*0.3048))/1000 -> 0 | K10: =VLOOKUP($D10,specs!$K$5:$L$19,2)*IF($E$1="m",$D11,($D11*0.3048))/1000 -> 0 | L10: =VLOOKUP($D10,specs!$K$5:$L$19,2)*IF($E$1="m",$D11,($D11*0.3048))/1000 -> 0 | M10: =VLOOKUP($D10,specs!$K$5:$L$19,2)*IF($E$1="m",$D11,($D11*0.3048))/1000 -> 0 | N10: =VLOOKUP($D10,specs!$K$5:$L$19,2)*IF($E$1="m",$D11,($D11*0.3048))/1000 -> 0 | O10: =VLOOKUP($D10,specs!$K$5:$L$19,2)*IF($E$1="m",$D11,($D11*0.3048))/1000 -> 0
C11: span length,m | D11: 0 | E11: 0 | F11: =VLOOKUP($D12,specs!$D$5:$H$17,4)/F12*1.03*$E12+F14 -> 0 | G11: =VLOOKUP($D12,specs!$D$5:$H$17,4)/G12*1.03*$E12+G14 -> 0 | H11: =VLOOKUP($D12,specs!$D$5:$H$17,4)/H12*1.03*$E12+H14 -> 0 | I11: =VLOOKUP($D12,specs!$D$5:$H$17,4)/I12*1.03*$E12+I14 -> 0 | J11: =VLOOKUP($D12,specs!$D$5:$H$17,4)/J12*1.03*$E12+J14 -> 0 | K11: =VLOOKUP($D12,specs!$D$5:$H$17,4)/K12*1.03*$E12+K14 -> 0 | L11: =VLOOKUP($D12,specs!$D$5:$H$17,4)/L12*1.03*$E12+L14 -> 0 | M11: =VLOOKUP($D12,specs!$D$5:$H$17,4)/M12*1.03*$E12+M14 -> 0 | N11: =VLOOKUP($D12,specs!$D$5:$H$17,4)/N12*1.03*$E12+N14 -> 0 | O11: =VLOOKUP($D12,specs!$D$5:$H$17,4)/O12*1.03*$E12+O14 -> 0
C12: amplifier | D12: load | E12: 0 | F12: =F15+F14*F13 -> 62.07209069 | G12: =G15+G14*G13 -> 61.77519784 | H12: 61.77377097 | I12: 61.77376408 | J12: 61.77376404 | K12: 61.77376404 | L12: 61.77376404 | M12: 61.77376404 | N12: 61.77376404 | O12: 61.77376404
C13: cable type | D13: cable | E13: 0 | F13: =VLOOKUP($D13,specs!$K$5:$L$19,2)*IF($E$1="m",$D14,($D14*0.3048))/1000 -> 0 | G13: =VLOOKUP($D13,specs!$K$5:$L$19,2)*IF($E$1="m",$D14,($D14*0.3048))/1000 -> 0 | H13: =VLOOKUP($D13,specs!$K$5:$L$19,2)*IF($E$1="m",$D14,($D14*0.3048))/1000 -> 0 | I13: =VLOOKUP($D13,specs!$K$5:$L$19,2)*IF($E$1="m",$D14,($D14*0.3048))/1000 -> 0 | J13: =VLOOKUP($D13,specs!$K$5:$L$19,2)*IF($E$1="m",$D14,($D14*0.3048))/1000 -> 0 | K13: =VLOOKUP($D13,specs!$K$5:$L$19,2)*IF($E$1="m",$D14,($D14*0.3048))/1000 -> 0 | L13: =VLOOKUP($D13,specs!$K$5:$L$19,2)*IF($E$1="m",$D14,($D14*0.3048))/1000 -> 0 | M13: =VLOOKUP($D13,specs!$K$5:$L$19,2)*IF($E$1="m",$D14,($D14*0.3048))/1000 -> 0 | N13: =VLOOKUP($D13,specs!$K$5:$L$19,2)*IF($E$1="m",$D14,($D14*0.3048))/1000 -> 0 | O13: =VLOOKUP($D13,specs!$K$5:$L$19,2)*IF($E$1="m",$D14,($D14*0.3048))/1000 -> 0
C14: span length,m | D14: 0 | E14: 0 | F14: =VLOOKUP($D15,specs!$D$5:$H$17,4)/F15*1.03*$E15+F17 -> 0 | G14: =VLOOKUP($D15,specs!$D$5:$H$17,4)/G15*1.03*$E15+G17 -> 0 | H14: =VLOOKUP($D15,specs!$D$5:$H$17,4)/H15*1.03*$E15+H17 -> 0 | I14: =VLOOKUP($D15,specs!$D$5:$H$17,4)/I15*1.03*$E15+I17 -> 0 | J14: =VLOOKUP($D15,specs!$D$5:$H$17,4)/J15*1.03*$E15+J17 -> 0 | K14: =VLOOKUP($D15,specs!$D$5:$H$17,4)/K15*1.03*$E15+K17 -> 0 | L14: =VLOOKUP($D15,specs!$D$5:$H$17,4)/L15*1.03*$E15+L17 -> 0 | M14: =VLOOKUP($D15,specs!$D$5:$H$17,4)/M15*1.03*$E15+M17 -> 0 | N14: =VLOOKUP($D15,specs!$D$5:$H$17,4)/N15*1.03*$E15+N17 -> 0 | O14: =VLOOKUP($D15,specs!$D$5:$H$17,4)/O15*1.03*$E15+O17 -> 0
C15: amplifier | D15: load | E15: 0 | F15: =F18+F17*F16 -> 62.07209069 | G15: =G18+G17*G16 -> 61.77519784 | H15: 61.77377097 | I15: 61.77376408 | J15: 61.77376404 | K15: 61.77376404 | L15: 61.77376404 | M15: 61.77376404 | N15: 61.77376404 | O15: 61.77376404
C16: cable type | D16: cable | E16: 0 | F16: =VLOOKUP($D16,specs!$K$5:$L$19,2)*IF($E$1="m",$D17,($D17*0.3048))/1000 -> 0 | G16: =VLOOKUP($D16,specs!$K$5:$L$19,2)*IF($E$1="m",$D17,($D17*0.3048))/1000 -> 0 | H16: =VLOOKUP($D16,specs!$K$5:$L$19,2)*IF($E$1="m",$D17,($D17*0.3048))/1000 -> 0 | I16: =VLOOKUP($D16,specs!$K$5:$L$19,2)*IF($E$1="m",$D17,($D17*0.3048))/1000 -> 0 | J16: =VLOOKUP($D16,specs!$K$5:$L$19,2)*IF($E$1="m",$D17,($D17*0.3048))/1000 -> 0 | K16: =VLOOKUP($D16,specs!$K$5:$L$19,2)*IF($E$1="m",$D17,($D17*0.3048))/1000 -> 0 | L16: =VLOOKUP($D16,specs!$K$5:$L$19,2)*IF($E$1="m",$D17,($D17*0.3048))/1000 -> 0 | M16: =VLOOKUP($D16,specs!$K$5:$L$19,2)*IF($E$1="m",$D17,($D17*0.3048))/1000 -> 0 | N16: =VLOOKUP($D16,specs!$K$5:$L$19,2)*IF($E$1="m",$D17,($D17*0.3048))/1000 -> 0 | O16: =VLOOKUP($D16,specs!$K$5:$L$19,2)*IF($E$1="m",$D17,($D17*0.3048))/1000 -> 0
C17: span length,m | D17: 0 | E17: 0 | F17: =VLOOKUP($D18,specs!$D$5:$H$17,4)/F18*1.03*$E18+F20 -> 0 | G17: =VLOOKUP($D18,specs!$D$5:$H$17,4)/G18*1.03*$E18+G20 -> 0 | H17: =VLOOKUP($D18,specs!$D$5:$H$17,4)/H18*1.03*$E18+H20 -> 0 | I17: =VLOOKUP($D18,specs!$D$5:$H$17,4)/I18*1.03*$E18+I20 -> 0 | J17: =VLOOKUP($D18,specs!$D$5:$H$17,4)/J18*1.03*$E18+J20 -> 0 | K17: =VLOOKUP($D18,specs!$D$5:$H$17,4)/K18*1.03*$E18+K20 -> 0 | L17: =VLOOKUP($D18,specs!$D$5:$H$17,4)/L18*1.03*$E18+L20 -> 0 | M17: =VLOOKUP($D18,specs!$D$5:$H$17,4)/M18*1.03*$E18+M20 -> 0 | N17: =VLOOKUP($D18,specs!$D$5:$H$17,4)/N18*1.03*$E18+N20 -> 0 | O17: =VLOOKUP($D18,specs!$D$5:$H$17,4)/O18*1.03*$E18+O20 -> 0
C18: amplifier | D18: load | E18: 0 | F18: =F21+F20*F19 -> 62.07209069 | G18: =G21+G20*G19 -> 61.77519784 | H18: 61.77377097 | I18: 61.77376408 | J18: 61.77376404 | K18: 61.77376404 | L18: 61.77376404 | M18: 61.77376404 | N18: 61.77376404 | O18: 61.77376404
C19: cable type | D19: cable | E19: 0 | F19: =VLOOKUP($D19,specs!$K$5:$L$19,2)*IF($E$1="m",$D20,($D20*0.3048))/1000 -> 0 | G19: =VLOOKUP($D19,specs!$K$5:$L$19,2)*IF($E$1="m",$D20,($D20*0.3048))/1000 -> 0 | H19: =VLOOKUP($D19,specs!$K$5:$L$19,2)*IF($E$1="m",$D20,($D20*0.3048))/1000 -> 0 | I19: =VLOOKUP($D19,specs!$K$5:$L$19,2)*IF($E$1="m",$D20,($D20*0.3048))/1000 -> 0 | J19: =VLOOKUP($D19,specs!$K$5:$L$19,2)*IF($E$1="m",$D20,($D20*0.3048))/1000 -> 0 | K19: =VLOOKUP($D19,specs!$K$5:$L$19,2)*IF($E$1="m",$D20,($D20*0.3048))/1000 -> 0 | L19: =VLOOKUP($D19,specs!$K$5:$L$19,2)*IF($E$1="m",$D20,($D20*0.3048))/1000 -> 0 | M19: =VLOOKUP($D19,specs!$K$5:$L$19,2)*IF($E$1="m",$D20,($D20*0.3048))/1000 -> 0 | N19: =VLOOKUP($D19,specs!$K$5:$L$19,2)*IF($E$1="m",$D20,($D20*0.3048))/1000 -> 0 | O19: =VLOOKUP($D19,specs!$K$5:$L$19,2)*IF($E$1="m",$D20,($D20*0.3048))/1000 -> 0
C20: span length,m | D20: 0 | E20: 0 | F20: =VLOOKUP($D21,specs!$D$5:$H$17,4)/F21*1.03*$E21+F23 -> 0 | G20: =VLOOKUP($D21,specs!$D$5:$H$17,4)/G21*1.03*$E21+G23 -> 0 | H20: =VLOOKUP($D21,specs!$D$5:$H$17,4)/H21*1.03*$E21+H23 -> 0 | I20: =VLOOKUP($D21,specs!$D$5:$H$17,4)/I21*1.03*$E21+I23 -> 0 | J20: =VLOOKUP($D21,specs!$D$5:$H$17,4)/J21*1.03*$E21+J23 -> 0 | K20: =VLOOKUP($D21,specs!$D$5:$H$17,4)/K21*1.03*$E21+K23 -> 0 | L20: =VLOOKUP($D21,specs!$D$5:$H$17,4)/L21*1.03*$E21+L23 -> 0 | M20: =VLOOKUP($D21,specs!$D$5:$H$17,4)/M21*1.03*$E21+M23 -> 0 | N20: =VLOOKUP($D21,specs!$D$5:$H$17,4)/N21*1.03*$E21+N23 -> 0 | O20: =VLOOKUP($D21,specs!$D$5:$H$17,4)/O21*1.03*$E21+O23 -> 0
C21: amplifier | D21: load | E21: 0 | F21: =B2 -> 62.07209069 | G21: =F21-(F3-$B$2) -> 61.77519784 | H21: 61.77377097 | I21: 61.77376408 | J21: 61.77376404 | K21: 61.77376404 | L21: 61.77376404 | M21: 61.77376404 | N21: 61.77376404 | O21: 61.77376404
F22: =IF(F21<0,1,0) -> 0 | G22: =IF(G21<0,1,0) -> 0 | H22: 0 | I22: 0 | J22: 0 | K22: 0 | L22: 0 | M22: 0 | N22: 0 | O22: 0
C24: User added Branch Net12 (2)
M27: =O21 -> 61.77376404
F34: Main Branch Net12

Sheet Net11 (2)
B1: =SUM(F22:O22) -> 0 | D1: =IF(O21<'AUX2'!B6,1,0) -> 0 | E1: =+'AUX2'!J5 -> m
B2: =+'AUX2'!M7 -> 61.91231613 | C2: U start, V | D2: =+O5*1 -> 0.4664638584 | F2: 1 | G2: 2 | H2: 3 | I2: 4 | J2: 5 | K2: 6 | L2: 7 | M2: 8 | N2: 9 | O2: iteration10
E3: mult. | F3: =F6+F5*F4 -> 61.99764505 | G3: =G6+G5*G4 -> 61.9124339 | H3: 61.91231629 | I3: 61.91231613 | J3: 61.91231613 | K3: 61.91231613 | L3: 61.91231613 | M3: 61.91231613 | N3: 61.91231613 | O3: =O6+O5*O4 -> 61.91231613
C4: cable type | D4: C565 | E4: 0 | F4: =VLOOKUP($D4,specs!$K$5:$L$19,2)*IF($E$1="m",$D5,($D5*0.3048))/1000 -> 0.18318 | G4: =VLOOKUP($D4,specs!$K$5:$L$19,2)*IF($E$1="m",$D5,($D5*0.3048))/1000 -> 0.18318 | H4: =VLOOKUP($D4,specs!$K$5:$L$19,2)*IF($E$1="m",$D5,($D5*0.3048))/1000 -> 0.18318 | I4: =VLOOKUP($D4,specs!$K$5:$L$19,2)*IF($E$1="m",$D5,($D5*0.3048))/1000 -> 0.18318 | J4: =VLOOKUP($D4,specs!$K$5:$L$19,2)*IF($E$1="m",$D5,($D5*0.3048))/1000 -> 0.18318 | K4: =VLOOKUP($D4,specs!$K$5:$L$19,2)*IF($E$1="m",$D5,($D5*0.3048))/1000 -> 0.18318 | L4: =VLOOKUP($D4,specs!$K$5:$L$19,2)*IF($E$1="m",$D5,($D5*0.3048))/1000 -> 0.18318 | M4: =VLOOKUP($D4,specs!$K$5:$L$19,2)*IF($E$1="m",$D5,($D5*0.3048))/1000 -> 0.18318 | N4: =VLOOKUP($D4,specs!$K$5:$L$19,2)*IF($E$1="m",$D5,($D5*0.3048))/1000 -> 0.18318 | O4: =VLOOKUP($D4,specs!$K$5:$L$19,2)*IF($E$1="m",$D5,($D5*0.3048))/1000 -> 0.18318
C5: span length,m | D5: 43 | E5: 0 | F5: =VLOOKUP($D6,specs!$D$5:$H$17,4)/F6*1.03*$E6+F8 -> 0.4658200791 | G5: =VLOOKUP($D6,specs!$D$5:$H$17,4)/G6*1.03*$E6+G8 -> 0.4664629687 | H5: =VLOOKUP($D6,specs!$D$5:$H$17,4)/H6*1.03*$E6+H8 -> 0.4664638572 | I5: =VLOOKUP($D6,specs!$D$5:$H$17,4)/I6*1.03*$E6+I8 -> 0.4664638584 | J5: =VLOOKUP($D6,specs!$D$5:$H$17,4)/J6*1.03*$E6+J8 -> 0.4664638584 | K5: =VLOOKUP($D6,specs!$D$5:$H$17,4)/K6*1.03*$E6+K8 -> 0.4664638584 | L5: =VLOOKUP($D6,specs!$D$5:$H$17,4)/L6*1.03*$E6+L8 -> 0.4664638584 | M5: =VLOOKUP($D6,specs!$D$5:$H$17,4)/M6*1.03*$E6+M8 -> 0.4664638584 | N5: =VLOOKUP($D6,specs!$D$5:$H$17,4)/N6*1.03*$E6+N8 -> 0.4664638584 | O5: =VLOOKUP($D6,specs!$D$5:$H$17,4)/O6*1.03*$E6+O8 -> 0.4664638584
C6: amplifier | D6: DBLE | E6: 1 | F6: =F9+F8*F7 -> 61.91231613 | G6: =G9+G8*G7 -> 61.82698721 | H6: 61.82686945 | I6: 61.82686928 | J6: 61.82686928 | K6: 61.82686928 | L6: 61.82686928 | M6: 61.82686928 | N6: 61.82686928 | O6: =O9+O8*O7 -> 61.82686928
C7: cable type | D7: cable | E7: 0 | F7: =VLOOKUP($D7,specs!$K$5:$L$19,2)*IF($E$1="m",$D8,($D8*0.3048))/1000 -> 0 | G7: =VLOOKUP($D7,specs!$K$5:$L$19,2)*IF($E$1="m",$D8,($D8*0.3048))/1000 -> 0 | H7: =VLOOKUP($D7,specs!$K$5:$L$19,2)*IF($E$1="m",$D8,($D8*0.3048))/1000 -> 0 | I7: =VLOOKUP($D7,specs!$K$5:$L$19,2)*IF($E$1="m",$D8,($D8*0.3048))/1000 -> 0 | J7: =VLOOKUP($D7,specs!$K$5:$L$19,2)*IF($E$1="m",$D8,($D8*0.3048))/1000 -> 0 | K7: =VLOOKUP($D7,specs!$K$5:$L$19,2)*IF($E$1="m",$D8,($D8*0.3048))/1000 -> 0 | L7: =VLOOKUP($D7,specs!$K$5:$L$19,2)*IF($E$1="m",$D8,($D8*0.3048))/1000 -> 0 | M7: =VLOOKUP($D7,specs!$K$5:$L$19,2)*IF($E$1="m",$D8,($D8*0.3048))/1000 -> 0 | N7: =VLOOKUP($D7,specs!$K$5:$L$19,2)*IF($E$1="m",$D8,($D8*0.3048))/1000 -> 0 | O7: =VLOOKUP($D7,specs!$K$5:$L$19,2)*IF($E$1="m",$D8,($D8*0.3048))/1000 -> 0
C8: span length,m | D8: 0 | E8: 0 | F8: =VLOOKUP($D9,specs!$D$5:$H$17,4)/F9*1.03*$E9+F11 -> 0 | G8: =VLOOKUP($D9,specs!$D$5:$H$17,4)/G9*1.03*$E9+G11 -> 0 | H8: =VLOOKUP($D9,specs!$D$5:$H$17,4)/H9*1.03*$E9+H11 -> 0 | I8: =VLOOKUP($D9,specs!$D$5:$H$17,4)/I9*1.03*$E9+I11 -> 0 | J8: =VLOOKUP($D9,specs!$D$5:$H$17,4)/J9*1.03*$E9+J11 -> 0 | K8: =VLOOKUP($D9,specs!$D$5:$H$17,4)/K9*1.03*$E9+K11 -> 0 | L8: =VLOOKUP($D9,specs!$D$5:$H$17,4)/L9*1.03*$E9+L11 -> 0 | M8: =VLOOKUP($D9,specs!$D$5:$H$17,4)/M9*1.03*$E9+M11 -> 0 | N8: =VLOOKUP($D9,specs!$D$5:$H$17,4)/N9*1.03*$E9+N11 -> 0 | O8: =VLOOKUP($D9,specs!$D$5:$H$17,4)/O9*1.03*$E9+O11 -> 0
C9: amplifier | D9: load | E9: 0 | F9: =F12+F11*F10 -> 61.91231613 | G9: =G12+G11*G10 -> 61.82698721 | H9: 61.82686945 | I9: 61.82686928 | J9: 61.82686928 | K9: 61.82686928 | L9: 61.82686928 | M9: 61.82686928 | N9: 61.82686928 | O9: =O12+O11*O10 -> 61.82686928
C10: cable type | D10: cable | E10: 0 | F10: =VLOOKUP($D10,specs!$K$5:$L$19,2)*IF($E$1="m",$D11,($D11*0.3048))/1000 -> 0 | G10: =VLOOKUP($D10,specs!$K$5:$L$19,2)*IF($E$1="m",$D11,($D11*0.3048))/1000 -> 0 | H10: =VLOOKUP($D10,specs!$K$5:$L$19,2)*IF($E$1="m",$D11,($D11*0.3048))/1000 -> 0 | I10: =VLOOKUP($D10,specs!$K$5:$L$19,2)*IF($E$1="m",$D11,($D11*0.3048))/1000 -> 0 | J10: =VLOOKUP($D10,specs!$K$5:$L$19,2)*IF($E$1="m",$D11,($D11*0.3048))/1000 -> 0 | K10: =VLOOKUP($D10,specs!$K$5:$L$19,2)*IF($E$1="m",$D11,($D11*0.3048))/1000 -> 0 | L10: =VLOOKUP($D10,specs!$K$5:$L$19,2)*IF($E$1="m",$D11,($D11*0.3048))/1000 -> 0 | M10: =VLOOKUP($D10,specs!$K$5:$L$19,2)*IF($E$1="m",$D11,($D11*0.3048))/1000 -> 0 | N10: =VLOOKUP($D10,specs!$K$5:$L$19,2)*IF($E$1="m",$D11,($D11*0.3048))/1000 -> 0 | O10: =VLOOKUP($D10,specs!$K$5:$L$19,2)*IF($E$1="m",$D11,($D11*0.3048))/1000 -> 0
C11: span length,m | D11: 0 | E11: 0 | F11: =VLOOKUP($D12,specs!$D$5:$H$17,4)/F12*1.03*$E12+F14 -> 0 | G11: =VLOOKUP($D12,specs!$D$5:$H$17,4)/G12*1.03*$E12+G14 -> 0 | H11: =VLOOKUP($D12,specs!$D$5:$H$17,4)/H12*1.03*$E12+H14 -> 0 | I11: =VLOOKUP($D12,specs!$D$5:$H$17,4)/I12*1.03*$E12+I14 -> 0 | J11: =VLOOKUP($D12,specs!$D$5:$H$17,4)/J12*1.03*$E12+J14 -> 0 | K11: =VLOOKUP($D12,specs!$D$5:$H$17,4)/K12*1.03*$E12+K14 -> 0 | L11: =VLOOKUP($D12,specs!$D$5:$H$17,4)/L12*1.03*$E12+L14 -> 0 | M11: =VLOOKUP($D12,specs!$D$5:$H$17,4)/M12*1.03*$E12+M14 -> 0 | N11: =VLOOKUP($D12,specs!$D$5:$H$17,4)/N12*1.03*$E12+N14 -> 0 | O11: =VLOOKUP($D12,specs!$D$5:$H$17,4)/O12*1.03*$E12+O14 -> 0
C12: amplifier | D12: load | E12: 0 | F12: =F15+F14*F13 -> 61.91231613 | G12: =G15+G14*G13 -> 61.82698721 | H12: 61.82686945 | I12: 61.82686928 | J12: 61.82686928 | K12: 61.82686928 | L12: 61.82686928 | M12: 61.82686928 | N12: 61.82686928 | O12: =O15+O14*O13 -> 61.82686928
C13: cable type | D13: cable | E13: 0 | F13: =VLOOKUP($D13,specs!$K$5:$L$19,2)*IF($E$1="m",$D14,($D14*0.3048))/1000 -> 0 | G13: =VLOOKUP($D13,specs!$K$5:$L$19,2)*IF($E$1="m",$D14,($D14*0.3048))/1000 -> 0 | H13: =VLOOKUP($D13,specs!$K$5:$L$19,2)*IF($E$1="m",$D14,($D14*0.3048))/1000 -> 0 | I13: =VLOOKUP($D13,specs!$K$5:$L$19,2)*IF($E$1="m",$D14,($D14*0.3048))/1000 -> 0 | J13: =VLOOKUP($D13,specs!$K$5:$L$19,2)*IF($E$1="m",$D14,($D14*0.3048))/1000 -> 0 | K13: =VLOOKUP($D13,specs!$K$5:$L$19,2)*IF($E$1="m",$D14,($D14*0.3048))/1000 -> 0 | L13: =VLOOKUP($D13,specs!$K$5:$L$19,2)*IF($E$1="m",$D14,($D14*0.3048))/1000 -> 0 | M13: =VLOOKUP($D13,specs!$K$5:$L$19,2)*IF($E$1="m",$D14,($D14*0.3048))/1000 -> 0 | N13: =VLOOKUP($D13,specs!$K$5:$L$19,2)*IF($E$1="m",$D14,($D14*0.3048))/1000 -> 0 | O13: =VLOOKUP($D13,specs!$K$5:$L$19,2)*IF($E$1="m",$D14,($D14*0.3048))/1000 -> 0
C14: span length,m | D14: 0 | E14: 0 | F14: =VLOOKUP($D15,specs!$D$5:$H$17,4)/F15*1.03*$E15+F17 -> 0 | G14: =VLOOKUP($D15,specs!$D$5:$H$17,4)/G15*1.03*$E15+G17 -> 0 | H14: =VLOOKUP($D15,specs!$D$5:$H$17,4)/H15*1.03*$E15+H17 -> 0 | I14: =VLOOKUP($D15,specs!$D$5:$H$17,4)/I15*1.03*$E15+I17 -> 0 | J14: =VLOOKUP($D15,specs!$D$5:$H$17,4)/J15*1.03*$E15+J17 -> 0 | K14: =VLOOKUP($D15,specs!$D$5:$H$17,4)/K15*1.03*$E15+K17 -> 0 | L14: =VLOOKUP($D15,specs!$D$5:$H$17,4)/L15*1.03*$E15+L17 -> 0 | M14: =VLOOKUP($D15,specs!$D$5:$H$17,4)/M15*1.03*$E15+M17 -> 0 | N14: =VLOOKUP($D15,specs!$D$5:$H$17,4)/N15*1.03*$E15+N17 -> 0 | O14: =VLOOKUP($D15,specs!$D$5:$H$17,4)/O15*1.03*$E15+O17 -> 0
C15: amplifier | D15: load | E15: 0 | F15: =F18+F17*F16 -> 61.91231613 | G15: =G18+G17*G16 -> 61.82698721 | H15: 61.82686945 | I15: 61.82686928 | J15: 61.82686928 | K15: 61.82686928 | L15: 61.82686928 | M15: 61.82686928 | N15: 61.82686928 | O15: =O18+O17*O16 -> 61.82686928
C16: cable type | D16: cable | E16: 0 | F16: =VLOOKUP($D16,specs!$K$5:$L$19,2)*IF($E$1="m",$D17,($D17*0.3048))/1000 -> 0 | G16: =VLOOKUP($D16,specs!$K$5:$L$19,2)*IF($E$1="m",$D17,($D17*0.3048))/1000 -> 0 | H16: =VLOOKUP($D16,specs!$K$5:$L$19,2)*IF($E$1="m",$D17,($D17*0.3048))/1000 -> 0 | I16: =VLOOKUP($D16,specs!$K$5:$L$19,2)*IF($E$1="m",$D17,($D17*0.3048))/1000 -> 0 | J16: =VLOOKUP($D16,specs!$K$5:$L$19,2)*IF($E$1="m",$D17,($D17*0.3048))/1000 -> 0 | K16: =VLOOKUP($D16,specs!$K$5:$L$19,2)*IF($E$1="m",$D17,($D17*0.3048))/1000 -> 0 | L16: =VLOOKUP($D16,specs!$K$5:$L$19,2)*IF($E$1="m",$D17,($D17*0.3048))/1000 -> 0 | M16: =VLOOKUP($D16,specs!$K$5:$L$19,2)*IF($E$1="m",$D17,($D17*0.3048))/1000 -> 0 | N16: =VLOOKUP($D16,specs!$K$5:$L$19,2)*IF($E$1="m",$D17,($D17*0.3048))/1000 -> 0 | O16: =VLOOKUP($D16,specs!$K$5:$L$19,2)*IF($E$1="m",$D17,($D17*0.3048))/1000 -> 0
C17: span length,m | D17: 0 | E17: 0 | F17: =VLOOKUP($D18,specs!$D$5:$H$17,4)/F18*1.03*$E18+F20 -> 0 | G17: =VLOOKUP($D18,specs!$D$5:$H$17,4)/G18*1.03*$E18+G20 -> 0 | H17: =VLOOKUP($D18,specs!$D$5:$H$17,4)/H18*1.03*$E18+H20 -> 0 | I17: =VLOOKUP($D18,specs!$D$5:$H$17,4)/I18*1.03*$E18+I20 -> 0 | J17: =VLOOKUP($D18,specs!$D$5:$H$17,4)/J18*1.03*$E18+J20 -> 0 | K17: =VLOOKUP($D18,specs!$D$5:$H$17,4)/K18*1.03*$E18+K20 -> 0 | L17: =VLOOKUP($D18,specs!$D$5:$H$17,4)/L18*1.03*$E18+L20 -> 0 | M17: =VLOOKUP($D18,specs!$D$5:$H$17,4)/M18*1.03*$E18+M20 -> 0 | N17: =VLOOKUP($D18,specs!$D$5:$H$17,4)/N18*1.03*$E18+N20 -> 0 | O17: =VLOOKUP($D18,specs!$D$5:$H$17,4)/O18*1.03*$E18+O20 -> 0
C18: amplifier | D18: load | E18: 0 | F18: =F21+F20*F19 -> 61.91231613 | G18: =G21+G20*G19 -> 61.82698721 | H18: 61.82686945 | I18: 61.82686928 | J18: 61.82686928 | K18: 61.82686928 | L18: 61.82686928 | M18: 61.82686928 | N18: 61.82686928 | O18: =O21+O20*O19 -> 61.82686928
C19: cable type | D19: cable | E19: 0 | F19: =VLOOKUP($D19,specs!$K$5:$L$19,2)*IF($E$1="m",$D20,($D20*0.3048))/1000 -> 0 | G19: =VLOOKUP($D19,specs!$K$5:$L$19,2)*IF($E$1="m",$D20,($D20*0.3048))/1000 -> 0 | H19: =VLOOKUP($D19,specs!$K$5:$L$19,2)*IF($E$1="m",$D20,($D20*0.3048))/1000 -> 0 | I19: =VLOOKUP($D19,specs!$K$5:$L$19,2)*IF($E$1="m",$D20,($D20*0.3048))/1000 -> 0 | J19: =VLOOKUP($D19,specs!$K$5:$L$19,2)*IF($E$1="m",$D20,($D20*0.3048))/1000 -> 0 | K19: =VLOOKUP($D19,specs!$K$5:$L$19,2)*IF($E$1="m",$D20,($D20*0.3048))/1000 -> 0 | L19: =VLOOKUP($D19,specs!$K$5:$L$19,2)*IF($E$1="m",$D20,($D20*0.3048))/1000 -> 0 | M19: =VLOOKUP($D19,specs!$K$5:$L$19,2)*IF($E$1="m",$D20,($D20*0.3048))/1000 -> 0 | N19: =VLOOKUP($D19,specs!$K$5:$L$19,2)*IF($E$1="m",$D20,($D20*0.3048))/1000 -> 0 | O19: =VLOOKUP($D19,specs!$K$5:$L$19,2)*IF($E$1="m",$D20,($D20*0.3048))/1000 -> 0
C20: span length,m | D20: 0 | E20: 0 | F20: =VLOOKUP($D21,specs!$D$5:$H$17,4)/F21*1.03*$E21+F23 -> 0 | G20: =VLOOKUP($D21,specs!$D$5:$H$17,4)/G21*1.03*$E21+G23 -> 0 | H20: =VLOOKUP($D21,specs!$D$5:$H$17,4)/H21*1.03*$E21+H23 -> 0 | I20: =VLOOKUP($D21,specs!$D$5:$H$17,4)/I21*1.03*$E21+I23 -> 0 | J20: =VLOOKUP($D21,specs!$D$5:$H$17,4)/J21*1.03*$E21+J23 -> 0 | K20: =VLOOKUP($D21,specs!$D$5:$H$17,4)/K21*1.03*$E21+K23 -> 0 | L20: =VLOOKUP($D21,specs!$D$5:$H$17,4)/L21*1.03*$E21+L23 -> 0 | M20: =VLOOKUP($D21,specs!$D$5:$H$17,4)/M21*1.03*$E21+M23 -> 0 | N20: =VLOOKUP($D21,specs!$D$5:$H$17,4)/N21*1.03*$E21+N23 -> 0 | O20: =VLOOKUP($D21,specs!$D$5:$H$17,4)/O21*1.03*$E21+O23 -> 0
C21: amplifier | D21: load | E21: 0 | F21: =B2 -> 61.91231613 | G21: =F21-(F3-$B$2) -> 61.82698721 | H21: 61.82686945 | I21: 61.82686928 | J21: 61.82686928 | K21: 61.82686928 | L21: 61.82686928 | M21: 61.82686928 | N21: 61.82686928 | O21: 61.82686928
F22: =IF(F21<0,1,0) -> 0 | G22: =IF(G21<0,1,0) -> 0 | H22: 0 | I22: 0 | J22: 0 | K22: 0 | L22: 0 | M22: 0 | N22: 0 | O22: 0
C24: User added Branch Net11 (2)
M27: =O21 -> 61.82686928
F34: Main Branch Net11

Sheet Control
E6: PS actual power
E7: T-Former: 900 W
D8: A | E8: Ferro: 952 W

Sheet AUX2 (hidden)
A1: ='Net42'!B1+'Net41'!B1+'Net32'!B1+'Net31'!B1+'Net22'!B1+'Net21'!B1+'Net12'!B1+'Net11'!B1+SUM(A7:A18)+'Net11 (2)'!B1+'Net12 (2)'!B1 -> 0 | B1: Vtriac(vba) | C1: 1.5 | D1: =+'Net11'!D1+'Net12'!D1+'Net21'!D1+'Net22'!D1+'Net31'!D1+'Net32'!D1+'Net41'!D1+'Net42'!D1 -> 0 | S1: 67 | T1: 67V | U1: V0 | V1: 1
C2: =+C5*1 -> 67 | J2: m | S2: 62.07204242 | T2: 62,1V | U2: V01 | V2: 2
J3: ft | S3: 55.10607686 | U3: V02 | V3: 3
D4: V | E4: m | F4: i temp | G4: i | H4: drop | I4: k | J4: dist | K4: L | L4: cable | M4: Vinput | N4: 0.0001 | S4: 55.10607686 | T4: 55,1V | U4: V03 | V4: 4
A5: PS - Imax Vout | B5: 15 | C5: 67 | D5: V | E5: - | F5: A | G5: A | H5: V | I5: - | J5: m | K5: km | M5: V | N5: accuracy | S5: 59.80081428 | T5: 59,8V | U5: V04 | V5: 5
A6: Vmin amp. | B6: 44 | C6: =IF(C2=60,66,90) -> 90 | D6: 59.80081428 | N6: =ABS(SUM(N7:N14)) -> 0 | S6: 7.635534992 | T6: 7,6A | U6: I01 | V6: 6
A7: =IF(D7<0,1,0) -> 0 | B7: 7 | C7: 11 | D7: =+D15-H7 -> 59.80081428 | E7: 0 | F7: =+'Net11'!D2 -> 1.87529168 | G7: =+F7*E7 -> 0 | H7: =+G7*K7*VLOOKUP(L7,specs!$K$5:$L$19,2) -> 0 | I7: 1 | J7: 20 | K7: =+IF($J$5="m",J7,(J7*0.3048))/1000*I7 -> 0.02 | L7: C565 | M7: 61.91231613 | N7: =E7*(+M7-D7) -> 0 | S7: 11.8524045 | T7: 11,9A | U7: I02 | V7: 7
A8: 0 | B8: 8 | C8: 12 | D8: =+D15-H8 -> 59.80081428 | E8: 0 | F8: =+'Net12'!D2 -> 3.606810367 | G8: =+F8*E8 -> 0 | H8: =+G8*K8*VLOOKUP(L8,specs!$K$5:$L$19,2) -> 0 | I8: 1 | J8: 0 | K8: =+IF($J$5="m",J8,(J8*0.3048))/1000*I8 -> 0 | L8: cable | M8: 62.07209069 | N8: =E8*(+M8-D8) -> 0 | S8: 11.8524045 | T8: 11,9A | U8: I03 | V8: 8
A9: 0 | B9: 9 | C9: 21 | D9: =+D16-H9 -> 59.80081428 | E9: 0 | F9: =+'Net21'!D2 -> 2.791812792 | G9: 0 | H9: =+G9*K9*VLOOKUP(L9,specs!$K$5:$L$19,2) -> 0 | I9: 1 | J9: 54 | K9: 0.054 | L9: C565 | M9: 54.46384912 | N9: 0 | S9: 12.6791491 | T9: 12,7A | U9: I04 | V9: 9
A10: 0 | B10: 10 | C10: 22 | D10: =+D16-H10 -> 59.80081428 | E10: 0 | F10: =+'Net22'!D2 -> 1.425056716 | G10: 0 | H10: =+G10*K10*VLOOKUP(L10,specs!$K$5:$L$19,2) -> 0 | I10: 1 | J10: 0 | K10: 0 | L10: cable | M10: 55.10607686 | N10: 0 | S10: 61.91231584 | T10: 61,9V | U10: V11 | V10: 10
A11: 0 | B11: 11 | C11: 31 | D11: =+D17-H11 -> 59.80081428 | E11: 0 | F11: =+'Net31'!D2 -> 0 | G11: 0 | H11: =+G11*K11*VLOOKUP(L11,specs!$K$5:$L$19,2) -> 0 | I11: 1 | J11: 0 | K11: 0 | L11: cable | M11: 55.10607686 | N11: 0 | S11: 62.07209069 | T11: 62,1V | U11: V12 | V11: 11
A12: 0 | B12: 12 | C12: 32 | D12: =+D17-H12 -> 59.80081428 | E12: 0 | F12: =+'Net32'!D2 -> 0 | G12: 0 | H12: =+G12*K12*VLOOKUP(L12,specs!$K$5:$L$19,2) -> 0 | I12: 1 | J12: 0 | K12: 0 | L12: cable | M12: 55.10607686 | N12: 0 | S12: 54.46384824 | T12: 54,5V | U12: V21 | V12: 12
A13: 0 | B13: 13 | C13: 41 | D13: =+D18-H13 -> 59.80081428 | E13: 1 | F13: =+'Net41'!D2 -> 0.8267445953 | G13: 0.8267445953 | H13: =+G13*K13*VLOOKUP(L13,specs!$K$5:$L$19,2) -> 0 | I13: 1 | J13: 0 | K13: 0 | L13: cable | M13: 59.80081428 | N13: 0 | S13: 55.10607686 | T13: 55,1V | U13: V22 | V13: 13
A14: 0 | B14: 14 | C14: 42 | D14: =+D18-H14 -> 59.80081428 | E14: 1 | F14: =+'Net42'!D2 -> 0 | G14: 0 | H14: =+G14*K14*VLOOKUP(L14,specs!$K$5:$L$19,2) -> 0 | I14: 1 | J14: 0 | K14: 0 | L14: cable | M14: 59.80081428 | N14: 0 | S14: 55.10607686 | T14: 55,1V | U14: V31 | V14: 14
A15: =IF(D15<0,1,0) -> 0 | B15: 15 | C15: 01 | D15: =+D16-H15 -> 59.80081428 | E15: 0 | F15: =SUM(F7:F8) -> 5.482102047 | G15: =+F15*E15 -> 0 | H15: =+G15*K15*VLOOKUP(L15,specs!$K$5:$L$19,2) -> 0 | I15: 1 | J15: 680 | K15: =+IF($J$5="m",J15,(J15*0.3048))/1000*I15 -> 0.68 | L15: QR860 | M15: =K15*VLOOKUP(L15,specs!$K$5:$L$19,2) -> 1.156 | S15: 55.10607686 | T15: 55,1V | U15: V32 | V15: 15
A16: =IF(D16<0,1,0) -> 0 | B16: 16 | C16: 02 | D16: =+D17-H16 -> 59.80081428 | E16: 0 | F16: =SUM(F7:F10) -> 9.698971555 | G16: =+F16*E16 -> 0 | H16: =+G16*K16*VLOOKUP(L16,specs!$K$5:$L$19,2) -> 0 | I16: 1 | J16: 0 | K16: =+IF($J$5="m",J16,(J16*0.3048))/1000*I16 -> 0 | L16: cable | M16: =K16*VLOOKUP(L16,specs!$K$5:$L$19,2) -> 0 | S16: 59.80081428 | T16: 59,8V | U16: V41 | V16: 16
A17: =IF(D17<0,1,0) -> 0 | B17: 17 | C17: 03 | D17: =+D18-H17 -> 59.80081428 | E17: 0 | F17: =SUM(F7:F12) -> 9.698971555 | G17: =+F17*E17 -> 0 | H17: =+G17*K17*VLOOKUP(L17,specs!$K$5:$L$19,2) -> 0 | I17: 1 | J17: 233 | K17: =+IF($J$5="m",J17,(J17*0.3048))/1000*I17 -> 0.233 | L17: QR860 | M17: =K17*VLOOKUP(L17,specs!$K$5:$L$19,2) -> 0.3961 | S17: 59.80081428 | T17: 59,8V | U17: V42 | V17: 17
A18: =IF(D18<0,1,0) -> 0 | B18: 18 | C18: 04 | D18: =+D6-H18 -> 59.80081428 | E18: 0 | F18: =SUM(F7:F14) -> 10.52571615 | G18: =+F18*E18 -> 0 | H18: =+G18*K18*VLOOKUP(L18,specs!$K$5:$L$19,2) -> 0 | I18: 1 | J18: 334 | K18: =+IF($J$5="m",J18,(J18*0.3048))/1000*I18 -> 0.334 | L18: QR860 | M18: =K18*VLOOKUP(L18,specs!$K$5:$L$19,2) -> 0.5678 | S18: 1.87529168 | T18: 1,9A | U18: I11 | V18: 18
H19: D6:L18 | S19: 3.606810367 | T19: 3,6A | U19: I12 | V19: 19
S20: 2.791812792 | T20: 2,8A | U20: I21 | V20: 20
B21: Booster Data | S21: 1.425056716 | T21: 1,4A | U21: I22 | V21: 21
C22: vba | D22: vba | E22: vba | S22: 0 | T22: 0A | U22: I31 | V22: 22
A23: Vin | B23: Ranges | C23: Mcont | D23: TrEff | E23: Bgain | F23: Vout | G23: Pin | H23: Iin | I23: Final Gain | J23: Efficiency | K23: P-triac | L23: P-transformer | M23: Pout | N23: Iout | S23: 0 | T23: 0A | U23: I32 | V23: 23
A24: 62 | B24: 57.5-66 | C24: 1 | D24: 97 | E24: 1.033 | F24: =A24*E24/C24-1.5 -> 62.546 | G24: =M24+L24+K24 -> 204.9944698 | H24: =G24/A24 -> 3.306362416 | I24: =F24/A24 -> 1.008806452 | J24: =M24/G24 -> 0.9756360754 | K24: =N24*1.5 -> 4.796469798 | L24: =M24*(E24-1)*0.03 -> 0.198 | M24: 200 | N24: =M24/F24 -> 3.197646532 | S24: 0.8267445953 | T24: 0,8A | U24: I41 | V24: 24
A25: 57.5 | B25: 49.9-57.5 | C25: 1.025 | D25: 96.8 | E25: 1.211 | F25: =A25*E25/C25-1.5 -> 66.43414634 | G25: =M25+L25+K25 -> 205.8661501 | H25: =G25/A25 -> 3.580280871 | I25: =F25/A25 -> 1.155376458 | J25: =M25/G25 -> 0.9715050286 | K25: =N25*1.5 -> 4.515750055 | L25: =M25*(E25-1)*0.032 -> 1.3504 | M25: 200 | N25: =M25/F25 -> 3.010500037 | S25: 0 | T25: 0A | U25: I42 | V25: 25
A26: 49.9 | B26: 0-49.9 | C26: 1.025 | D26: 96.5 | E26: 1.408 | F26: =A26*E26/C26-1.5 -> 67.04556098 | G26: =M26+L26+K26 -> 207.3305692 | H26: =G26/A26 -> 4.154921226 | I26: =F26/A26 -> 1.343598416 | J26: =M26/G26 -> 0.9646430857 | K26: =N26*1.5 -> 4.474569168 | L26: =M26*(E26-1)*0.035 -> 2.856 | M26: 200 | N26: =M26/F26 -> 2.983046112 | S26: 61.10271668 | T26: 61,1V | U26: Vend11 | V26: 26
S27: 61.06919502 | T27: 61,1V | U27: Vend12 | V27: 27
S28: 50.63139776 | T28: 50,6V | U28: Vend21 | V28: 28
A29: Vin | F29: Vout | G29: Pin | H29: Iin | J29: Efficiency | K29: P-triac | L29: P-transformer | M29: Pout | N29: Iout | S29: 54.63383721 | T29: 54,6V | U29: Vend22 | V29: 29
A30: 83 | B30: 74.9-90 | C30: 1 | D30: 97 | E30: 1.048 | F30: =A30*E30/C30-1.5 -> 85.484 | G30: =M30+L30+K30 -> 203.7974287 | H30: =G30/A30 -> 2.455390707 | I30: =F30/A30 -> 1.029927711 | J30: =M30/G30 -> 0.9813666507 | K30: =N30*1.5 -> 3.509428665 | L30: =M30*(E30-1)*0.03 -> 0.288 | M30: 200 | N30: =M30/F30 -> 2.33961911 | S30: 55.10607686 | T30: 55,1V | U30: Vend31 | V30: 30
A31: 74.9 | B31: 62-74.9 | C31: 1.025 | D31: 96.8 | E31: 1.279 | F31: =A31*E31/C31-1.5 -> 91.96058537 | G31: =M31+L31+K31 -> 205.0478672 | H31: =G31/A31 -> 2.737621725 | I31: =F31/A31 -> 1.227778176 | J31: =M31/G31 -> 0.9753820059 | K31: =N31*1.5 -> 3.262267186 | L31: =M31*(E31-1)*0.032 -> 1.7856 | M31: 200 | N31: =M31/F31 -> 2.17484479 | S31: 55.10607686 | T31: 55,1V | U31: Vend32 | V31: 31
A32: 61.9 | B32: 0-61.9 | C32: 1.025 | D32: 96.5 | E32: 1.538 | F32: =A32*E32/C32-1.5 -> 91.38019512 | G32: =M32+L32+K32 -> 207.0489871 | H32: =G32/A32 -> 3.344894783 | I32: =F32/A32 -> 1.476255172 | J32: =M32/G32 -> 0.9659549792 | K32: =N32*1.5 -> 3.282987081 | L32: =M32*(E32-1)*0.035 -> 3.766 | M32: 200 | N32: =M32/F32 -> 2.188658054 | S32: 59.80081428 | T32: 59,8V | U32: Vend41 | V32: 32
S33: 59.80081428 | T33: 59,8V | U33: Vend42 | V33: 33
A34: Pin = Pout + Ptriac + Pdelta-transformer, where | S34: 46.27936327 | T34: 46,3V | U34: PBVin | V34: 34
S35: 62.07204242 | T35: 62,1V | U35: PBVout | V35: 35
A36: Pout = Vout x Iout; | S36: 7.635534992 | T36: 7,6A | U36: PBcurin | V36: 36
S37: 5.482102047 | T37: 5,5A | U37: PBcurout | V37: 37
A38: Ptriac = Vtriac * Iout , where Vtriac=1.5V; | S38: 1.341246682 | T38: 1,34 | U38: Bgain | V38: 38
T39: PB Location IV | U39: STitleLocation | V39: 39
A40: Pdelta-transformer = (100 - K) / 100 * (n – 1) * Pout , where K=96.5% for range"1.32" , K=96.8% for range "1.2" and K=97% for range "1" | T40: V in | U40: sTitleVin | V40: 40
T41: V out | U41: sTitleVout | V41: 41
A42: Then, assuming | T42: I in | U42: STitleIin | V42: 42
T43: I out | U43: sTitleIout | V43: 43
A44: Vout = Vin * n / Mcont – Vtriac , where Mcont = 1 for range"1", Mcont=1.025 for other two ranges; | T44: Gain | U44: sTitleGain | V44: 44
U45: time | V45: 45
A46: We get finally the booster input current Iin, derived from above, as a function of the booster output current Iout and the booster input voltage Vin: | U46: cntext | V46: 46
S47: 1 | U47: cntloc | V47: 47
A48: Iin = Iout * n / Mcont * (1 + K / 100) * (n – 1) * [ 1 – Vtriac / (Vout + Vtriac) ]} | S48: 25 | U48: cntsum | V48: 48
S49: 1 | U49: cntloc04 | V49: 49
S50: 16 | U50: cntsum04 | V50: 50
S51: 1 | U51: cntloc03 | V51: 51
S52: 16 | U52: cntsum03 | V52: 52
S53: 1 | U53: cntloc02 | V53: 53
S54: 30 | U54: cntsum02 | V54: 54
D59: Efficiency | F59: tangens alpha
C60: Load,% | D60: Super2M-90 | E60: T-former | F60: Super2M-90 | G60: T-former | H60: load span | I60: SpanN
B61: L0 | C61: 4 | D61: 36.55806621 | E61: 62.08372093 | F61: =(D62-D61)/($C62-$C61) -> 4.260676312 | G61: =+(E62-E61)/($C62-$C61) -> 3.48933788 | H61: =+C62-C61 -> 4 | I61: 1
B62: L1 | C62: 8 | D62: 53.60077146 | E62: 76.04107245 | F62: =(D63-D62)/($C63-$C62) -> 2.444555993 | G62: =+(E63-E62)/($C63-$C62) -> 1.576814017 | H62: =+C63-C62 -> 4 | I62: 2
B63: L2 | C63: 12 | D63: 63.37899543 | E63: 82.34832852 | F63: =(D64-D63)/($C64-$C63) -> 1.445186705 | G63: =+(E64-E63)/($C64-$C63) -> 0.795816365 | H63: =+C64-C63 -> 8 | I63: 3
B64: L3 | C64: 20 | D64: 74.94048907 | E64: 88.71485944 | F64: =(D65-D64)/($C65-$C64) -> 0.715539049 | G64: =+(E65-E64)/($C65-$C64) -> 0.271305184 | H64: =+C65-C64 -> 10 | I64: 4
B65: L4 | C65: 30 | D65: 82.09587956 | E65: 91.42791128 | F65: =(D66-D65)/($C66-$C65) -> 0.484873774 | G65: =+(E66-E65)/($C66-$C65) -> 0.129423258 | H65: =+C66-C65 -> 10 | I65: 5
B66: L5 | C66: 40 | D66: 86.9446173 | E66: 92.72214386 | F66: =(D67-D66)/($C67-$C66) -> 0.17963341 | G66: =+(E67-E66)/($C67-$C66) -> 0.111739769 | H66: =+C67-C66 -> 10 | I66: 6
B67: L6 | C67: 50 | D67: 88.7409514 | E67: 93.83954155 | F67: =(D68-D67)/($C68-$C67) -> 0.112770009 | G67: =+(E68-E67)/($C68-$C67) -> 0.036879178 | H67: =+C68-C67 -> 10 | I67: 7
B68: L7 | C68: 60 | D68: 89.86865149 | E68: 94.20833333 | F68: =(D69-D68)/($C69-$C68) -> 0.089180478 | G68: =+(E69-E68)/($C69-$C68) -> 0.038966667 | H68: =+C69-C68 -> 10 | I68: 8
B69: L8 | C69: 70 | D69: 90.76045627 | E69: 94.598 | F69: =(D70-D69)/($C70-$C69) -> 0.051471152 | G69: =+(E70-E69)/($C70-$C69) -> -0.005637724 | H69: =+C70-C69 -> 10 | I69: 9
B70: L9 | C70: 80 | D70: 91.27516779 | E70: 94.54162276 | F70: =(D71-D70)/($C71-$C70) -> 0.000400636 | G70: =+(E71-E70)/($C71-$C70) -> -0.03817227 | H70: =+C71-C70 -> 10 | I70: 10
B71: L10 | C71: 90 | D71: 91.27917415 | E71: 94.15990006 | F71: =(D72-D71)/($C72-$C71) -> 0.036039225 | G71: =+(E72-E71)/($C72-$C71) -> -0.087130946 | H71: =+C72-C71 -> 10 | I71: 11
B72: L11 | C72: 100 | D72: 91.6395664 | E72: 93.2885906

Sheet Net42 (hidden)
B1: =SUM(F22:O22) -> 0 | D1: =IF(O21<'AUX2'!B6,1,0) -> 0 | E1: =+'AUX2'!J5 -> m
B2: =+'AUX2'!M14 -> 59.80081428 | C2: U start, V | D2: =+O5*1 -> 0 | F2: 1 | G2: 2 | H2: 3 | I2: 4 | J2: 5 | K2: 6 | L2: 7 | M2: 8 | N2: 9 | O2: iteration10
E3: mult. | F3: =F6+F5*F4 -> 59.80081428 | G3: =G6+G5*G4 -> 59.80081428 | H3: 59.80081428 | I3: 59.80081428 | J3: 59.80081428 | K3: 59.80081428 | L3: 59.80081428 | M3: 59.80081428 | N3: 59.80081428 | O3: 59.80081428
C4: cable type | D4: cable | E4: 0 | F4: =VLOOKUP($D4,specs!$K$5:$L$19,2)*IF($E$1="m",$D5,($D5*0.3048))/1000 -> 0 | G4: =VLOOKUP($D4,specs!$K$5:$L$19,2)*IF($E$1="m",$D5,($D5*0.3048))/1000 -> 0 | H4: =VLOOKUP($D4,specs!$K$5:$L$19,2)*IF($E$1="m",$D5,($D5*0.3048))/1000 -> 0 | I4: =VLOOKUP($D4,specs!$K$5:$L$19,2)*IF($E$1="m",$D5,($D5*0.3048))/1000 -> 0 | J4: =VLOOKUP($D4,specs!$K$5:$L$19,2)*IF($E$1="m",$D5,($D5*0.3048))/1000 -> 0 | K4: =VLOOKUP($D4,specs!$K$5:$L$19,2)*IF($E$1="m",$D5,($D5*0.3048))/1000 -> 0 | L4: =VLOOKUP($D4,specs!$K$5:$L$19,2)*IF($E$1="m",$D5,($D5*0.3048))/1000 -> 0 | M4: =VLOOKUP($D4,specs!$K$5:$L$19,2)*IF($E$1="m",$D5,($D5*0.3048))/1000 -> 0 | N4: =VLOOKUP($D4,specs!$K$5:$L$19,2)*IF($E$1="m",$D5,($D5*0.3048))/1000 -> 0 | O4: =VLOOKUP($D4,specs!$K$5:$L$19,2)*IF($E$1="m",$D5,($D5*0.3048))/1000 -> 0
C5: span length,m | D5: 0 | E5: 0 | F5: =VLOOKUP($D6,specs!$D$5:$H$17,4)/F6*1.03*$E6+F8 -> 0 | G5: =VLOOKUP($D6,specs!$D$5:$H$17,4)/G6*1.03*$E6+G8 -> 0 | H5: =VLOOKUP($D6,specs!$D$5:$H$17,4)/H6*1.03*$E6+H8 -> 0 | I5: =VLOOKUP($D6,specs!$D$5:$H$17,4)/I6*1.03*$E6+I8 -> 0 | J5: =VLOOKUP($D6,specs!$D$5:$H$17,4)/J6*1.03*$E6+J8 -> 0 | K5: =VLOOKUP($D6,specs!$D$5:$H$17,4)/K6*1.03*$E6+K8 -> 0 | L5: =VLOOKUP($D6,specs!$D$5:$H$17,4)/L6*1.03*$E6+L8 -> 0 | M5: =VLOOKUP($D6,specs!$D$5:$H$17,4)/M6*1.03*$E6+M8 -> 0 | N5: =VLOOKUP($D6,specs!$D$5:$H$17,4)/N6*1.03*$E6+N8 -> 0 | O5: =VLOOKUP($D6,specs!$D$5:$H$17,4)/O6*1.03*$E6+O8 -> 0
C6: amplifier | D6: load | E6: 0 | F6: =F9+F8*F7 -> 59.80081428 | G6: =G9+G8*G7 -> 59.80081428 | H6: 59.80081428 | I6: 59.80081428 | J6: 59.80081428 | K6: 59.80081428 | L6: 59.80081428 | M6: 59.80081428 | N6: 59.80081428 | O6: 59.80081428
C7: cable type | D7: cable | E7: 0 | F7: =VLOOKUP($D7,specs!$K$5:$L$19,2)*IF($E$1="m",$D8,($D8*0.3048))/1000 -> 0 | G7: =VLOOKUP($D7,specs!$K$5:$L$19,2)*IF($E$1="m",$D8,($D8*0.3048))/1000 -> 0 | H7: =VLOOKUP($D7,specs!$K$5:$L$19,2)*IF($E$1="m",$D8,($D8*0.3048))/1000 -> 0 | I7: =VLOOKUP($D7,specs!$K$5:$L$19,2)*IF($E$1="m",$D8,($D8*0.3048))/1000 -> 0 | J7: =VLOOKUP($D7,specs!$K$5:$L$19,2)*IF($E$1="m",$D8,($D8*0.3048))/1000 -> 0 | K7: =VLOOKUP($D7,specs!$K$5:$L$19,2)*IF($E$1="m",$D8,($D8*0.3048))/1000 -> 0 | L7: =VLOOKUP($D7,specs!$K$5:$L$19,2)*IF($E$1="m",$D8,($D8*0.3048))/1000 -> 0 | M7: =VLOOKUP($D7,specs!$K$5:$L$19,2)*IF($E$1="m",$D8,($D8*0.3048))/1000 -> 0 | N7: =VLOOKUP($D7,specs!$K$5:$L$19,2)*IF($E$1="m",$D8,($D8*0.3048))/1000 -> 0 | O7: =VLOOKUP($D7,specs!$K$5:$L$19,2)*IF($E$1="m",$D8,($D8*0.3048))/1000 -> 0
C8: span length,m | D8: 0 | E8: 0 | F8: =VLOOKUP($D9,specs!$D$5:$H$17,4)/F9*1.03*$E9+F11 -> 0 | G8: =VLOOKUP($D9,specs!$D$5:$H$17,4)/G9*1.03*$E9+G11 -> 0 | H8: =VLOOKUP($D9,specs!$D$5:$H$17,4)/H9*1.03*$E9+H11 -> 0 | I8: =VLOOKUP($D9,specs!$D$5:$H$17,4)/I9*1.03*$E9+I11 -> 0 | J8: =VLOOKUP($D9,specs!$D$5:$H$17,4)/J9*1.03*$E9+J11 -> 0 | K8: =VLOOKUP($D9,specs!$D$5:$H$17,4)/K9*1.03*$E9+K11 -> 0 | L8: =VLOOKUP($D9,specs!$D$5:$H$17,4)/L9*1.03*$E9+L11 -> 0 | M8: =VLOOKUP($D9,specs!$D$5:$H$17,4)/M9*1.03*$E9+M11 -> 0 | N8: =VLOOKUP($D9,specs!$D$5:$H$17,4)/N9*1.03*$E9+N11 -> 0 | O8: =VLOOKUP($D9,specs!$D$5:$H$17,4)/O9*1.03*$E9+O11 -> 0
C9: amplifier | D9: load | E9: 0 | F9: =F12+F11*F10 -> 59.80081428 | G9: =G12+G11*G10 -> 59.80081428 | H9: 59.80081428 | I9: 59.80081428 | J9: 59.80081428 | K9: 59.80081428 | L9: 59.80081428 | M9: 59.80081428 | N9: 59.80081428 | O9: 59.80081428
C10: cable type | D10: cable | E10: 0 | F10: =VLOOKUP($D10,specs!$K$5:$L$19,2)*IF($E$1="m",$D11,($D11*0.3048))/1000 -> 0 | G10: =VLOOKUP($D10,specs!$K$5:$L$19,2)*IF($E$1="m",$D11,($D11*0.3048))/1000 -> 0 | H10: =VLOOKUP($D10,specs!$K$5:$L$19,2)*IF($E$1="m",$D11,($D11*0.3048))/1000 -> 0 | I10: =VLOOKUP($D10,specs!$K$5:$L$19,2)*IF($E$1="m",$D11,($D11*0.3048))/1000 -> 0 | J10: =VLOOKUP($D10,specs!$K$5:$L$19,2)*IF($E$1="m",$D11,($D11*0.3048))/1000 -> 0 | K10: =VLOOKUP($D10,specs!$K$5:$L$19,2)*IF($E$1="m",$D11,($D11*0.3048))/1000 -> 0 | L10: =VLOOKUP($D10,specs!$K$5:$L$19,2)*IF($E$1="m",$D11,($D11*0.3048))/1000 -> 0 | M10: =VLOOKUP($D10,specs!$K$5:$L$19,2)*IF($E$1="m",$D11,($D11*0.3048))/1000 -> 0 | N10: =VLOOKUP($D10,specs!$K$5:$L$19,2)*IF($E$1="m",$D11,($D11*0.3048))/1000 -> 0 | O10: =VLOOKUP($D10,specs!$K$5:$L$19,2)*IF($E$1="m",$D11,($D11*0.3048))/1000 -> 0
C11: span length,m | D11: 0 | E11: 0 | F11: =VLOOKUP($D12,specs!$D$5:$H$17,4)/F12*1.03*$E12+F14 -> 0 | G11: =VLOOKUP($D12,specs!$D$5:$H$17,4)/G12*1.03*$E12+G14 -> 0 | H11: =VLOOKUP($D12,specs!$D$5:$H$17,4)/H12*1.03*$E12+H14 -> 0 | I11: =VLOOKUP($D12,specs!$D$5:$H$17,4)/I12*1.03*$E12+I14 -> 0 | J11: =VLOOKUP($D12,specs!$D$5:$H$17,4)/J12*1.03*$E12+J14 -> 0 | K11: =VLOOKUP($D12,specs!$D$5:$H$17,4)/K12*1.03*$E12+K14 -> 0 | L11: =VLOOKUP($D12,specs!$D$5:$H$17,4)/L12*1.03*$E12+L14 -> 0 | M11: =VLOOKUP($D12,specs!$D$5:$H$17,4)/M12*1.03*$E12+M14 -> 0 | N11: =VLOOKUP($D12,specs!$D$5:$H$17,4)/N12*1.03*$E12+N14 -> 0 | O11: =VLOOKUP($D12,specs!$D$5:$H$17,4)/O12*1.03*$E12+O14 -> 0
C12: amplifier | D12: load | E12: 0 | F12: =F15+F14*F13 -> 59.80081428 | G12: =G15+G14*G13 -> 59.80081428 | H12: 59.80081428 | I12: 59.80081428 | J12: 59.80081428 | K12: 59.80081428 | L12: 59.80081428 | M12: 59.80081428 | N12: 59.80081428 | O12: 59.80081428
C13: cable type | D13: cable | E13: 0 | F13: =VLOOKUP($D13,specs!$K$5:$L$19,2)*IF($E$1="m",$D14,($D14*0.3048))/1000 -> 0 | G13: =VLOOKUP($D13,specs!$K$5:$L$19,2)*IF($E$1="m",$D14,($D14*0.3048))/1000 -> 0 | H13: =VLOOKUP($D13,specs!$K$5:$L$19,2)*IF($E$1="m",$D14,($D14*0.3048))/1000 -> 0 | I13: =VLOOKUP($D13,specs!$K$5:$L$19,2)*IF($E$1="m",$D14,($D14*0.3048))/1000 -> 0 | J13: =VLOOKUP($D13,specs!$K$5:$L$19,2)*IF($E$1="m",$D14,($D14*0.3048))/1000 -> 0 | K13: =VLOOKUP($D13,specs!$K$5:$L$19,2)*IF($E$1="m",$D14,($D14*0.3048))/1000 -> 0 | L13: =VLOOKUP($D13,specs!$K$5:$L$19,2)*IF($E$1="m",$D14,($D14*0.3048))/1000 -> 0 | M13: =VLOOKUP($D13,specs!$K$5:$L$19,2)*IF($E$1="m",$D14,($D14*0.3048))/1000 -> 0 | N13: =VLOOKUP($D13,specs!$K$5:$L$19,2)*IF($E$1="m",$D14,($D14*0.3048))/1000 -> 0 | O13: =VLOOKUP($D13,specs!$K$5:$L$19,2)*IF($E$1="m",$D14,($D14*0.3048))/1000 -> 0
C14: span length,m | D14: 0 | E14: 0 | F14: =VLOOKUP($D15,specs!$D$5:$H$17,4)/F15*1.03*$E15+F17 -> 0 | G14: =VLOOKUP($D15,specs!$D$5:$H$17,4)/G15*1.03*$E15+G17 -> 0 | H14: =VLOOKUP($D15,specs!$D$5:$H$17,4)/H15*1.03*$E15+H17 -> 0 | I14: =VLOOKUP($D15,specs!$D$5:$H$17,4)/I15*1.03*$E15+I17 -> 0 | J14: =VLOOKUP($D15,specs!$D$5:$H$17,4)/J15*1.03*$E15+J17 -> 0 | K14: =VLOOKUP($D15,specs!$D$5:$H$17,4)/K15*1.03*$E15+K17 -> 0 | L14: =VLOOKUP($D15,specs!$D$5:$H$17,4)/L15*1.03*$E15+L17 -> 0 | M14: =VLOOKUP($D15,specs!$D$5:$H$17,4)/M15*1.03*$E15+M17 -> 0 | N14: =VLOOKUP($D15,specs!$D$5:$H$17,4)/N15*1.03*$E15+N17 -> 0 | O14: =VLOOKUP($D15,specs!$D$5:$H$17,4)/O15*1.03*$E15+O17 -> 0
C15: amplifier | D15: load | E15: 0 | F15: =F18+F17*F16 -> 59.80081428 | G15: =G18+G17*G16 -> 59.80081428 | H15: 59.80081428 | I15: 59.80081428 | J15: 59.80081428 | K15: 59.80081428 | L15: 59.80081428 | M15: 59.80081428 | N15: 59.80081428 | O15: 59.80081428
C16: cable type | D16: cable | E16: 0 | F16: =VLOOKUP($D16,specs!$K$5:$L$19,2)*IF($E$1="m",$D17,($D17*0.3048))/1000 -> 0 | G16: =VLOOKUP($D16,specs!$K$5:$L$19,2)*IF($E$1="m",$D17,($D17*0.3048))/1000 -> 0 | H16: =VLOOKUP($D16,specs!$K$5:$L$19,2)*IF($E$1="m",$D17,($D17*0.3048))/1000 -> 0 | I16: =VLOOKUP($D16,specs!$K$5:$L$19,2)*IF($E$1="m",$D17,($D17*0.3048))/1000 -> 0 | J16: =VLOOKUP($D16,specs!$K$5:$L$19,2)*IF($E$1="m",$D17,($D17*0.3048))/1000 -> 0 | K16: =VLOOKUP($D16,specs!$K$5:$L$19,2)*IF($E$1="m",$D17,($D17*0.3048))/1000 -> 0 | L16: =VLOOKUP($D16,specs!$K$5:$L$19,2)*IF($E$1="m",$D17,($D17*0.3048))/1000 -> 0 | M16: =VLOOKUP($D16,specs!$K$5:$L$19,2)*IF($E$1="m",$D17,($D17*0.3048))/1000 -> 0 | N16: =VLOOKUP($D16,specs!$K$5:$L$19,2)*IF($E$1="m",$D17,($D17*0.3048))/1000 -> 0 | O16: =VLOOKUP($D16,specs!$K$5:$L$19,2)*IF($E$1="m",$D17,($D17*0.3048))/1000 -> 0
C17: span length,m | D17: 0 | E17: 0 | F17: =VLOOKUP($D18,specs!$D$5:$H$17,4)/F18*1.03*$E18+F20 -> 0 | G17: =VLOOKUP($D18,specs!$D$5:$H$17,4)/G18*1.03*$E18+G20 -> 0 | H17: =VLOOKUP($D18,specs!$D$5:$H$17,4)/H18*1.03*$E18+H20 -> 0 | I17: =VLOOKUP($D18,specs!$D$5:$H$17,4)/I18*1.03*$E18+I20 -> 0 | J17: =VLOOKUP($D18,specs!$D$5:$H$17,4)/J18*1.03*$E18+J20 -> 0 | K17: =VLOOKUP($D18,specs!$D$5:$H$17,4)/K18*1.03*$E18+K20 -> 0 | L17: =VLOOKUP($D18,specs!$D$5:$H$17,4)/L18*1.03*$E18+L20 -> 0 | M17: =VLOOKUP($D18,specs!$D$5:$H$17,4)/M18*1.03*$E18+M20 -> 0 | N17: =VLOOKUP($D18,specs!$D$5:$H$17,4)/N18*1.03*$E18+N20 -> 0 | O17: =VLOOKUP($D18,specs!$D$5:$H$17,4)/O18*1.03*$E18+O20 -> 0
C18: amplifier | D18: load | E18: 0 | F18: =F21+F20*F19 -> 59.80081428 | G18: =G21+G20*G19 -> 59.80081428 | H18: 59.80081428 | I18: 59.80081428 | J18: 59.80081428 | K18: 59.80081428 | L18: 59.80081428 | M18: 59.80081428 | N18: 59.80081428 | O18: 59.80081428
C19: cable type | D19: cable | E19: 0 | F19: =VLOOKUP($D19,specs!$K$5:$L$19,2)*IF($E$1="m",$D20,($D20*0.3048))/1000 -> 0 | G19: =VLOOKUP($D19,specs!$K$5:$L$19,2)*IF($E$1="m",$D20,($D20*0.3048))/1000 -> 0 | H19: =VLOOKUP($D19,specs!$K$5:$L$19,2)*IF($E$1="m",$D20,($D20*0.3048))/1000 -> 0 | I19: =VLOOKUP($D19,specs!$K$5:$L$19,2)*IF($E$1="m",$D20,($D20*0.3048))/1000 -> 0 | J19: =VLOOKUP($D19,specs!$K$5:$L$19,2)*IF($E$1="m",$D20,($D20*0.3048))/1000 -> 0 | K19: =VLOOKUP($D19,specs!$K$5:$L$19,2)*IF($E$1="m",$D20,($D20*0.3048))/1000 -> 0 | L19: =VLOOKUP($D19,specs!$K$5:$L$19,2)*IF($E$1="m",$D20,($D20*0.3048))/1000 -> 0 | M19: =VLOOKUP($D19,specs!$K$5:$L$19,2)*IF($E$1="m",$D20,($D20*0.3048))/1000 -> 0 | N19: =VLOOKUP($D19,specs!$K$5:$L$19,2)*IF($E$1="m",$D20,($D20*0.3048))/1000 -> 0 | O19: =VLOOKUP($D19,specs!$K$5:$L$19,2)*IF($E$1="m",$D20,($D20*0.3048))/1000 -> 0
C20: span length,m | D20: 0 | E20: 0 | F20: =VLOOKUP($D21,specs!$D$5:$H$17,4)/F21*1.03*$E21+F23 -> 0 | G20: =VLOOKUP($D21,specs!$D$5:$H$17,4)/G21*1.03*$E21+G23 -> 0 | H20: =VLOOKUP($D21,specs!$D$5:$H$17,4)/H21*1.03*$E21+H23 -> 0 | I20: =VLOOKUP($D21,specs!$D$5:$H$17,4)/I21*1.03*$E21+I23 -> 0 | J20: =VLOOKUP($D21,specs!$D$5:$H$17,4)/J21*1.03*$E21+J23 -> 0 | K20: =VLOOKUP($D21,specs!$D$5:$H$17,4)/K21*1.03*$E21+K23 -> 0 | L20: =VLOOKUP($D21,specs!$D$5:$H$17,4)/L21*1.03*$E21+L23 -> 0 | M20: =VLOOKUP($D21,specs!$D$5:$H$17,4)/M21*1.03*$E21+M23 -> 0 | N20: =VLOOKUP($D21,specs!$D$5:$H$17,4)/N21*1.03*$E21+N23 -> 0 | O20: =VLOOKUP($D21,specs!$D$5:$H$17,4)/O21*1.03*$E21+O23 -> 0
C21: amplifier | D21: load | E21: 0 | F21: =B2 -> 59.80081428 | G21: =F21-(F3-$B$2) -> 59.80081428 | H21: 59.80081428 | I21: 59.80081428 | J21: 59.80081428 | K21: 59.80081428 | L21: 59.80081428 | M21: 59.80081428 | N21: 59.80081428 | O21: 59.80081428
F22: =IF(F21<0,1,0) -> 0 | G22: =IF(G21<0,1,0) -> 0 | H22: 0 | I22: 0 | J22: 0 | K22: 0 | L22: 0 | M22: 0 | N22: 0 | O22: 0
C24: User added Branch
M27: =O21 -> 59.80081428
F34: Main Branch Net42

Sheet Net41 (hidden)
B1: =SUM(F22:O22) -> 0 | D1: =IF(O21<'AUX2'!B6,1,0) -> 0 | E1: =+'AUX2'!J5 -> m
B2: =+'AUX2'!M13 -> 59.80081428 | C2: U start, V | D2: =+O5*1 -> 0.8267445953 | F2: 1 | G2: 2 | H2: 3 | I2: 4 | J2: 5 | K2: 6 | L2: 7 | M2: 8 | N2: 9 | O2: iteration10
E3: mult. | F3: =F6+F5*F4 -> 59.80081428 | G3: =G6+G5*G4 -> 59.80081428 | H3: 59.80081428 | I3: 59.80081428 | J3: 59.80081428 | K3: 59.80081428 | L3: 59.80081428 | M3: 59.80081428 | N3: 59.80081428 | O3: 59.80081428
C4: cable type | D4: cable | E4: 0 | F4: =VLOOKUP($D4,specs!$K$5:$L$19,2)*IF($E$1="m",$D5,($D5*0.3048))/1000 -> 0 | G4: =VLOOKUP($D4,specs!$K$5:$L$19,2)*IF($E$1="m",$D5,($D5*0.3048))/1000 -> 0 | H4: =VLOOKUP($D4,specs!$K$5:$L$19,2)*IF($E$1="m",$D5,($D5*0.3048))/1000 -> 0 | I4: =VLOOKUP($D4,specs!$K$5:$L$19,2)*IF($E$1="m",$D5,($D5*0.3048))/1000 -> 0 | J4: =VLOOKUP($D4,specs!$K$5:$L$19,2)*IF($E$1="m",$D5,($D5*0.3048))/1000 -> 0 | K4: =VLOOKUP($D4,specs!$K$5:$L$19,2)*IF($E$1="m",$D5,($D5*0.3048))/1000 -> 0 | L4: =VLOOKUP($D4,specs!$K$5:$L$19,2)*IF($E$1="m",$D5,($D5*0.3048))/1000 -> 0 | M4: =VLOOKUP($D4,specs!$K$5:$L$19,2)*IF($E$1="m",$D5,($D5*0.3048))/1000 -> 0 | N4: =VLOOKUP($D4,specs!$K$5:$L$19,2)*IF($E$1="m",$D5,($D5*0.3048))/1000 -> 0 | O4: =VLOOKUP($D4,specs!$K$5:$L$19,2)*IF($E$1="m",$D5,($D5*0.3048))/1000 -> 0
C5: span length,m | D5: 0 | E5: 0 | F5: =VLOOKUP($D6,specs!$D$5:$H$17,4)/F6*1.03*$E6+F8 -> 0.8267445953 | G5: =VLOOKUP($D6,specs!$D$5:$H$17,4)/G6*1.03*$E6+G8 -> 0.8267445953 | H5: =VLOOKUP($D6,specs!$D$5:$H$17,4)/H6*1.03*$E6+H8 -> 0.8267445953 | I5: =VLOOKUP($D6,specs!$D$5:$H$17,4)/I6*1.03*$E6+I8 -> 0.8267445953 | J5: =VLOOKUP($D6,specs!$D$5:$H$17,4)/J6*1.03*$E6+J8 -> 0.8267445953 | K5: =VLOOKUP($D6,specs!$D$5:$H$17,4)/K6*1.03*$E6+K8 -> 0.8267445953 | L5: =VLOOKUP($D6,specs!$D$5:$H$17,4)/L6*1.03*$E6+L8 -> 0.8267445953 | M5: =VLOOKUP($D6,specs!$D$5:$H$17,4)/M6*1.03*$E6+M8 -> 0.8267445953 | N5: =VLOOKUP($D6,specs!$D$5:$H$17,4)/N6*1.03*$E6+N8 -> 0.8267445953 | O5: =VLOOKUP($D6,specs!$D$5:$H$17,4)/O6*1.03*$E6+O8 -> 0.8267445953
C6: amplifier | D6: TNA | E6: 1 | F6: =F9+F8*F7 -> 59.80081428 | G6: =G9+G8*G7 -> 59.80081428 | H6: 59.80081428 | I6: 59.80081428 | J6: 59.80081428 | K6: 59.80081428 | L6: 59.80081428 | M6: 59.80081428 | N6: 59.80081428 | O6: 59.80081428
C7: cable type | D7: cable | E7: 0 | F7: =VLOOKUP($D7,specs!$K$5:$L$19,2)*IF($E$1="m",$D8,($D8*0.3048))/1000 -> 0 | G7: =VLOOKUP($D7,specs!$K$5:$L$19,2)*IF($E$1="m",$D8,($D8*0.3048))/1000 -> 0 | H7: =VLOOKUP($D7,specs!$K$5:$L$19,2)*IF($E$1="m",$D8,($D8*0.3048))/1000 -> 0 | I7: =VLOOKUP($D7,specs!$K$5:$L$19,2)*IF($E$1="m",$D8,($D8*0.3048))/1000 -> 0 | J7: =VLOOKUP($D7,specs!$K$5:$L$19,2)*IF($E$1="m",$D8,($D8*0.3048))/1000 -> 0 | K7: =VLOOKUP($D7,specs!$K$5:$L$19,2)*IF($E$1="m",$D8,($D8*0.3048))/1000 -> 0 | L7: =VLOOKUP($D7,specs!$K$5:$L$19,2)*IF($E$1="m",$D8,($D8*0.3048))/1000 -> 0 | M7: =VLOOKUP($D7,specs!$K$5:$L$19,2)*IF($E$1="m",$D8,($D8*0.3048))/1000 -> 0 | N7: =VLOOKUP($D7,specs!$K$5:$L$19,2)*IF($E$1="m",$D8,($D8*0.3048))/1000 -> 0 | O7: =VLOOKUP($D7,specs!$K$5:$L$19,2)*IF($E$1="m",$D8,($D8*0.3048))/1000 -> 0
C8: span length,m | D8: 0 | E8: 0 | F8: =VLOOKUP($D9,specs!$D$5:$H$17,4)/F9*1.03*$E9+F11 -> 0 | G8: =VLOOKUP($D9,specs!$D$5:$H$17,4)/G9*1.03*$E9+G11 -> 0 | H8: =VLOOKUP($D9,specs!$D$5:$H$17,4)/H9*1.03*$E9+H11 -> 0 | I8: =VLOOKUP($D9,specs!$D$5:$H$17,4)/I9*1.03*$E9+I11 -> 0 | J8: =VLOOKUP($D9,specs!$D$5:$H$17,4)/J9*1.03*$E9+J11 -> 0 | K8: =VLOOKUP($D9,specs!$D$5:$H$17,4)/K9*1.03*$E9+K11 -> 0 | L8: =VLOOKUP($D9,specs!$D$5:$H$17,4)/L9*1.03*$E9+L11 -> 0 | M8: =VLOOKUP($D9,specs!$D$5:$H$17,4)/M9*1.03*$E9+M11 -> 0 | N8: =VLOOKUP($D9,specs!$D$5:$H$17,4)/N9*1.03*$E9+N11 -> 0 | O8: =VLOOKUP($D9,specs!$D$5:$H$17,4)/O9*1.03*$E9+O11 -> 0
C9: amplifier | D9: load | E9: 0 | F9: =F12+F11*F10 -> 59.80081428 | G9: =G12+G11*G10 -> 59.80081428 | H9: 59.80081428 | I9: 59.80081428 | J9: 59.80081428 | K9: 59.80081428 | L9: 59.80081428 | M9: 59.80081428 | N9: 59.80081428 | O9: 59.80081428
C10: cable type | D10: cable | E10: 0 | F10: =VLOOKUP($D10,specs!$K$5:$L$19,2)*IF($E$1="m",$D11,($D11*0.3048))/1000 -> 0 | G10: =VLOOKUP($D10,specs!$K$5:$L$19,2)*IF($E$1="m",$D11,($D11*0.3048))/1000 -> 0 | H10: =VLOOKUP($D10,specs!$K$5:$L$19,2)*IF($E$1="m",$D11,($D11*0.3048))/1000 -> 0 | I10: =VLOOKUP($D10,specs!$K$5:$L$19,2)*IF($E$1="m",$D11,($D11*0.3048))/1000 -> 0 | J10: =VLOOKUP($D10,specs!$K$5:$L$19,2)*IF($E$1="m",$D11,($D11*0.3048))/1000 -> 0 | K10: =VLOOKUP($D10,specs!$K$5:$L$19,2)*IF($E$1="m",$D11,($D11*0.3048))/1000 -> 0 | L10: =VLOOKUP($D10,specs!$K$5:$L$19,2)*IF($E$1="m",$D11,($D11*0.3048))/1000 -> 0 | M10: =VLOOKUP($D10,specs!$K$5:$L$19,2)*IF($E$1="m",$D11,($D11*0.3048))/1000 -> 0 | N10: =VLOOKUP($D10,specs!$K$5:$L$19,2)*IF($E$1="m",$D11,($D11*0.3048))/1000 -> 0 | O10: =VLOOKUP($D10,specs!$K$5:$L$19,2)*IF($E$1="m",$D11,($D11*0.3048))/1000 -> 0
C11: span length,m | D11: 0 | E11: 0 | F11: =VLOOKUP($D12,specs!$D$5:$H$17,4)/F12*1.03*$E12+F14 -> 0 | G11: =VLOOKUP($D12,specs!$D$5:$H$17,4)/G12*1.03*$E12+G14 -> 0 | H11: =VLOOKUP($D12,specs!$D$5:$H$17,4)/H12*1.03*$E12+H14 -> 0 | I11: =VLOOKUP($D12,specs!$D$5:$H$17,4)/I12*1.03*$E12+I14 -> 0 | J11: =VLOOKUP($D12,specs!$D$5:$H$17,4)/J12*1.03*$E12+J14 -> 0 | K11: =VLOOKUP($D12,specs!$D$5:$H$17,4)/K12*1.03*$E12+K14 -> 0 | L11: =VLOOKUP($D12,specs!$D$5:$H$17,4)/L12*1.03*$E12+L14 -> 0 | M11: =VLOOKUP($D12,specs!$D$5:$H$17,4)/M12*1.03*$E12+M14 -> 0 | N11: =VLOOKUP($D12,specs!$D$5:$H$17,4)/N12*1.03*$E12+N14 -> 0 | O11: =VLOOKUP($D12,specs!$D$5:$H$17,4)/O12*1.03*$E12+O14 -> 0
C12: amplifier | D12: load | E12: 0 | F12: =F15+F14*F13 -> 59.80081428 | G12: =G15+G14*G13 -> 59.80081428 | H12: 59.80081428 | I12: 59.80081428 | J12: 59.80081428 | K12: 59.80081428 | L12: 59.80081428 | M12: 59.80081428 | N12: 59.80081428 | O12: 59.80081428
C13: cable type | D13: cable | E13: 0 | F13: =VLOOKUP($D13,specs!$K$5:$L$19,2)*IF($E$1="m",$D14,($D14*0.3048))/1000 -> 0 | G13: =VLOOKUP($D13,specs!$K$5:$L$19,2)*IF($E$1="m",$D14,($D14*0.3048))/1000 -> 0 | H13: =VLOOKUP($D13,specs!$K$5:$L$19,2)*IF($E$1="m",$D14,($D14*0.3048))/1000 -> 0 | I13: =VLOOKUP($D13,specs!$K$5:$L$19,2)*IF($E$1="m",$D14,($D14*0.3048))/1000 -> 0 | J13: =VLOOKUP($D13,specs!$K$5:$L$19,2)*IF($E$1="m",$D14,($D14*0.3048))/1000 -> 0 | K13: =VLOOKUP($D13,specs!$K$5:$L$19,2)*IF($E$1="m",$D14,($D14*0.3048))/1000 -> 0 | L13: =VLOOKUP($D13,specs!$K$5:$L$19,2)*IF($E$1="m",$D14,($D14*0.3048))/1000 -> 0 | M13: =VLOOKUP($D13,specs!$K$5:$L$19,2)*IF($E$1="m",$D14,($D14*0.3048))/1000 -> 0 | N13: =VLOOKUP($D13,specs!$K$5:$L$19,2)*IF($E$1="m",$D14,($D14*0.3048))/1000 -> 0 | O13: =VLOOKUP($D13,specs!$K$5:$L$19,2)*IF($E$1="m",$D14,($D14*0.3048))/1000 -> 0
C14: span length,m | D14: 0 | E14: 0 | F14: =VLOOKUP($D15,specs!$D$5:$H$17,4)/F15*1.03*$E15+F17 -> 0 | G14: =VLOOKUP($D15,specs!$D$5:$H$17,4)/G15*1.03*$E15+G17 -> 0 | H14: =VLOOKUP($D15,specs!$D$5:$H$17,4)/H15*1.03*$E15+H17 -> 0 | I14: =VLOOKUP($D15,specs!$D$5:$H$17,4)/I15*1.03*$E15+I17 -> 0 | J14: =VLOOKUP($D15,specs!$D$5:$H$17,4)/J15*1.03*$E15+J17 -> 0 | K14: =VLOOKUP($D15,specs!$D$5:$H$17,4)/K15*1.03*$E15+K17 -> 0 | L14: =VLOOKUP($D15,specs!$D$5:$H$17,4)/L15*1.03*$E15+L17 -> 0 | M14: =VLOOKUP($D15,specs!$D$5:$H$17,4)/M15*1.03*$E15+M17 -> 0 | N14: =VLOOKUP($D15,specs!$D$5:$H$17,4)/N15*1.03*$E15+N17 -> 0 | O14: =VLOOKUP($D15,specs!$D$5:$H$17,4)/O15*1.03*$E15+O17 -> 0
C15: amplifier | D15: load | E15: 0 | F15: =F18+F17*F16 -> 59.80081428 | G15: =G18+G17*G16 -> 59.80081428 | H15: 59.80081428 | I15: 59.80081428 | J15: 59.80081428 | K15: 59.80081428 | L15: 59.80081428 | M15: 59.80081428 | N15: 59.80081428 | O15: 59.80081428
C16: cable type | D16: cable | E16: 0 | F16: =VLOOKUP($D16,specs!$K$5:$L$19,2)*IF($E$1="m",$D17,($D17*0.3048))/1000 -> 0 | G16: =VLOOKUP($D16,specs!$K$5:$L$19,2)*IF($E$1="m",$D17,($D17*0.3048))/1000 -> 0 | H16: =VLOOKUP($D16,specs!$K$5:$L$19,2)*IF($E$1="m",$D17,($D17*0.3048))/1000 -> 0 | I16: =VLOOKUP($D16,specs!$K$5:$L$19,2)*IF($E$1="m",$D17,($D17*0.3048))/1000 -> 0 | J16: =VLOOKUP($D16,specs!$K$5:$L$19,2)*IF($E$1="m",$D17,($D17*0.3048))/1000 -> 0 | K16: =VLOOKUP($D16,specs!$K$5:$L$19,2)*IF($E$1="m",$D17,($D17*0.3048))/1000 -> 0 | L16: =VLOOKUP($D16,specs!$K$5:$L$19,2)*IF($E$1="m",$D17,($D17*0.3048))/1000 -> 0 | M16: =VLOOKUP($D16,specs!$K$5:$L$19,2)*IF($E$1="m",$D17,($D17*0.3048))/1000 -> 0 | N16: =VLOOKUP($D16,specs!$K$5:$L$19,2)*IF($E$1="m",$D17,($D17*0.3048))/1000 -> 0 | O16: =VLOOKUP($D16,specs!$K$5:$L$19,2)*IF($E$1="m",$D17,($D17*0.3048))/1000 -> 0
C17: span length,m | D17: 0 | E17: 0 | F17: =VLOOKUP($D18,specs!$D$5:$H$17,4)/F18*1.03*$E18+F20 -> 0 | G17: =VLOOKUP($D18,specs!$D$5:$H$17,4)/G18*1.03*$E18+G20 -> 0 | H17: =VLOOKUP($D18,specs!$D$5:$H$17,4)/H18*1.03*$E18+H20 -> 0 | I17: =VLOOKUP($D18,specs!$D$5:$H$17,4)/I18*1.03*$E18+I20 -> 0 | J17: =VLOOKUP($D18,specs!$D$5:$H$17,4)/J18*1.03*$E18+J20 -> 0 | K17: =VLOOKUP($D18,specs!$D$5:$H$17,4)/K18*1.03*$E18+K20 -> 0 | L17: =VLOOKUP($D18,specs!$D$5:$H$17,4)/L18*1.03*$E18+L20 -> 0 | M17: =VLOOKUP($D18,specs!$D$5:$H$17,4)/M18*1.03*$E18+M20 -> 0 | N17: =VLOOKUP($D18,specs!$D$5:$H$17,4)/N18*1.03*$E18+N20 -> 0 | O17: =VLOOKUP($D18,specs!$D$5:$H$17,4)/O18*1.03*$E18+O20 -> 0
C18: amplifier | D18: load | E18: 0 | F18: =F21+F20*F19 -> 59.80081428 | G18: =G21+G20*G19 -> 59.80081428 | H18: 59.80081428 | I18: 59.80081428 | J18: 59.80081428 | K18: 59.80081428 | L18: 59.80081428 | M18: 59.80081428 | N18: 59.80081428 | O18: 59.80081428
C19: cable type | D19: cable | E19: 0 | F19: =VLOOKUP($D19,specs!$K$5:$L$19,2)*IF($E$1="m",$D20,($D20*0.3048))/1000 -> 0 | G19: =VLOOKUP($D19,specs!$K$5:$L$19,2)*IF($E$1="m",$D20,($D20*0.3048))/1000 -> 0 | H19: =VLOOKUP($D19,specs!$K$5:$L$19,2)*IF($E$1="m",$D20,($D20*0.3048))/1000 -> 0 | I19: =VLOOKUP($D19,specs!$K$5:$L$19,2)*IF($E$1="m",$D20,($D20*0.3048))/1000 -> 0 | J19: =VLOOKUP($D19,specs!$K$5:$L$19,2)*IF($E$1="m",$D20,($D20*0.3048))/1000 -> 0 | K19: =VLOOKUP($D19,specs!$K$5:$L$19,2)*IF($E$1="m",$D20,($D20*0.3048))/1000 -> 0 | L19: =VLOOKUP($D19,specs!$K$5:$L$19,2)*IF($E$1="m",$D20,($D20*0.3048))/1000 -> 0 | M19: =VLOOKUP($D19,specs!$K$5:$L$19,2)*IF($E$1="m",$D20,($D20*0.3048))/1000 -> 0 | N19: =VLOOKUP($D19,specs!$K$5:$L$19,2)*IF($E$1="m",$D20,($D20*0.3048))/1000 -> 0 | O19: =VLOOKUP($D19,specs!$K$5:$L$19,2)*IF($E$1="m",$D20,($D20*0.3048))/1000 -> 0
C20: span length,m | D20: 0 | E20: 0 | F20: =VLOOKUP($D21,specs!$D$5:$H$17,4)/F21*1.03*$E21+F23 -> 0 | G20: =VLOOKUP($D21,specs!$D$5:$H$17,4)/G21*1.03*$E21+G23 -> 0 | H20: =VLOOKUP($D21,specs!$D$5:$H$17,4)/H21*1.03*$E21+H23 -> 0 | I20: =VLOOKUP($D21,specs!$D$5:$H$17,4)/I21*1.03*$E21+I23 -> 0 | J20: =VLOOKUP($D21,specs!$D$5:$H$17,4)/J21*1.03*$E21+J23 -> 0 | K20: =VLOOKUP($D21,specs!$D$5:$H$17,4)/K21*1.03*$E21+K23 -> 0 | L20: =VLOOKUP($D21,specs!$D$5:$H$17,4)/L21*1.03*$E21+L23 -> 0 | M20: =VLOOKUP($D21,specs!$D$5:$H$17,4)/M21*1.03*$E21+M23 -> 0 | N20: =VLOOKUP($D21,specs!$D$5:$H$17,4)/N21*1.03*$E21+N23 -> 0 | O20: =VLOOKUP($D21,specs!$D$5:$H$17,4)/O21*1.03*$E21+O23 -> 0
C21: amplifier | D21: load | E21: 0 | F21: =B2 -> 59.80081428 | G21: =F21-(F3-$B$2) -> 59.80081428 | H21: 59.80081428 | I21: 59.80081428 | J21: 59.80081428 | K21: 59.80081428 | L21: 59.80081428 | M21: 59.80081428 | N21: 59.80081428 | O21: 59.80081428
F22: =IF(F21<0,1,0) -> 0 | G22: =IF(G21<0,1,0) -> 0 | H22: 0 | I22: 0 | J22: 0 | K22: 0 | L22: 0 | M22: 0 | N22: 0 | O22: 0
C24: User added Branch
M27: =O21 -> 59.80081428
F34: Main Branch Net41

Sheet Net32 (hidden)
B1: =SUM(F22:O22) -> 0 | D1: =IF(O21<'AUX2'!B6,1,0) -> 0 | E1: =+'AUX2'!J5 -> m
B2: ='AUX2'!M12 -> 55.10607686 | C2: U start, V | D2: =+O5*1 -> 0 | F2: 1 | G2: 2 | H2: 3 | I2: 4 | J2: 5 | K2: 6 | L2: 7 | M2: 8 | N2: 9 | O2: iteration10
E3: mult. | F3: =F6+F5*F4 -> 55.10607686 | G3: =G6+G5*G4 -> 55.10607686 | H3: 55.10607686 | I3: 55.10607686 | J3: 55.10607686 | K3: 55.10607686 | L3: 55.10607686 | M3: 55.10607686 | N3: 55.10607686 | O3: 55.10607686
C4: cable type | D4: cable | E4: 0 | F4: =VLOOKUP($D4,specs!$K$5:$L$19,2)*IF($E$1="m",$D5,($D5*0.3048))/1000 -> 0 | G4: =VLOOKUP($D4,specs!$K$5:$L$19,2)*IF($E$1="m",$D5,($D5*0.3048))/1000 -> 0 | H4: =VLOOKUP($D4,specs!$K$5:$L$19,2)*IF($E$1="m",$D5,($D5*0.3048))/1000 -> 0 | I4: =VLOOKUP($D4,specs!$K$5:$L$19,2)*IF($E$1="m",$D5,($D5*0.3048))/1000 -> 0 | J4: =VLOOKUP($D4,specs!$K$5:$L$19,2)*IF($E$1="m",$D5,($D5*0.3048))/1000 -> 0 | K4: =VLOOKUP($D4,specs!$K$5:$L$19,2)*IF($E$1="m",$D5,($D5*0.3048))/1000 -> 0 | L4: =VLOOKUP($D4,specs!$K$5:$L$19,2)*IF($E$1="m",$D5,($D5*0.3048))/1000 -> 0 | M4: =VLOOKUP($D4,specs!$K$5:$L$19,2)*IF($E$1="m",$D5,($D5*0.3048))/1000 -> 0 | N4: =VLOOKUP($D4,specs!$K$5:$L$19,2)*IF($E$1="m",$D5,($D5*0.3048))/1000 -> 0 | O4: =VLOOKUP($D4,specs!$K$5:$L$19,2)*IF($E$1="m",$D5,($D5*0.3048))/1000 -> 0
C5: span length,m | D5: 0 | E5: 0 | F5: =VLOOKUP($D6,specs!$D$5:$H$17,4)/F6*1.03*$E6+F8 -> 0 | G5: =VLOOKUP($D6,specs!$D$5:$H$17,4)/G6*1.03*$E6+G8 -> 0 | H5: =VLOOKUP($D6,specs!$D$5:$H$17,4)/H6*1.03*$E6+H8 -> 0 | I5: =VLOOKUP($D6,specs!$D$5:$H$17,4)/I6*1.03*$E6+I8 -> 0 | J5: =VLOOKUP($D6,specs!$D$5:$H$17,4)/J6*1.03*$E6+J8 -> 0 | K5: =VLOOKUP($D6,specs!$D$5:$H$17,4)/K6*1.03*$E6+K8 -> 0 | L5: =VLOOKUP($D6,specs!$D$5:$H$17,4)/L6*1.03*$E6+L8 -> 0 | M5: =VLOOKUP($D6,specs!$D$5:$H$17,4)/M6*1.03*$E6+M8 -> 0 | N5: =VLOOKUP($D6,specs!$D$5:$H$17,4)/N6*1.03*$E6+N8 -> 0 | O5: =VLOOKUP($D6,specs!$D$5:$H$17,4)/O6*1.03*$E6+O8 -> 0
C6: amplifier | D6: load | E6: 0 | F6: =F9+F8*F7 -> 55.10607686 | G6: =G9+G8*G7 -> 55.10607686 | H6: 55.10607686 | I6: 55.10607686 | J6: 55.10607686 | K6: 55.10607686 | L6: 55.10607686 | M6: 55.10607686 | N6: 55.10607686 | O6: 55.10607686
C7: cable type | D7: cable | E7: 0 | F7: =VLOOKUP($D7,specs!$K$5:$L$19,2)*IF($E$1="m",$D8,($D8*0.3048))/1000 -> 0 | G7: =VLOOKUP($D7,specs!$K$5:$L$19,2)*IF($E$1="m",$D8,($D8*0.3048))/1000 -> 0 | H7: =VLOOKUP($D7,specs!$K$5:$L$19,2)*IF($E$1="m",$D8,($D8*0.3048))/1000 -> 0 | I7: =VLOOKUP($D7,specs!$K$5:$L$19,2)*IF($E$1="m",$D8,($D8*0.3048))/1000 -> 0 | J7: =VLOOKUP($D7,specs!$K$5:$L$19,2)*IF($E$1="m",$D8,($D8*0.3048))/1000 -> 0 | K7: =VLOOKUP($D7,specs!$K$5:$L$19,2)*IF($E$1="m",$D8,($D8*0.3048))/1000 -> 0 | L7: =VLOOKUP($D7,specs!$K$5:$L$19,2)*IF($E$1="m",$D8,($D8*0.3048))/1000 -> 0 | M7: =VLOOKUP($D7,specs!$K$5:$L$19,2)*IF($E$1="m",$D8,($D8*0.3048))/1000 -> 0 | N7: =VLOOKUP($D7,specs!$K$5:$L$19,2)*IF($E$1="m",$D8,($D8*0.3048))/1000 -> 0 | O7: =VLOOKUP($D7,specs!$K$5:$L$19,2)*IF($E$1="m",$D8,($D8*0.3048))/1000 -> 0
C8: span length,m | D8: 0 | E8: 0 | F8: =VLOOKUP($D9,specs!$D$5:$H$17,4)/F9*1.03*$E9+F11 -> 0 | G8: =VLOOKUP($D9,specs!$D$5:$H$17,4)/G9*1.03*$E9+G11 -> 0 | H8: =VLOOKUP($D9,specs!$D$5:$H$17,4)/H9*1.03*$E9+H11 -> 0 | I8: =VLOOKUP($D9,specs!$D$5:$H$17,4)/I9*1.03*$E9+I11 -> 0 | J8: =VLOOKUP($D9,specs!$D$5:$H$17,4)/J9*1.03*$E9+J11 -> 0 | K8: =VLOOKUP($D9,specs!$D$5:$H$17,4)/K9*1.03*$E9+K11 -> 0 | L8: =VLOOKUP($D9,specs!$D$5:$H$17,4)/L9*1.03*$E9+L11 -> 0 | M8: =VLOOKUP($D9,specs!$D$5:$H$17,4)/M9*1.03*$E9+M11 -> 0 | N8: =VLOOKUP($D9,specs!$D$5:$H$17,4)/N9*1.03*$E9+N11 -> 0 | O8: =VLOOKUP($D9,specs!$D$5:$H$17,4)/O9*1.03*$E9+O11 -> 0
C9: amplifier | D9: load | E9: 0 | F9: =F12+F11*F10 -> 55.10607686 | G9: =G12+G11*G10 -> 55.10607686 | H9: 55.10607686 | I9: 55.10607686 | J9: 55.10607686 | K9: 55.10607686 | L9: 55.10607686 | M9: 55.10607686 | N9: 55.10607686 | O9: 55.10607686
C10: cable type | D10: cable | E10: 0 | F10: =VLOOKUP($D10,specs!$K$5:$L$19,2)*IF($E$1="m",$D11,($D11*0.3048))/1000 -> 0 | G10: =VLOOKUP($D10,specs!$K$5:$L$19,2)*IF($E$1="m",$D11,($D11*0.3048))/1000 -> 0 | H10: =VLOOKUP($D10,specs!$K$5:$L$19,2)*IF($E$1="m",$D11,($D11*0.3048))/1000 -> 0 | I10: =VLOOKUP($D10,specs!$K$5:$L$19,2)*IF($E$1="m",$D11,($D11*0.3048))/1000 -> 0 | J10: =VLOOKUP($D10,specs!$K$5:$L$19,2)*IF($E$1="m",$D11,($D11*0.3048))/1000 -> 0 | K10: =VLOOKUP($D10,specs!$K$5:$L$19,2)*IF($E$1="m",$D11,($D11*0.3048))/1000 -> 0 | L10: =VLOOKUP($D10,specs!$K$5:$L$19,2)*IF($E$1="m",$D11,($D11*0.3048))/1000 -> 0 | M10: =VLOOKUP($D10,specs!$K$5:$L$19,2)*IF($E$1="m",$D11,($D11*0.3048))/1000 -> 0 | N10: =VLOOKUP($D10,specs!$K$5:$L$19,2)*IF($E$1="m",$D11,($D11*0.3048))/1000 -> 0 | O10: =VLOOKUP($D10,specs!$K$5:$L$19,2)*IF($E$1="m",$D11,($D11*0.3048))/1000 -> 0
C11: span length,m | D11: 0 | E11: 0 | F11: =VLOOKUP($D12,specs!$D$5:$H$17,4)/F12*1.03*$E12+F14 -> 0 | G11: =VLOOKUP($D12,specs!$D$5:$H$17,4)/G12*1.03*$E12+G14 -> 0 | H11: =VLOOKUP($D12,specs!$D$5:$H$17,4)/H12*1.03*$E12+H14 -> 0 | I11: =VLOOKUP($D12,specs!$D$5:$H$17,4)/I12*1.03*$E12+I14 -> 0 | J11: =VLOOKUP($D12,specs!$D$5:$H$17,4)/J12*1.03*$E12+J14 -> 0 | K11: =VLOOKUP($D12,specs!$D$5:$H$17,4)/K12*1.03*$E12+K14 -> 0 | L11: =VLOOKUP($D12,specs!$D$5:$H$17,4)/L12*1.03*$E12+L14 -> 0 | M11: =VLOOKUP($D12,specs!$D$5:$H$17,4)/M12*1.03*$E12+M14 -> 0 | N11: =VLOOKUP($D12,specs!$D$5:$H$17,4)/N12*1.03*$E12+N14 -> 0 | O11: =VLOOKUP($D12,specs!$D$5:$H$17,4)/O12*1.03*$E12+O14 -> 0
C12: amplifier | D12: load | E12: 0 | F12: =F15+F14*F13 -> 55.10607686 | G12: =G15+G14*G13 -> 55.10607686 | H12: 55.10607686 | I12: 55.10607686 | J12: 55.10607686 | K12: 55.10607686 | L12: 55.10607686 | M12: 55.10607686 | N12: 55.10607686 | O12: 55.10607686
C13: cable type | D13: cable | E13: 0 | F13: =VLOOKUP($D13,specs!$K$5:$L$19,2)*IF($E$1="m",$D14,($D14*0.3048))/1000 -> 0 | G13: =VLOOKUP($D13,specs!$K$5:$L$19,2)*IF($E$1="m",$D14,($D14*0.3048))/1000 -> 0 | H13: =VLOOKUP($D13,specs!$K$5:$L$19,2)*IF($E$1="m",$D14,($D14*0.3048))/1000 -> 0 | I13: =VLOOKUP($D13,specs!$K$5:$L$19,2)*IF($E$1="m",$D14,($D14*0.3048))/1000 -> 0 | J13: =VLOOKUP($D13,specs!$K$5:$L$19,2)*IF($E$1="m",$D14,($D14*0.3048))/1000 -> 0 | K13: =VLOOKUP($D13,specs!$K$5:$L$19,2)*IF($E$1="m",$D14,($D14*0.3048))/1000 -> 0 | L13: =VLOOKUP($D13,specs!$K$5:$L$19,2)*IF($E$1="m",$D14,($D14*0.3048))/1000 -> 0 | M13: =VLOOKUP($D13,specs!$K$5:$L$19,2)*IF($E$1="m",$D14,($D14*0.3048))/1000 -> 0 | N13: =VLOOKUP($D13,specs!$K$5:$L$19,2)*IF($E$1="m",$D14,($D14*0.3048))/1000 -> 0 | O13: =VLOOKUP($D13,specs!$K$5:$L$19,2)*IF($E$1="m",$D14,($D14*0.3048))/1000 -> 0
C14: span length,m | D14: 0 | E14: 0 | F14: =VLOOKUP($D15,specs!$D$5:$H$17,4)/F15*1.03*$E15+F17 -> 0 | G14: =VLOOKUP($D15,specs!$D$5:$H$17,4)/G15*1.03*$E15+G17 -> 0 | H14: =VLOOKUP($D15,specs!$D$5:$H$17,4)/H15*1.03*$E15+H17 -> 0 | I14: =VLOOKUP($D15,specs!$D$5:$H$17,4)/I15*1.03*$E15+I17 -> 0 | J14: =VLOOKUP($D15,specs!$D$5:$H$17,4)/J15*1.03*$E15+J17 -> 0 | K14: =VLOOKUP($D15,specs!$D$5:$H$17,4)/K15*1.03*$E15+K17 -> 0 | L14: =VLOOKUP($D15,specs!$D$5:$H$17,4)/L15*1.03*$E15+L17 -> 0 | M14: =VLOOKUP($D15,specs!$D$5:$H$17,4)/M15*1.03*$E15+M17 -> 0 | N14: =VLOOKUP($D15,specs!$D$5:$H$17,4)/N15*1.03*$E15+N17 -> 0 | O14: =VLOOKUP($D15,specs!$D$5:$H$17,4)/O15*1.03*$E15+O17 -> 0
C15: amplifier | D15: load | E15: 0 | F15: =F18+F17*F16 -> 55.10607686 | G15: =G18+G17*G16 -> 55.10607686 | H15: 55.10607686 | I15: 55.10607686 | J15: 55.10607686 | K15: 55.10607686 | L15: 55.10607686 | M15: 55.10607686 | N15: 55.10607686 | O15: 55.10607686
C16: cable type | D16: cable | E16: 0 | F16: =VLOOKUP($D16,specs!$K$5:$L$19,2)*IF($E$1="m",$D17,($D17*0.3048))/1000 -> 0 | G16: =VLOOKUP($D16,specs!$K$5:$L$19,2)*IF($E$1="m",$D17,($D17*0.3048))/1000 -> 0 | H16: =VLOOKUP($D16,specs!$K$5:$L$19,2)*IF($E$1="m",$D17,($D17*0.3048))/1000 -> 0 | I16: =VLOOKUP($D16,specs!$K$5:$L$19,2)*IF($E$1="m",$D17,($D17*0.3048))/1000 -> 0 | J16: =VLOOKUP($D16,specs!$K$5:$L$19,2)*IF($E$1="m",$D17,($D17*0.3048))/1000 -> 0 | K16: =VLOOKUP($D16,specs!$K$5:$L$19,2)*IF($E$1="m",$D17,($D17*0.3048))/1000 -> 0 | L16: =VLOOKUP($D16,specs!$K$5:$L$19,2)*IF($E$1="m",$D17,($D17*0.3048))/1000 -> 0 | M16: =VLOOKUP($D16,specs!$K$5:$L$19,2)*IF($E$1="m",$D17,($D17*0.3048))/1000 -> 0 | N16: =VLOOKUP($D16,specs!$K$5:$L$19,2)*IF($E$1="m",$D17,($D17*0.3048))/1000 -> 0 | O16: =VLOOKUP($D16,specs!$K$5:$L$19,2)*IF($E$1="m",$D17,($D17*0.3048))/1000 -> 0
C17: span length,m | D17: 0 | E17: 0 | F17: =VLOOKUP($D18,specs!$D$5:$H$17,4)/F18*1.03*$E18+F20 -> 0 | G17: =VLOOKUP($D18,specs!$D$5:$H$17,4)/G18*1.03*$E18+G20 -> 0 | H17: =VLOOKUP($D18,specs!$D$5:$H$17,4)/H18*1.03*$E18+H20 -> 0 | I17: =VLOOKUP($D18,specs!$D$5:$H$17,4)/I18*1.03*$E18+I20 -> 0 | J17: =VLOOKUP($D18,specs!$D$5:$H$17,4)/J18*1.03*$E18+J20 -> 0 | K17: =VLOOKUP($D18,specs!$D$5:$H$17,4)/K18*1.03*$E18+K20 -> 0 | L17: =VLOOKUP($D18,specs!$D$5:$H$17,4)/L18*1.03*$E18+L20 -> 0 | M17: =VLOOKUP($D18,specs!$D$5:$H$17,4)/M18*1.03*$E18+M20 -> 0 | N17: =VLOOKUP($D18,specs!$D$5:$H$17,4)/N18*1.03*$E18+N20 -> 0 | O17: =VLOOKUP($D18,specs!$D$5:$H$17,4)/O18*1.03*$E18+O20 -> 0
C18: amplifier | D18: load | E18: 0 | F18: =F21+F20*F19 -> 55.10607686 | G18: =G21+G20*G19 -> 55.10607686 | H18: 55.10607686 | I18: 55.10607686 | J18: 55.10607686 | K18: 55.10607686 | L18: 55.10607686 | M18: 55.10607686 | N18: 55.10607686 | O18: 55.10607686
C19: cable type | D19: cable | E19: 0 | F19: =VLOOKUP($D19,specs!$K$5:$L$19,2)*IF($E$1="m",$D20,($D20*0.3048))/1000 -> 0 | G19: =VLOOKUP($D19,specs!$K$5:$L$19,2)*IF($E$1="m",$D20,($D20*0.3048))/1000 -> 0 | H19: =VLOOKUP($D19,specs!$K$5:$L$19,2)*IF($E$1="m",$D20,($D20*0.3048))/1000 -> 0 | I19: =VLOOKUP($D19,specs!$K$5:$L$19,2)*IF($E$1="m",$D20,($D20*0.3048))/1000 -> 0 | J19: =VLOOKUP($D19,specs!$K$5:$L$19,2)*IF($E$1="m",$D20,($D20*0.3048))/1000 -> 0 | K19: =VLOOKUP($D19,specs!$K$5:$L$19,2)*IF($E$1="m",$D20,($D20*0.3048))/1000 -> 0 | L19: =VLOOKUP($D19,specs!$K$5:$L$19,2)*IF($E$1="m",$D20,($D20*0.3048))/1000 -> 0 | M19: =VLOOKUP($D19,specs!$K$5:$L$19,2)*IF($E$1="m",$D20,($D20*0.3048))/1000 -> 0 | N19: =VLOOKUP($D19,specs!$K$5:$L$19,2)*IF($E$1="m",$D20,($D20*0.3048))/1000 -> 0 | O19: =VLOOKUP($D19,specs!$K$5:$L$19,2)*IF($E$1="m",$D20,($D20*0.3048))/1000 -> 0
C20: span length,m | D20: 0 | E20: 0 | F20: =VLOOKUP($D21,specs!$D$5:$H$17,4)/F21*1.03*$E21+F23 -> 0 | G20: =VLOOKUP($D21,specs!$D$5:$H$17,4)/G21*1.03*$E21+G23 -> 0 | H20: =VLOOKUP($D21,specs!$D$5:$H$17,4)/H21*1.03*$E21+H23 -> 0 | I20: =VLOOKUP($D21,specs!$D$5:$H$17,4)/I21*1.03*$E21+I23 -> 0 | J20: =VLOOKUP($D21,specs!$D$5:$H$17,4)/J21*1.03*$E21+J23 -> 0 | K20: =VLOOKUP($D21,specs!$D$5:$H$17,4)/K21*1.03*$E21+K23 -> 0 | L20: =VLOOKUP($D21,specs!$D$5:$H$17,4)/L21*1.03*$E21+L23 -> 0 | M20: =VLOOKUP($D21,specs!$D$5:$H$17,4)/M21*1.03*$E21+M23 -> 0 | N20: =VLOOKUP($D21,specs!$D$5:$H$17,4)/N21*1.03*$E21+N23 -> 0 | O20: =VLOOKUP($D21,specs!$D$5:$H$17,4)/O21*1.03*$E21+O23 -> 0
C21: amplifier | D21: load | E21: 0 | F21: =B2 -> 55.10607686 | G21: =F21-(F3-$B$2) -> 55.10607686 | H21: 55.10607686 | I21: 55.10607686 | J21: 55.10607686 | K21: 55.10607686 | L21: 55.10607686 | M21: 55.10607686 | N21: 55.10607686 | O21: 55.10607686
F22: =IF(F21<0,1,0) -> 0 | G22: =IF(G21<0,1,0) -> 0 | H22: 0 | I22: 0 | J22: 0 | K22: 0 | L22: 0 | M22: 0 | N22: 0 | O22: 0
C24: User added Branch
M27: =O21 -> 55.10607686
F34: Main Branch Net32

Sheet Net31 (hidden)
B1: =SUM(F22:O22) -> 0 | D1: =IF(O21<'AUX2'!B6,1,0) -> 0 | E1: =+'AUX2'!J5 -> m
B2: =+'AUX2'!M11 -> 55.10607686 | C2: U start, V | D2: =+O5*1 -> 0 | F2: 1 | G2: 2 | H2: 3 | I2: 4 | J2: 5 | K2: 6 | L2: 7 | M2: 8 | N2: 9 | O2: iteration10
E3: mult. | F3: =F6+F5*F4 -> 55.10607686 | G3: =G6+G5*G4 -> 55.10607686 | H3: 55.10607686 | I3: 55.10607686 | J3: 55.10607686 | K3: 55.10607686 | L3: 55.10607686 | M3: 55.10607686 | N3: 55.10607686 | O3: 55.10607686
C4: cable type | D4: cable | E4: 0 | F4: =VLOOKUP($D4,specs!$K$5:$L$19,2)*IF($E$1="m",$D5,($D5*0.3048))/1000 -> 0 | G4: =VLOOKUP($D4,specs!$K$5:$L$19,2)*IF($E$1="m",$D5,($D5*0.3048))/1000 -> 0 | H4: =VLOOKUP($D4,specs!$K$5:$L$19,2)*IF($E$1="m",$D5,($D5*0.3048))/1000 -> 0 | I4: =VLOOKUP($D4,specs!$K$5:$L$19,2)*IF($E$1="m",$D5,($D5*0.3048))/1000 -> 0 | J4: =VLOOKUP($D4,specs!$K$5:$L$19,2)*IF($E$1="m",$D5,($D5*0.3048))/1000 -> 0 | K4: =VLOOKUP($D4,specs!$K$5:$L$19,2)*IF($E$1="m",$D5,($D5*0.3048))/1000 -> 0 | L4: =VLOOKUP($D4,specs!$K$5:$L$19,2)*IF($E$1="m",$D5,($D5*0.3048))/1000 -> 0 | M4: =VLOOKUP($D4,specs!$K$5:$L$19,2)*IF($E$1="m",$D5,($D5*0.3048))/1000 -> 0 | N4: =VLOOKUP($D4,specs!$K$5:$L$19,2)*IF($E$1="m",$D5,($D5*0.3048))/1000 -> 0 | O4: =VLOOKUP($D4,specs!$K$5:$L$19,2)*IF($E$1="m",$D5,($D5*0.3048))/1000 -> 0
C5: span length,m | D5: 0 | E5: 0 | F5: =VLOOKUP($D6,specs!$D$5:$H$17,4)/F6*1.03*$E6+F8 -> 0 | G5: =VLOOKUP($D6,specs!$D$5:$H$17,4)/G6*1.03*$E6+G8 -> 0 | H5: =VLOOKUP($D6,specs!$D$5:$H$17,4)/H6*1.03*$E6+H8 -> 0 | I5: =VLOOKUP($D6,specs!$D$5:$H$17,4)/I6*1.03*$E6+I8 -> 0 | J5: =VLOOKUP($D6,specs!$D$5:$H$17,4)/J6*1.03*$E6+J8 -> 0 | K5: =VLOOKUP($D6,specs!$D$5:$H$17,4)/K6*1.03*$E6+K8 -> 0 | L5: =VLOOKUP($D6,specs!$D$5:$H$17,4)/L6*1.03*$E6+L8 -> 0 | M5: =VLOOKUP($D6,specs!$D$5:$H$17,4)/M6*1.03*$E6+M8 -> 0 | N5: =VLOOKUP($D6,specs!$D$5:$H$17,4)/N6*1.03*$E6+N8 -> 0 | O5: =VLOOKUP($D6,specs!$D$5:$H$17,4)/O6*1.03*$E6+O8 -> 0
C6: amplifier | D6: load | E6: 0 | F6: =F9+F8*F7 -> 55.10607686 | G6: =G9+G8*G7 -> 55.10607686 | H6: 55.10607686 | I6: 55.10607686 | J6: 55.10607686 | K6: 55.10607686 | L6: 55.10607686 | M6: 55.10607686 | N6: 55.10607686 | O6: 55.10607686
C7: cable type | D7: cable | E7: 0 | F7: =VLOOKUP($D7,specs!$K$5:$L$19,2)*IF($E$1="m",$D8,($D8*0.3048))/1000 -> 0 | G7: =VLOOKUP($D7,specs!$K$5:$L$19,2)*IF($E$1="m",$D8,($D8*0.3048))/1000 -> 0 | H7: =VLOOKUP($D7,specs!$K$5:$L$19,2)*IF($E$1="m",$D8,($D8*0.3048))/1000 -> 0 | I7: =VLOOKUP($D7,specs!$K$5:$L$19,2)*IF($E$1="m",$D8,($D8*0.3048))/1000 -> 0 | J7: =VLOOKUP($D7,specs!$K$5:$L$19,2)*IF($E$1="m",$D8,($D8*0.3048))/1000 -> 0 | K7: =VLOOKUP($D7,specs!$K$5:$L$19,2)*IF($E$1="m",$D8,($D8*0.3048))/1000 -> 0 | L7: =VLOOKUP($D7,specs!$K$5:$L$19,2)*IF($E$1="m",$D8,($D8*0.3048))/1000 -> 0 | M7: =VLOOKUP($D7,specs!$K$5:$L$19,2)*IF($E$1="m",$D8,($D8*0.3048))/1000 -> 0 | N7: =VLOOKUP($D7,specs!$K$5:$L$19,2)*IF($E$1="m",$D8,($D8*0.3048))/1000 -> 0 | O7: =VLOOKUP($D7,specs!$K$5:$L$19,2)*IF($E$1="m",$D8,($D8*0.3048))/1000 -> 0
C8: span length,m | D8: 0 | E8: 0 | F8: =VLOOKUP($D9,specs!$D$5:$H$17,4)/F9*1.03*$E9+F11 -> 0 | G8: =VLOOKUP($D9,specs!$D$5:$H$17,4)/G9*1.03*$E9+G11 -> 0 | H8: =VLOOKUP($D9,specs!$D$5:$H$17,4)/H9*1.03*$E9+H11 -> 0 | I8: =VLOOKUP($D9,specs!$D$5:$H$17,4)/I9*1.03*$E9+I11 -> 0 | J8: =VLOOKUP($D9,specs!$D$5:$H$17,4)/J9*1.03*$E9+J11 -> 0 | K8: =VLOOKUP($D9,specs!$D$5:$H$17,4)/K9*1.03*$E9+K11 -> 0 | L8: =VLOOKUP($D9,specs!$D$5:$H$17,4)/L9*1.03*$E9+L11 -> 0 | M8: =VLOOKUP($D9,specs!$D$5:$H$17,4)/M9*1.03*$E9+M11 -> 0 | N8: =VLOOKUP($D9,specs!$D$5:$H$17,4)/N9*1.03*$E9+N11 -> 0 | O8: =VLOOKUP($D9,specs!$D$5:$H$17,4)/O9*1.03*$E9+O11 -> 0
C9: amplifier | D9: load | E9: 0 | F9: =F12+F11*F10 -> 55.10607686 | G9: =G12+G11*G10 -> 55.10607686 | H9: 55.10607686 | I9: 55.10607686 | J9: 55.10607686 | K9: 55.10607686 | L9: 55.10607686 | M9: 55.10607686 | N9: 55.10607686 | O9: 55.10607686
C10: cable type | D10: cable | E10: 0 | F10: =VLOOKUP($D10,specs!$K$5:$L$19,2)*IF($E$1="m",$D11,($D11*0.3048))/1000 -> 0 | G10: =VLOOKUP($D10,specs!$K$5:$L$19,2)*IF($E$1="m",$D11,($D11*0.3048))/1000 -> 0 | H10: =VLOOKUP($D10,specs!$K$5:$L$19,2)*IF($E$1="m",$D11,($D11*0.3048))/1000 -> 0 | I10: =VLOOKUP($D10,specs!$K$5:$L$19,2)*IF($E$1="m",$D11,($D11*0.3048))/1000 -> 0 | J10: =VLOOKUP($D10,specs!$K$5:$L$19,2)*IF($E$1="m",$D11,($D11*0.3048))/1000 -> 0 | K10: =VLOOKUP($D10,specs!$K$5:$L$19,2)*IF($E$1="m",$D11,($D11*0.3048))/1000 -> 0 | L10: =VLOOKUP($D10,specs!$K$5:$L$19,2)*IF($E$1="m",$D11,($D11*0.3048))/1000 -> 0 | M10: =VLOOKUP($D10,specs!$K$5:$L$19,2)*IF($E$1="m",$D11,($D11*0.3048))/1000 -> 0 | N10: =VLOOKUP($D10,specs!$K$5:$L$19,2)*IF($E$1="m",$D11,($D11*0.3048))/1000 -> 0 | O10: =VLOOKUP($D10,specs!$K$5:$L$19,2)*IF($E$1="m",$D11,($D11*0.3048))/1000 -> 0
C11: span length,m | D11: 0 | E11: 0 | F11: =VLOOKUP($D12,specs!$D$5:$H$17,4)/F12*1.03*$E12+F14 -> 0 | G11: =VLOOKUP($D12,specs!$D$5:$H$17,4)/G12*1.03*$E12+G14 -> 0 | H11: =VLOOKUP($D12,specs!$D$5:$H$17,4)/H12*1.03*$E12+H14 -> 0 | I11: =VLOOKUP($D12,specs!$D$5:$H$17,4)/I12*1.03*$E12+I14 -> 0 | J11: =VLOOKUP($D12,specs!$D$5:$H$17,4)/J12*1.03*$E12+J14 -> 0 | K11: =VLOOKUP($D12,specs!$D$5:$H$17,4)/K12*1.03*$E12+K14 -> 0 | L11: =VLOOKUP($D12,specs!$D$5:$H$17,4)/L12*1.03*$E12+L14 -> 0 | M11: =VLOOKUP($D12,specs!$D$5:$H$17,4)/M12*1.03*$E12+M14 -> 0 | N11: =VLOOKUP($D12,specs!$D$5:$H$17,4)/N12*1.03*$E12+N14 -> 0 | O11: =VLOOKUP($D12,specs!$D$5:$H$17,4)/O12*1.03*$E12+O14 -> 0
C12: amplifier | D12: load | E12: 0 | F12: =F15+F14*F13 -> 55.10607686 | G12: =G15+G14*G13 -> 55.10607686 | H12: 55.10607686 | I12: 55.10607686 | J12: 55.10607686 | K12: 55.10607686 | L12: 55.10607686 | M12: 55.10607686 | N12: 55.10607686 | O12: 55.10607686
C13: cable type | D13: cable | E13: 0 | F13: =VLOOKUP($D13,specs!$K$5:$L$19,2)*IF($E$1="m",$D14,($D14*0.3048))/1000 -> 0 | G13: =VLOOKUP($D13,specs!$K$5:$L$19,2)*IF($E$1="m",$D14,($D14*0.3048))/1000 -> 0 | H13: =VLOOKUP($D13,specs!$K$5:$L$19,2)*IF($E$1="m",$D14,($D14*0.3048))/1000 -> 0 | I13: =VLOOKUP($D13,specs!$K$5:$L$19,2)*IF($E$1="m",$D14,($D14*0.3048))/1000 -> 0 | J13: =VLOOKUP($D13,specs!$K$5:$L$19,2)*IF($E$1="m",$D14,($D14*0.3048))/1000 -> 0 | K13: =VLOOKUP($D13,specs!$K$5:$L$19,2)*IF($E$1="m",$D14,($D14*0.3048))/1000 -> 0 | L13: =VLOOKUP($D13,specs!$K$5:$L$19,2)*IF($E$1="m",$D14,($D14*0.3048))/1000 -> 0 | M13: =VLOOKUP($D13,specs!$K$5:$L$19,2)*IF($E$1="m",$D14,($D14*0.3048))/1000 -> 0 | N13: =VLOOKUP($D13,specs!$K$5:$L$19,2)*IF($E$1="m",$D14,($D14*0.3048))/1000 -> 0 | O13: =VLOOKUP($D13,specs!$K$5:$L$19,2)*IF($E$1="m",$D14,($D14*0.3048))/1000 -> 0
C14: span length,m | D14: 0 | E14: 0 | F14: =VLOOKUP($D15,specs!$D$5:$H$17,4)/F15*1.03*$E15+F17 -> 0 | G14: =VLOOKUP($D15,specs!$D$5:$H$17,4)/G15*1.03*$E15+G17 -> 0 | H14: =VLOOKUP($D15,specs!$D$5:$H$17,4)/H15*1.03*$E15+H17 -> 0 | I14: =VLOOKUP($D15,specs!$D$5:$H$17,4)/I15*1.03*$E15+I17 -> 0 | J14: =VLOOKUP($D15,specs!$D$5:$H$17,4)/J15*1.03*$E15+J17 -> 0 | K14: =VLOOKUP($D15,specs!$D$5:$H$17,4)/K15*1.03*$E15+K17 -> 0 | L14: =VLOOKUP($D15,specs!$D$5:$H$17,4)/L15*1.03*$E15+L17 -> 0 | M14: =VLOOKUP($D15,specs!$D$5:$H$17,4)/M15*1.03*$E15+M17 -> 0 | N14: =VLOOKUP($D15,specs!$D$5:$H$17,4)/N15*1.03*$E15+N17 -> 0 | O14: =VLOOKUP($D15,specs!$D$5:$H$17,4)/O15*1.03*$E15+O17 -> 0
C15: amplifier | D15: load | E15: 0 | F15: =F18+F17*F16 -> 55.10607686 | G15: =G18+G17*G16 -> 55.10607686 | H15: 55.10607686 | I15: 55.10607686 | J15: 55.10607686 | K15: 55.10607686 | L15: 55.10607686 | M15: 55.10607686 | N15: 55.10607686 | O15: 55.10607686
C16: cable type | D16: cable | E16: 0 | F16: =VLOOKUP($D16,specs!$K$5:$L$19,2)*IF($E$1="m",$D17,($D17*0.3048))/1000 -> 0 | G16: =VLOOKUP($D16,specs!$K$5:$L$19,2)*IF($E$1="m",$D17,($D17*0.3048))/1000 -> 0 | H16: =VLOOKUP($D16,specs!$K$5:$L$19,2)*IF($E$1="m",$D17,($D17*0.3048))/1000 -> 0 | I16: =VLOOKUP($D16,specs!$K$5:$L$19,2)*IF($E$1="m",$D17,($D17*0.3048))/1000 -> 0 | J16: =VLOOKUP($D16,specs!$K$5:$L$19,2)*IF($E$1="m",$D17,($D17*0.3048))/1000 -> 0 | K16: =VLOOKUP($D16,specs!$K$5:$L$19,2)*IF($E$1="m",$D17,($D17*0.3048))/1000 -> 0 | L16: =VLOOKUP($D16,specs!$K$5:$L$19,2)*IF($E$1="m",$D17,($D17*0.3048))/1000 -> 0 | M16: =VLOOKUP($D16,specs!$K$5:$L$19,2)*IF($E$1="m",$D17,($D17*0.3048))/1000 -> 0 | N16: =VLOOKUP($D16,specs!$K$5:$L$19,2)*IF($E$1="m",$D17,($D17*0.3048))/1000 -> 0 | O16: =VLOOKUP($D16,specs!$K$5:$L$19,2)*IF($E$1="m",$D17,($D17*0.3048))/1000 -> 0
C17: span length,m | D17: 0 | E17: 0 | F17: =VLOOKUP($D18,specs!$D$5:$H$17,4)/F18*1.03*$E18+F20 -> 0 | G17: =VLOOKUP($D18,specs!$D$5:$H$17,4)/G18*1.03*$E18+G20 -> 0 | H17: =VLOOKUP($D18,specs!$D$5:$H$17,4)/H18*1.03*$E18+H20 -> 0 | I17: =VLOOKUP($D18,specs!$D$5:$H$17,4)/I18*1.03*$E18+I20 -> 0 | J17: =VLOOKUP($D18,specs!$D$5:$H$17,4)/J18*1.03*$E18+J20 -> 0 | K17: =VLOOKUP($D18,specs!$D$5:$H$17,4)/K18*1.03*$E18+K20 -> 0 | L17: =VLOOKUP($D18,specs!$D$5:$H$17,4)/L18*1.03*$E18+L20 -> 0 | M17: =VLOOKUP($D18,specs!$D$5:$H$17,4)/M18*1.03*$E18+M20 -> 0 | N17: =VLOOKUP($D18,specs!$D$5:$H$17,4)/N18*1.03*$E18+N20 -> 0 | O17: =VLOOKUP($D18,specs!$D$5:$H$17,4)/O18*1.03*$E18+O20 -> 0
C18: amplifier | D18: load | E18: 0 | F18: =F21+F20*F19 -> 55.10607686 | G18: =G21+G20*G19 -> 55.10607686 | H18: 55.10607686 | I18: 55.10607686 | J18: 55.10607686 | K18: 55.10607686 | L18: 55.10607686 | M18: 55.10607686 | N18: 55.10607686 | O18: 55.10607686
C19: cable type | D19: cable | E19: 0 | F19: =VLOOKUP($D19,specs!$K$5:$L$19,2)*IF($E$1="m",$D20,($D20*0.3048))/1000 -> 0 | G19: =VLOOKUP($D19,specs!$K$5:$L$19,2)*IF($E$1="m",$D20,($D20*0.3048))/1000 -> 0 | H19: =VLOOKUP($D19,specs!$K$5:$L$19,2)*IF($E$1="m",$D20,($D20*0.3048))/1000 -> 0 | I19: =VLOOKUP($D19,specs!$K$5:$L$19,2)*IF($E$1="m",$D20,($D20*0.3048))/1000 -> 0 | J19: =VLOOKUP($D19,specs!$K$5:$L$19,2)*IF($E$1="m",$D20,($D20*0.3048))/1000 -> 0 | K19: =VLOOKUP($D19,specs!$K$5:$L$19,2)*IF($E$1="m",$D20,($D20*0.3048))/1000 -> 0 | L19: =VLOOKUP($D19,specs!$K$5:$L$19,2)*IF($E$1="m",$D20,($D20*0.3048))/1000 -> 0 | M19: =VLOOKUP($D19,specs!$K$5:$L$19,2)*IF($E$1="m",$D20,($D20*0.3048))/1000 -> 0 | N19: =VLOOKUP($D19,specs!$K$5:$L$19,2)*IF($E$1="m",$D20,($D20*0.3048))/1000 -> 0 | O19: =VLOOKUP($D19,specs!$K$5:$L$19,2)*IF($E$1="m",$D20,($D20*0.3048))/1000 -> 0
C20: span length,m | D20: 0 | E20: 0 | F20: =VLOOKUP($D21,specs!$D$5:$H$17,4)/F21*1.03*$E21+F23 -> 0 | G20: =VLOOKUP($D21,specs!$D$5:$H$17,4)/G21*1.03*$E21+G23 -> 0 | H20: =VLOOKUP($D21,specs!$D$5:$H$17,4)/H21*1.03*$E21+H23 -> 0 | I20: =VLOOKUP($D21,specs!$D$5:$H$17,4)/I21*1.03*$E21+I23 -> 0 | J20: =VLOOKUP($D21,specs!$D$5:$H$17,4)/J21*1.03*$E21+J23 -> 0 | K20: =VLOOKUP($D21,specs!$D$5:$H$17,4)/K21*1.03*$E21+K23 -> 0 | L20: =VLOOKUP($D21,specs!$D$5:$H$17,4)/L21*1.03*$E21+L23 -> 0 | M20: =VLOOKUP($D21,specs!$D$5:$H$17,4)/M21*1.03*$E21+M23 -> 0 | N20: =VLOOKUP($D21,specs!$D$5:$H$17,4)/N21*1.03*$E21+N23 -> 0 | O20: =VLOOKUP($D21,specs!$D$5:$H$17,4)/O21*1.03*$E21+O23 -> 0
C21: amplifier | D21: load | E21: 0 | F21: =B2 -> 55.10607686 | G21: =F21-(F3-$B$2) -> 55.10607686 | H21: 55.10607686 | I21: 55.10607686 | J21: 55.10607686 | K21: 55.10607686 | L21: 55.10607686 | M21: 55.10607686 | N21: 55.10607686 | O21: 55.10607686
F22: =IF(F21<0,1,0) -> 0 | G22: =IF(G21<0,1,0) -> 0 | H22: 0 | I22: 0 | J22: 0 | K22: 0 | L22: 0 | M22: 0 | N22: 0 | O22: 0
C24: User added Branch
M27: =O21 -> 55.10607686
F34: Main Branch Net31

Sheet Net22 (hidden)
B1: =SUM(F22:O22) -> 0 | D1: =IF(O21<'AUX2'!B6,1,0) -> 0 | E1: =+'AUX2'!J5 -> m
B2: =+'AUX2'!M10 -> 55.10607686 | C2: U start, V | D2: =+O5*1 -> 1.425056716 | F2: 1 | G2: 2 | H2: 3 | I2: 4 | J2: 5 | K2: 6 | L2: 7 | M2: 8 | N2: 9 | O2: iteration10
E3: mult. | F3: =F6+F5*F4 -> 55.57426958 | G3: =G6+G5*G4 -> 55.11008881 | H3: 55.10611153 | I3: 55.10607716 | J3: 55.10607686 | K3: 55.10607686 | L3: 55.10607686 | M3: 55.10607686 | N3: 55.10607686 | O3: 55.10607686
C4: cable type | D4: cable | E4: 0 | F4: =VLOOKUP($D4,specs!$K$5:$L$19,2)*IF($E$1="m",$D5,($D5*0.3048))/1000 -> 0 | G4: =VLOOKUP($D4,specs!$K$5:$L$19,2)*IF($E$1="m",$D5,($D5*0.3048))/1000 -> 0 | H4: =VLOOKUP($D4,specs!$K$5:$L$19,2)*IF($E$1="m",$D5,($D5*0.3048))/1000 -> 0 | I4: =VLOOKUP($D4,specs!$K$5:$L$19,2)*IF($E$1="m",$D5,($D5*0.3048))/1000 -> 0 | J4: =VLOOKUP($D4,specs!$K$5:$L$19,2)*IF($E$1="m",$D5,($D5*0.3048))/1000 -> 0 | K4: =VLOOKUP($D4,specs!$K$5:$L$19,2)*IF($E$1="m",$D5,($D5*0.3048))/1000 -> 0 | L4: =VLOOKUP($D4,specs!$K$5:$L$19,2)*IF($E$1="m",$D5,($D5*0.3048))/1000 -> 0 | M4: =VLOOKUP($D4,specs!$K$5:$L$19,2)*IF($E$1="m",$D5,($D5*0.3048))/1000 -> 0 | N4: =VLOOKUP($D4,specs!$K$5:$L$19,2)*IF($E$1="m",$D5,($D5*0.3048))/1000 -> 0 | O4: =VLOOKUP($D4,specs!$K$5:$L$19,2)*IF($E$1="m",$D5,($D5*0.3048))/1000 -> 0
C5: span length,m | D5: 0 | E5: 0 | F5: =VLOOKUP($D6,specs!$D$5:$H$17,4)/F6*1.03*$E6+F8 -> 1.412974588 | G5: =VLOOKUP($D6,specs!$D$5:$H$17,4)/G6*1.03*$E6+G8 -> 1.424952303 | H5: =VLOOKUP($D6,specs!$D$5:$H$17,4)/H6*1.03*$E6+H8 -> 1.425055813 | I5: =VLOOKUP($D6,specs!$D$5:$H$17,4)/I6*1.03*$E6+I8 -> 1.425056708 | J5: =VLOOKUP($D6,specs!$D$5:$H$17,4)/J6*1.03*$E6+J8 -> 1.425056716 | K5: =VLOOKUP($D6,specs!$D$5:$H$17,4)/K6*1.03*$E6+K8 -> 1.425056716 | L5: =VLOOKUP($D6,specs!$D$5:$H$17,4)/L6*1.03*$E6+L8 -> 1.425056716 | M5: =VLOOKUP($D6,specs!$D$5:$H$17,4)/M6*1.03*$E6+M8 -> 1.425056716 | N5: =VLOOKUP($D6,specs!$D$5:$H$17,4)/N6*1.03*$E6+N8 -> 1.425056716 | O5: =VLOOKUP($D6,specs!$D$5:$H$17,4)/O6*1.03*$E6+O8 -> 1.425056716
C6: amplifier | D6: TNA | E6: 1 | F6: =F9+F8*F7 -> 55.57426958 | G6: =G9+G8*G7 -> 55.11008881 | H6: 55.10611153 | I6: 55.10607716 | J6: 55.10607686 | K6: 55.10607686 | L6: 55.10607686 | M6: 55.10607686 | N6: 55.10607686 | O6: 55.10607686
C7: cable type | D7: C565 | E7: 0 | F7: =VLOOKUP($D7,specs!$K$5:$L$19,2)*IF($E$1="m",$D8,($D8*0.3048))/1000 -> 0.8946 | G7: =VLOOKUP($D7,specs!$K$5:$L$19,2)*IF($E$1="m",$D8,($D8*0.3048))/1000 -> 0.8946 | H7: =VLOOKUP($D7,specs!$K$5:$L$19,2)*IF($E$1="m",$D8,($D8*0.3048))/1000 -> 0.8946 | I7: =VLOOKUP($D7,specs!$K$5:$L$19,2)*IF($E$1="m",$D8,($D8*0.3048))/1000 -> 0.8946 | J7: =VLOOKUP($D7,specs!$K$5:$L$19,2)*IF($E$1="m",$D8,($D8*0.3048))/1000 -> 0.8946 | K7: =VLOOKUP($D7,specs!$K$5:$L$19,2)*IF($E$1="m",$D8,($D8*0.3048))/1000 -> 0.8946 | L7: =VLOOKUP($D7,specs!$K$5:$L$19,2)*IF($E$1="m",$D8,($D8*0.3048))/1000 -> 0.8946 | M7: =VLOOKUP($D7,specs!$K$5:$L$19,2)*IF($E$1="m",$D8,($D8*0.3048))/1000 -> 0.8946 | N7: =VLOOKUP($D7,specs!$K$5:$L$19,2)*IF($E$1="m",$D8,($D8*0.3048))/1000 -> 0.8946 | O7: =VLOOKUP($D7,specs!$K$5:$L$19,2)*IF($E$1="m",$D8,($D8*0.3048))/1000 -> 0.8946
C8: span length,m | D8: 210 | E8: 0 | F8: =VLOOKUP($D9,specs!$D$5:$H$17,4)/F9*1.03*$E9+F11 -> 0.5233542586 | G8: =VLOOKUP($D9,specs!$D$5:$H$17,4)/G9*1.03*$E9+G11 -> 0.5278388879 | H8: =VLOOKUP($D9,specs!$D$5:$H$17,4)/H9*1.03*$E9+H11 -> 0.5278776489 | I8: =VLOOKUP($D9,specs!$D$5:$H$17,4)/I9*1.03*$E9+I11 -> 0.5278779839 | J8: =VLOOKUP($D9,specs!$D$5:$H$17,4)/J9*1.03*$E9+J11 -> 0.5278779868 | K8: =VLOOKUP($D9,specs!$D$5:$H$17,4)/K9*1.03*$E9+K11 -> 0.5278779868 | L8: =VLOOKUP($D9,specs!$D$5:$H$17,4)/L9*1.03*$E9+L11 -> 0.5278779868 | M8: =VLOOKUP($D9,specs!$D$5:$H$17,4)/M9*1.03*$E9+M11 -> 0.5278779868 | N8: =VLOOKUP($D9,specs!$D$5:$H$17,4)/N9*1.03*$E9+N11 -> 0.5278779868 | O8: =VLOOKUP($D9,specs!$D$5:$H$17,4)/O9*1.03*$E9+O11 -> 0.5278779868
C9: amplifier | D9: DBLE | E9: 1 | F9: =F12+F11*F10 -> 55.10607686 | G9: =G12+G11*G10 -> 54.63788414 | H9: 54.63387219 | I9: 54.63383751 | J9: 54.63383721 | K9: 54.63383721 | L9: 54.63383721 | M9: 54.63383721 | N9: 54.63383721 | O9: 54.63383721
C10: cable type | D10: cable | E10: 0 | F10: =VLOOKUP($D10,specs!$K$5:$L$19,2)*IF($E$1="m",$D11,($D11*0.3048))/1000 -> 0 | G10: =VLOOKUP($D10,specs!$K$5:$L$19,2)*IF($E$1="m",$D11,($D11*0.3048))/1000 -> 0 | H10: =VLOOKUP($D10,specs!$K$5:$L$19,2)*IF($E$1="m",$D11,($D11*0.3048))/1000 -> 0 | I10: =VLOOKUP($D10,specs!$K$5:$L$19,2)*IF($E$1="m",$D11,($D11*0.3048))/1000 -> 0 | J10: =VLOOKUP($D10,specs!$K$5:$L$19,2)*IF($E$1="m",$D11,($D11*0.3048))/1000 -> 0 | K10: =VLOOKUP($D10,specs!$K$5:$L$19,2)*IF($E$1="m",$D11,($D11*0.3048))/1000 -> 0 | L10: =VLOOKUP($D10,specs!$K$5:$L$19,2)*IF($E$1="m",$D11,($D11*0.3048))/1000 -> 0 | M10: =VLOOKUP($D10,specs!$K$5:$L$19,2)*IF($E$1="m",$D11,($D11*0.3048))/1000 -> 0 | N10: =VLOOKUP($D10,specs!$K$5:$L$19,2)*IF($E$1="m",$D11,($D11*0.3048))/1000 -> 0 | O10: =VLOOKUP($D10,specs!$K$5:$L$19,2)*IF($E$1="m",$D11,($D11*0.3048))/1000 -> 0
C11: span length,m | D11: 0 | E11: 0 | F11: =VLOOKUP($D12,specs!$D$5:$H$17,4)/F12*1.03*$E12+F14 -> 0 | G11: =VLOOKUP($D12,specs!$D$5:$H$17,4)/G12*1.03*$E12+G14 -> 0 | H11: =VLOOKUP($D12,specs!$D$5:$H$17,4)/H12*1.03*$E12+H14 -> 0 | I11: =VLOOKUP($D12,specs!$D$5:$H$17,4)/I12*1.03*$E12+I14 -> 0 | J11: =VLOOKUP($D12,specs!$D$5:$H$17,4)/J12*1.03*$E12+J14 -> 0 | K11: =VLOOKUP($D12,specs!$D$5:$H$17,4)/K12*1.03*$E12+K14 -> 0 | L11: =VLOOKUP($D12,specs!$D$5:$H$17,4)/L12*1.03*$E12+L14 -> 0 | M11: =VLOOKUP($D12,specs!$D$5:$H$17,4)/M12*1.03*$E12+M14 -> 0 | N11: =VLOOKUP($D12,specs!$D$5:$H$17,4)/N12*1.03*$E12+N14 -> 0 | O11: =VLOOKUP($D12,specs!$D$5:$H$17,4)/O12*1.03*$E12+O14 -> 0
C12: amplifier | D12: load | E12: 0 | F12: =F15+F14*F13 -> 55.10607686 | G12: =G15+G14*G13 -> 54.63788414 | H12: 54.63387219 | I12: 54.63383751 | J12: 54.63383721 | K12: 54.63383721 | L12: 54.63383721 | M12: 54.63383721 | N12: 54.63383721 | O12: 54.63383721
C13: cable type | D13: cable | E13: 0 | F13: =VLOOKUP($D13,specs!$K$5:$L$19,2)*IF($E$1="m",$D14,($D14*0.3048))/1000 -> 0 | G13: =VLOOKUP($D13,specs!$K$5:$L$19,2)*IF($E$1="m",$D14,($D14*0.3048))/1000 -> 0 | H13: =VLOOKUP($D13,specs!$K$5:$L$19,2)*IF($E$1="m",$D14,($D14*0.3048))/1000 -> 0 | I13: =VLOOKUP($D13,specs!$K$5:$L$19,2)*IF($E$1="m",$D14,($D14*0.3048))/1000 -> 0 | J13: =VLOOKUP($D13,specs!$K$5:$L$19,2)*IF($E$1="m",$D14,($D14*0.3048))/1000 -> 0 | K13: =VLOOKUP($D13,specs!$K$5:$L$19,2)*IF($E$1="m",$D14,($D14*0.3048))/1000 -> 0 | L13: =VLOOKUP($D13,specs!$K$5:$L$19,2)*IF($E$1="m",$D14,($D14*0.3048))/1000 -> 0 | M13: =VLOOKUP($D13,specs!$K$5:$L$19,2)*IF($E$1="m",$D14,($D14*0.3048))/1000 -> 0 | N13: =VLOOKUP($D13,specs!$K$5:$L$19,2)*IF($E$1="m",$D14,($D14*0.3048))/1000 -> 0 | O13: =VLOOKUP($D13,specs!$K$5:$L$19,2)*IF($E$1="m",$D14,($D14*0.3048))/1000 -> 0
C14: span length,m | D14: 0 | E14: 0 | F14: =VLOOKUP($D15,specs!$D$5:$H$17,4)/F15*1.03*$E15+F17 -> 0 | G14: =VLOOKUP($D15,specs!$D$5:$H$17,4)/G15*1.03*$E15+G17 -> 0 | H14: =VLOOKUP($D15,specs!$D$5:$H$17,4)/H15*1.03*$E15+H17 -> 0 | I14: =VLOOKUP($D15,specs!$D$5:$H$17,4)/I15*1.03*$E15+I17 -> 0 | J14: =VLOOKUP($D15,specs!$D$5:$H$17,4)/J15*1.03*$E15+J17 -> 0 | K14: =VLOOKUP($D15,specs!$D$5:$H$17,4)/K15*1.03*$E15+K17 -> 0 | L14: =VLOOKUP($D15,specs!$D$5:$H$17,4)/L15*1.03*$E15+L17 -> 0 | M14: =VLOOKUP($D15,specs!$D$5:$H$17,4)/M15*1.03*$E15+M17 -> 0 | N14: =VLOOKUP($D15,specs!$D$5:$H$17,4)/N15*1.03*$E15+N17 -> 0 | O14: =VLOOKUP($D15,specs!$D$5:$H$17,4)/O15*1.03*$E15+O17 -> 0
C15: amplifier | D15: load | E15: 0 | F15: =F18+F17*F16 -> 55.10607686 | G15: =G18+G17*G16 -> 54.63788414 | H15: 54.63387219 | I15: 54.63383751 | J15: 54.63383721 | K15: 54.63383721 | L15: 54.63383721 | M15: 54.63383721 | N15: 54.63383721 | O15: 54.63383721
C16: cable type | D16: cable | E16: 0 | F16: =VLOOKUP($D16,specs!$K$5:$L$19,2)*IF($E$1="m",$D17,($D17*0.3048))/1000 -> 0 | G16: =VLOOKUP($D16,specs!$K$5:$L$19,2)*IF($E$1="m",$D17,($D17*0.3048))/1000 -> 0 | H16: =VLOOKUP($D16,specs!$K$5:$L$19,2)*IF($E$1="m",$D17,($D17*0.3048))/1000 -> 0 | I16: =VLOOKUP($D16,specs!$K$5:$L$19,2)*IF($E$1="m",$D17,($D17*0.3048))/1000 -> 0 | J16: =VLOOKUP($D16,specs!$K$5:$L$19,2)*IF($E$1="m",$D17,($D17*0.3048))/1000 -> 0 | K16: =VLOOKUP($D16,specs!$K$5:$L$19,2)*IF($E$1="m",$D17,($D17*0.3048))/1000 -> 0 | L16: =VLOOKUP($D16,specs!$K$5:$L$19,2)*IF($E$1="m",$D17,($D17*0.3048))/1000 -> 0 | M16: =VLOOKUP($D16,specs!$K$5:$L$19,2)*IF($E$1="m",$D17,($D17*0.3048))/1000 -> 0 | N16: =VLOOKUP($D16,specs!$K$5:$L$19,2)*IF($E$1="m",$D17,($D17*0.3048))/1000 -> 0 | O16: =VLOOKUP($D16,specs!$K$5:$L$19,2)*IF($E$1="m",$D17,($D17*0.3048))/1000 -> 0
C17: span length,m | D17: 0 | E17: 0 | F17: =VLOOKUP($D18,specs!$D$5:$H$17,4)/F18*1.03*$E18+F20 -> 0 | G17: =VLOOKUP($D18,specs!$D$5:$H$17,4)/G18*1.03*$E18+G20 -> 0 | H17: =VLOOKUP($D18,specs!$D$5:$H$17,4)/H18*1.03*$E18+H20 -> 0 | I17: =VLOOKUP($D18,specs!$D$5:$H$17,4)/I18*1.03*$E18+I20 -> 0 | J17: =VLOOKUP($D18,specs!$D$5:$H$17,4)/J18*1.03*$E18+J20 -> 0 | K17: =VLOOKUP($D18,specs!$D$5:$H$17,4)/K18*1.03*$E18+K20 -> 0 | L17: =VLOOKUP($D18,specs!$D$5:$H$17,4)/L18*1.03*$E18+L20 -> 0 | M17: =VLOOKUP($D18,specs!$D$5:$H$17,4)/M18*1.03*$E18+M20 -> 0 | N17: =VLOOKUP($D18,specs!$D$5:$H$17,4)/N18*1.03*$E18+N20 -> 0 | O17: =VLOOKUP($D18,specs!$D$5:$H$17,4)/O18*1.03*$E18+O20 -> 0
C18: amplifier | D18: load | E18: 0 | F18: =F21+F20*F19 -> 55.10607686 | G18: =G21+G20*G19 -> 54.63788414 | H18: 54.63387219 | I18: 54.63383751 | J18: 54.63383721 | K18: 54.63383721 | L18: 54.63383721 | M18: 54.63383721 | N18: 54.63383721 | O18: 54.63383721
C19: cable type | D19: cable | E19: 0 | F19: =VLOOKUP($D19,specs!$K$5:$L$19,2)*IF($E$1="m",$D20,($D20*0.3048))/1000 -> 0 | G19: =VLOOKUP($D19,specs!$K$5:$L$19,2)*IF($E$1="m",$D20,($D20*0.3048))/1000 -> 0 | H19: =VLOOKUP($D19,specs!$K$5:$L$19,2)*IF($E$1="m",$D20,($D20*0.3048))/1000 -> 0 | I19: =VLOOKUP($D19,specs!$K$5:$L$19,2)*IF($E$1="m",$D20,($D20*0.3048))/1000 -> 0 | J19: =VLOOKUP($D19,specs!$K$5:$L$19,2)*IF($E$1="m",$D20,($D20*0.3048))/1000 -> 0 | K19: =VLOOKUP($D19,specs!$K$5:$L$19,2)*IF($E$1="m",$D20,($D20*0.3048))/1000 -> 0 | L19: =VLOOKUP($D19,specs!$K$5:$L$19,2)*IF($E$1="m",$D20,($D20*0.3048))/1000 -> 0 | M19: =VLOOKUP($D19,specs!$K$5:$L$19,2)*IF($E$1="m",$D20,($D20*0.3048))/1000 -> 0 | N19: =VLOOKUP($D19,specs!$K$5:$L$19,2)*IF($E$1="m",$D20,($D20*0.3048))/1000 -> 0 | O19: =VLOOKUP($D19,specs!$K$5:$L$19,2)*IF($E$1="m",$D20,($D20*0.3048))/1000 -> 0
C20: span length,m | D20: 0 | E20: 0 | F20: =VLOOKUP($D21,specs!$D$5:$H$17,4)/F21*1.03*$E21+F23 -> 0 | G20: =VLOOKUP($D21,specs!$D$5:$H$17,4)/G21*1.03*$E21+G23 -> 0 | H20: =VLOOKUP($D21,specs!$D$5:$H$17,4)/H21*1.03*$E21+H23 -> 0 | I20: =VLOOKUP($D21,specs!$D$5:$H$17,4)/I21*1.03*$E21+I23 -> 0 | J20: =VLOOKUP($D21,specs!$D$5:$H$17,4)/J21*1.03*$E21+J23 -> 0 | K20: =VLOOKUP($D21,specs!$D$5:$H$17,4)/K21*1.03*$E21+K23 -> 0 | L20: =VLOOKUP($D21,specs!$D$5:$H$17,4)/L21*1.03*$E21+L23 -> 0 | M20: =VLOOKUP($D21,specs!$D$5:$H$17,4)/M21*1.03*$E21+M23 -> 0 | N20: =VLOOKUP($D21,specs!$D$5:$H$17,4)/N21*1.03*$E21+N23 -> 0 | O20: =VLOOKUP($D21,specs!$D$5:$H$17,4)/O21*1.03*$E21+O23 -> 0
C21: amplifier | D21: load | E21: 0 | F21: =B2 -> 55.10607686 | G21: =F21-(F3-$B$2) -> 54.63788414 | H21: 54.63387219 | I21: 54.63383751 | J21: 54.63383721 | K21: 54.63383721 | L21: 54.63383721 | M21: 54.63383721 | N21: 54.63383721 | O21: 54.63383721
F22: =IF(F21<0,1,0) -> 0 | G22: =IF(G21<0,1,0) -> 0 | H22: 0 | I22: 0 | J22: 0 | K22: 0 | L22: 0 | M22: 0 | N22: 0 | O22: 0
C24: User added Branch
M27: =O21 -> 54.63383721
F34: Main Branch Net22

Sheet Net21 (hidden)
B1: =SUM(F22:O22) -> 0 | D1: =IF(O21<'AUX2'!B6,1,0) -> 0 | E1: =+'AUX2'!J5 -> m
B2: =+'AUX2'!M9 -> 54.46384912 | C2: U start, V | D2: =+O5*1 -> 2.791812792 | F2: 1 | G2: 2 | H2: 3 | I2: 4 | J2: 5 | K2: 6 | L2: 7 | M2: 8 | N2: 9 | O2: iteration10
E3: mult. | F3: =F6+F5*F4 -> 58.02953167 | G3: =G6+G5*G4 -> 54.71077049 | H3: 54.48221287 | I3: 54.46522188 | J3: 54.46395178 | K3: 54.4638568 | L3: 54.4638497 | M3: 54.46384917 | N3: 54.46384913 | O3: 54.46384912
C4: cable type | D4: cable | E4: 0 | F4: =VLOOKUP($D4,specs!$K$5:$L$19,2)*IF($E$1="m",$D5,($D5*0.3048))/1000 -> 0 | G4: =VLOOKUP($D4,specs!$K$5:$L$19,2)*IF($E$1="m",$D5,($D5*0.3048))/1000 -> 0 | H4: =VLOOKUP($D4,specs!$K$5:$L$19,2)*IF($E$1="m",$D5,($D5*0.3048))/1000 -> 0 | I4: =VLOOKUP($D4,specs!$K$5:$L$19,2)*IF($E$1="m",$D5,($D5*0.3048))/1000 -> 0 | J4: =VLOOKUP($D4,specs!$K$5:$L$19,2)*IF($E$1="m",$D5,($D5*0.3048))/1000 -> 0 | K4: =VLOOKUP($D4,specs!$K$5:$L$19,2)*IF($E$1="m",$D5,($D5*0.3048))/1000 -> 0 | L4: =VLOOKUP($D4,specs!$K$5:$L$19,2)*IF($E$1="m",$D5,($D5*0.3048))/1000 -> 0 | M4: =VLOOKUP($D4,specs!$K$5:$L$19,2)*IF($E$1="m",$D5,($D5*0.3048))/1000 -> 0 | N4: =VLOOKUP($D4,specs!$K$5:$L$19,2)*IF($E$1="m",$D5,($D5*0.3048))/1000 -> 0 | O4: =VLOOKUP($D4,specs!$K$5:$L$19,2)*IF($E$1="m",$D5,($D5*0.3048))/1000 -> 0
C5: span length,m | D5: 0 | E5: 0 | F5: =VLOOKUP($D6,specs!$D$5:$H$17,4)/F6*1.03*$E6+F8 -> 2.602100146 | G5: =VLOOKUP($D6,specs!$D$5:$H$17,4)/G6*1.03*$E6+G8 -> 2.777731497 | H5: =VLOOKUP($D6,specs!$D$5:$H$17,4)/H6*1.03*$E6+H8 -> 2.790760323 | I5: =VLOOKUP($D6,specs!$D$5:$H$17,4)/I6*1.03*$E6+I8 -> 2.791734087 | J5: =VLOOKUP($D6,specs!$D$5:$H$17,4)/J6*1.03*$E6+J8 -> 2.791806906 | K5: =VLOOKUP($D6,specs!$D$5:$H$17,4)/K6*1.03*$E6+K8 -> 2.791812352 | L5: =VLOOKUP($D6,specs!$D$5:$H$17,4)/L6*1.03*$E6+L8 -> 2.791812759 | M5: =VLOOKUP($D6,specs!$D$5:$H$17,4)/M6*1.03*$E6+M8 -> 2.79181279 | N5: =VLOOKUP($D6,specs!$D$5:$H$17,4)/N6*1.03*$E6+N8 -> 2.791812792 | O5: =VLOOKUP($D6,specs!$D$5:$H$17,4)/O6*1.03*$E6+O8 -> 2.791812792
C6: amplifier | D6: DBLE | E6: 1 | F6: =F9+F8*F7 -> 58.02953167 | G6: =G9+G8*G7 -> 54.71077049 | H6: 54.48221287 | I6: 54.46522188 | J6: 54.46395178 | K6: 54.4638568 | L6: 54.4638497 | M6: 54.46384917 | N6: 54.46384913 | O6: 54.46384912
C7: cable type | D7: C565 | E7: 0 | F7: =VLOOKUP($D7,specs!$K$5:$L$19,2)*IF($E$1="m",$D8,($D8*0.3048))/1000 -> 1.40154 | G7: =VLOOKUP($D7,specs!$K$5:$L$19,2)*IF($E$1="m",$D8,($D8*0.3048))/1000 -> 1.40154 | H7: =VLOOKUP($D7,specs!$K$5:$L$19,2)*IF($E$1="m",$D8,($D8*0.3048))/1000 -> 1.40154 | I7: =VLOOKUP($D7,specs!$K$5:$L$19,2)*IF($E$1="m",$D8,($D8*0.3048))/1000 -> 1.40154 | J7: =VLOOKUP($D7,specs!$K$5:$L$19,2)*IF($E$1="m",$D8,($D8*0.3048))/1000 -> 1.40154 | K7: =VLOOKUP($D7,specs!$K$5:$L$19,2)*IF($E$1="m",$D8,($D8*0.3048))/1000 -> 1.40154 | L7: =VLOOKUP($D7,specs!$K$5:$L$19,2)*IF($E$1="m",$D8,($D8*0.3048))/1000 -> 1.40154 | M7: =VLOOKUP($D7,specs!$K$5:$L$19,2)*IF($E$1="m",$D8,($D8*0.3048))/1000 -> 1.40154 | N7: =VLOOKUP($D7,specs!$K$5:$L$19,2)*IF($E$1="m",$D8,($D8*0.3048))/1000 -> 1.40154 | O7: =VLOOKUP($D7,specs!$K$5:$L$19,2)*IF($E$1="m",$D8,($D8*0.3048))/1000 -> 1.40154
C8: span length,m | D8: 329 | E8: 0 | F8: =VLOOKUP($D9,specs!$D$5:$H$17,4)/F9*1.03*$E9+F11 -> 2.105111817 | G8: =VLOOKUP($D9,specs!$D$5:$H$17,4)/G9*1.03*$E9+G11 -> 2.250595802 | H8: =VLOOKUP($D9,specs!$D$5:$H$17,4)/H9*1.03*$E9+H11 -> 2.261413248 | I8: =VLOOKUP($D9,specs!$D$5:$H$17,4)/I9*1.03*$E9+I11 -> 2.262221877 | J8: =VLOOKUP($D9,specs!$D$5:$H$17,4)/J9*1.03*$E9+J11 -> 2.262282348 | K8: =VLOOKUP($D9,specs!$D$5:$H$17,4)/K9*1.03*$E9+K11 -> 2.26228687 | L8: =VLOOKUP($D9,specs!$D$5:$H$17,4)/L9*1.03*$E9+L11 -> 2.262287209 | M8: =VLOOKUP($D9,specs!$D$5:$H$17,4)/M9*1.03*$E9+M11 -> 2.262287234 | N8: =VLOOKUP($D9,specs!$D$5:$H$17,4)/N9*1.03*$E9+N11 -> 2.262287236 | O8: =VLOOKUP($D9,specs!$D$5:$H$17,4)/O9*1.03*$E9+O11 -> 2.262287236
C9: amplifier | D9: DBLE | E9: 2 | F9: =F12+F11*F10 -> 55.07913325 | G9: =G12+G11*G10 -> 51.55647045 | H9: 51.31275175 | I9: 51.29462743 | J9: 51.29327258 | K9: 51.29317126 | L9: 51.29316368 | M9: 51.29316312 | N9: 51.29316308 | O9: 51.29316307
C10: cable type | D10: C565 | E10: 0 | F10: =VLOOKUP($D10,specs!$K$5:$L$19,2)*IF($E$1="m",$D11,($D11*0.3048))/1000 -> 0.4686 | G10: =VLOOKUP($D10,specs!$K$5:$L$19,2)*IF($E$1="m",$D11,($D11*0.3048))/1000 -> 0.4686 | H10: =VLOOKUP($D10,specs!$K$5:$L$19,2)*IF($E$1="m",$D11,($D11*0.3048))/1000 -> 0.4686 | I10: =VLOOKUP($D10,specs!$K$5:$L$19,2)*IF($E$1="m",$D11,($D11*0.3048))/1000 -> 0.4686 | J10: =VLOOKUP($D10,specs!$K$5:$L$19,2)*IF($E$1="m",$D11,($D11*0.3048))/1000 -> 0.4686 | K10: =VLOOKUP($D10,specs!$K$5:$L$19,2)*IF($E$1="m",$D11,($D11*0.3048))/1000 -> 0.4686 | L10: =VLOOKUP($D10,specs!$K$5:$L$19,2)*IF($E$1="m",$D11,($D11*0.3048))/1000 -> 0.4686 | M10: =VLOOKUP($D10,specs!$K$5:$L$19,2)*IF($E$1="m",$D11,($D11*0.3048))/1000 -> 0.4686 | N10: =VLOOKUP($D10,specs!$K$5:$L$19,2)*IF($E$1="m",$D11,($D11*0.3048))/1000 -> 0.4686 | O10: =VLOOKUP($D10,specs!$K$5:$L$19,2)*IF($E$1="m",$D11,($D11*0.3048))/1000 -> 0.4686
C11: span length,m | D11: 110 | E11: 0 | F11: =VLOOKUP($D12,specs!$D$5:$H$17,4)/F12*1.03*$E12+F14 -> 1.057891271 | G11: =VLOOKUP($D12,specs!$D$5:$H$17,4)/G12*1.03*$E12+G14 -> 1.131822552 | H11: =VLOOKUP($D12,specs!$D$5:$H$17,4)/H12*1.03*$E12+H14 -> 1.137326193 | I11: =VLOOKUP($D12,specs!$D$5:$H$17,4)/I12*1.03*$E12+I14 -> 1.13773764 | J11: =VLOOKUP($D12,specs!$D$5:$H$17,4)/J12*1.03*$E12+J14 -> 1.137768409 | K11: =VLOOKUP($D12,specs!$D$5:$H$17,4)/K12*1.03*$E12+K14 -> 1.13777071 | L11: =VLOOKUP($D12,specs!$D$5:$H$17,4)/L12*1.03*$E12+L14 -> 1.137770882 | M11: =VLOOKUP($D12,specs!$D$5:$H$17,4)/M12*1.03*$E12+M14 -> 1.137770895 | N11: =VLOOKUP($D12,specs!$D$5:$H$17,4)/N12*1.03*$E12+N14 -> 1.137770896 | O11: =VLOOKUP($D12,specs!$D$5:$H$17,4)/O12*1.03*$E12+O14 -> 1.137770896
C12: amplifier | D12: DBLE | E12: 1 | F12: =F15+F14*F13 -> 54.5834054 | G12: =G15+G14*G13 -> 51.0260984 | H12: 50.77980069 | I12: 50.76148357 | J12: 50.7601143 | K12: 50.76001191 | L12: 50.76000425 | M12: 50.76000368 | N12: 50.76000363 | O12: 50.76000363
C13: cable type | D13: C565 | E13: 0 | F13: =VLOOKUP($D13,specs!$K$5:$L$19,2)*IF($E$1="m",$D14,($D14*0.3048))/1000 -> 0.22578 | G13: =VLOOKUP($D13,specs!$K$5:$L$19,2)*IF($E$1="m",$D14,($D14*0.3048))/1000 -> 0.22578 | H13: =VLOOKUP($D13,specs!$K$5:$L$19,2)*IF($E$1="m",$D14,($D14*0.3048))/1000 -> 0.22578 | I13: =VLOOKUP($D13,specs!$K$5:$L$19,2)*IF($E$1="m",$D14,($D14*0.3048))/1000 -> 0.22578 | J13: =VLOOKUP($D13,specs!$K$5:$L$19,2)*IF($E$1="m",$D14,($D14*0.3048))/1000 -> 0.22578 | K13: =VLOOKUP($D13,specs!$K$5:$L$19,2)*IF($E$1="m",$D14,($D14*0.3048))/1000 -> 0.22578 | L13: =VLOOKUP($D13,specs!$K$5:$L$19,2)*IF($E$1="m",$D14,($D14*0.3048))/1000 -> 0.22578 | M13: =VLOOKUP($D13,specs!$K$5:$L$19,2)*IF($E$1="m",$D14,($D14*0.3048))/1000 -> 0.22578 | N13: =VLOOKUP($D13,specs!$K$5:$L$19,2)*IF($E$1="m",$D14,($D14*0.3048))/1000 -> 0.22578 | O13: =VLOOKUP($D13,specs!$K$5:$L$19,2)*IF($E$1="m",$D14,($D14*0.3048))/1000 -> 0.22578
C14: span length,m | D14: 53 | E14: 0 | F14: =VLOOKUP($D15,specs!$D$5:$H$17,4)/F15*1.03*$E15+F17 -> 0.5295255562 | G14: =VLOOKUP($D15,specs!$D$5:$H$17,4)/G15*1.03*$E15+G17 -> 0.5666215885 | H14: =VLOOKUP($D15,specs!$D$5:$H$17,4)/H15*1.03*$E15+H17 -> 0.5693838301 | I14: =VLOOKUP($D15,specs!$D$5:$H$17,4)/I15*1.03*$E15+I17 -> 0.5695903367 | J14: =VLOOKUP($D15,specs!$D$5:$H$17,4)/J15*1.03*$E15+J17 -> 0.5696057798 | K14: =VLOOKUP($D15,specs!$D$5:$H$17,4)/K15*1.03*$E15+K17 -> 0.5696069347 | L14: =VLOOKUP($D15,specs!$D$5:$H$17,4)/L15*1.03*$E15+L17 -> 0.569607021 | M14: =VLOOKUP($D15,specs!$D$5:$H$17,4)/M15*1.03*$E15+M17 -> 0.5696070275 | N14: =VLOOKUP($D15,specs!$D$5:$H$17,4)/N15*1.03*$E15+N17 -> 0.569607028 | O14: =VLOOKUP($D15,specs!$D$5:$H$17,4)/O15*1.03*$E15+O17 -> 0.569607028
C15: amplifier | D15: DBLE | E15: 1 | F15: =F18+F17*F16 -> 54.46384912 | G15: =G18+G17*G16 -> 50.89816658 | H15: 50.65124521 | I15: 50.63288147 | J15: 50.63150871 | K15: 50.63140605 | L15: 50.63139838 | M15: 50.6313978 | N15: 50.63139776 | O15: 50.63139776
C16: cable type | D16: cable | E16: 0 | F16: =VLOOKUP($D16,specs!$K$5:$L$19,2)*IF($E$1="m",$D17,($D17*0.3048))/1000 -> 0 | G16: =VLOOKUP($D16,specs!$K$5:$L$19,2)*IF($E$1="m",$D17,($D17*0.3048))/1000 -> 0 | H16: =VLOOKUP($D16,specs!$K$5:$L$19,2)*IF($E$1="m",$D17,($D17*0.3048))/1000 -> 0 | I16: =VLOOKUP($D16,specs!$K$5:$L$19,2)*IF($E$1="m",$D17,($D17*0.3048))/1000 -> 0 | J16: =VLOOKUP($D16,specs!$K$5:$L$19,2)*IF($E$1="m",$D17,($D17*0.3048))/1000 -> 0 | K16: =VLOOKUP($D16,specs!$K$5:$L$19,2)*IF($E$1="m",$D17,($D17*0.3048))/1000 -> 0 | L16: =VLOOKUP($D16,specs!$K$5:$L$19,2)*IF($E$1="m",$D17,($D17*0.3048))/1000 -> 0 | M16: =VLOOKUP($D16,specs!$K$5:$L$19,2)*IF($E$1="m",$D17,($D17*0.3048))/1000 -> 0 | N16: =VLOOKUP($D16,specs!$K$5:$L$19,2)*IF($E$1="m",$D17,($D17*0.3048))/1000 -> 0 | O16: =VLOOKUP($D16,specs!$K$5:$L$19,2)*IF($E$1="m",$D17,($D17*0.3048))/1000 -> 0
C17: span length,m | D17: 0 | E17: 0 | F17: =VLOOKUP($D18,specs!$D$5:$H$17,4)/F18*1.03*$E18+F20 -> 0 | G17: =VLOOKUP($D18,specs!$D$5:$H$17,4)/G18*1.03*$E18+G20 -> 0 | H17: =VLOOKUP($D18,specs!$D$5:$H$17,4)/H18*1.03*$E18+H20 -> 0 | I17: =VLOOKUP($D18,specs!$D$5:$H$17,4)/I18*1.03*$E18+I20 -> 0 | J17: =VLOOKUP($D18,specs!$D$5:$H$17,4)/J18*1.03*$E18+J20 -> 0 | K17: =VLOOKUP($D18,specs!$D$5:$H$17,4)/K18*1.03*$E18+K20 -> 0 | L17: =VLOOKUP($D18,specs!$D$5:$H$17,4)/L18*1.03*$E18+L20 -> 0 | M17: =VLOOKUP($D18,specs!$D$5:$H$17,4)/M18*1.03*$E18+M20 -> 0 | N17: =VLOOKUP($D18,specs!$D$5:$H$17,4)/N18*1.03*$E18+N20 -> 0 | O17: =VLOOKUP($D18,specs!$D$5:$H$17,4)/O18*1.03*$E18+O20 -> 0
C18: amplifier | D18: load | E18: 0 | F18: =F21+F20*F19 -> 54.46384912 | G18: =G21+G20*G19 -> 50.89816658 | H18: 50.65124521 | I18: 50.63288147 | J18: 50.63150871 | K18: 50.63140605 | L18: 50.63139838 | M18: 50.6313978 | N18: 50.63139776 | O18: 50.63139776
C19: cable type | D19: cable | E19: 0 | F19: =VLOOKUP($D19,specs!$K$5:$L$19,2)*IF($E$1="m",$D20,($D20*0.3048))/1000 -> 0 | G19: =VLOOKUP($D19,specs!$K$5:$L$19,2)*IF($E$1="m",$D20,($D20*0.3048))/1000 -> 0 | H19: =VLOOKUP($D19,specs!$K$5:$L$19,2)*IF($E$1="m",$D20,($D20*0.3048))/1000 -> 0 | I19: =VLOOKUP($D19,specs!$K$5:$L$19,2)*IF($E$1="m",$D20,($D20*0.3048))/1000 -> 0 | J19: =VLOOKUP($D19,specs!$K$5:$L$19,2)*IF($E$1="m",$D20,($D20*0.3048))/1000 -> 0 | K19: =VLOOKUP($D19,specs!$K$5:$L$19,2)*IF($E$1="m",$D20,($D20*0.3048))/1000 -> 0 | L19: =VLOOKUP($D19,specs!$K$5:$L$19,2)*IF($E$1="m",$D20,($D20*0.3048))/1000 -> 0 | M19: =VLOOKUP($D19,specs!$K$5:$L$19,2)*IF($E$1="m",$D20,($D20*0.3048))/1000 -> 0 | N19: =VLOOKUP($D19,specs!$K$5:$L$19,2)*IF($E$1="m",$D20,($D20*0.3048))/1000 -> 0 | O19: =VLOOKUP($D19,specs!$K$5:$L$19,2)*IF($E$1="m",$D20,($D20*0.3048))/1000 -> 0
C20: span length,m | D20: 0 | E20: 0 | F20: =VLOOKUP($D21,specs!$D$5:$H$17,4)/F21*1.03*$E21+F23 -> 0 | G20: =VLOOKUP($D21,specs!$D$5:$H$17,4)/G21*1.03*$E21+G23 -> 0 | H20: =VLOOKUP($D21,specs!$D$5:$H$17,4)/H21*1.03*$E21+H23 -> 0 | I20: =VLOOKUP($D21,specs!$D$5:$H$17,4)/I21*1.03*$E21+I23 -> 0 | J20: =VLOOKUP($D21,specs!$D$5:$H$17,4)/J21*1.03*$E21+J23 -> 0 | K20: =VLOOKUP($D21,specs!$D$5:$H$17,4)/K21*1.03*$E21+K23 -> 0 | L20: =VLOOKUP($D21,specs!$D$5:$H$17,4)/L21*1.03*$E21+L23 -> 0 | M20: =VLOOKUP($D21,specs!$D$5:$H$17,4)/M21*1.03*$E21+M23 -> 0 | N20: =VLOOKUP($D21,specs!$D$5:$H$17,4)/N21*1.03*$E21+N23 -> 0 | O20: =VLOOKUP($D21,specs!$D$5:$H$17,4)/O21*1.03*$E21+O23 -> 0
C21: amplifier | D21: load | E21: 0 | F21: =B2 -> 54.46384912 | G21: =F21-(F3-$B$2) -> 50.89816658 | H21: 50.65124521 | I21: 50.63288147 | J21: 50.63150871 | K21: 50.63140605 | L21: 50.63139838 | M21: 50.6313978 | N21: 50.63139776 | O21: 50.63139776
F22: =IF(F21<0,1,0) -> 0 | G22: =IF(G21<0,1,0) -> 0 | H22: 0 | I22: 0 | J22: 0 | K22: 0 | L22: 0 | M22: 0 | N22: 0 | O22: 0
C24: User added Branch
M27: =O21 -> 50.63139776
F34: Main Branch Net21

Sheet Net12 (hidden)
B1: =SUM(F22:O22) -> 0 | D1: =IF(O21<'AUX2'!B6,1,0)+'Net12 (2)'!D1 -> 0 | E1: =+'AUX2'!J5 -> m
B2: =+'AUX2'!M8 -> 62.07209069 | C2: U start, V | D2: =+O5*1+'Net12 (2)'!D2 -> 3.606810367 | F2: 1 | G2: 2 | H2: 3 | I2: 4 | J2: 5 | K2: 6 | L2: 7 | M2: 8 | N2: 9 | O2: iteration10
E3: mult. | F3: =F6+F5*F4 -> 63.05887653 | G3: =G6+G5*G4 -> 62.08793761 | H3: 62.07234932 | I3: 62.07209491 | J3: 62.07209076 | K3: 62.07209069 | L3: 62.07209069 | M3: 62.07209069 | N3: 62.07209069 | O3: 62.07209069
C4: cable type | D4: cable | E4: 0 | F4: =VLOOKUP($D4,specs!$K$5:$L$19,2)*IF($E$1="m",$D5,($D5*0.3048))/1000 -> 0 | G4: =VLOOKUP($D4,specs!$K$5:$L$19,2)*IF($E$1="m",$D5,($D5*0.3048))/1000 -> 0 | H4: =VLOOKUP($D4,specs!$K$5:$L$19,2)*IF($E$1="m",$D5,($D5*0.3048))/1000 -> 0 | I4: =VLOOKUP($D4,specs!$K$5:$L$19,2)*IF($E$1="m",$D5,($D5*0.3048))/1000 -> 0 | J4: =VLOOKUP($D4,specs!$K$5:$L$19,2)*IF($E$1="m",$D5,($D5*0.3048))/1000 -> 0 | K4: =VLOOKUP($D4,specs!$K$5:$L$19,2)*IF($E$1="m",$D5,($D5*0.3048))/1000 -> 0 | L4: =VLOOKUP($D4,specs!$K$5:$L$19,2)*IF($E$1="m",$D5,($D5*0.3048))/1000 -> 0 | M4: =VLOOKUP($D4,specs!$K$5:$L$19,2)*IF($E$1="m",$D5,($D5*0.3048))/1000 -> 0 | N4: =VLOOKUP($D4,specs!$K$5:$L$19,2)*IF($E$1="m",$D5,($D5*0.3048))/1000 -> 0 | O4: =VLOOKUP($D4,specs!$K$5:$L$19,2)*IF($E$1="m",$D5,($D5*0.3048))/1000 -> 0
C5: span length,m | D5: 0 | E5: 0 | F5: =VLOOKUP($D6,specs!$D$5:$H$17,4)/F6*1.03*$E6+F8 -> 3.090172569 | G5: =VLOOKUP($D6,specs!$D$5:$H$17,4)/G6*1.03*$E6+G8 -> 3.13913344 | H5: =VLOOKUP($D6,specs!$D$5:$H$17,4)/H6*1.03*$E6+H8 -> 3.139932246 | I5: =VLOOKUP($D6,specs!$D$5:$H$17,4)/I6*1.03*$E6+I8 -> 3.139945286 | J5: =VLOOKUP($D6,specs!$D$5:$H$17,4)/J6*1.03*$E6+J8 -> 3.139945499 | K5: =VLOOKUP($D6,specs!$D$5:$H$17,4)/K6*1.03*$E6+K8 -> 3.139945502 | L5: =VLOOKUP($D6,specs!$D$5:$H$17,4)/L6*1.03*$E6+L8 -> 3.139945502 | M5: =VLOOKUP($D6,specs!$D$5:$H$17,4)/M6*1.03*$E6+M8 -> 3.139945502 | N5: =VLOOKUP($D6,specs!$D$5:$H$17,4)/N6*1.03*$E6+N8 -> 3.139945502 | O5: =VLOOKUP($D6,specs!$D$5:$H$17,4)/O6*1.03*$E6+O8 -> 3.139945502
C6: amplifier | D6: TNA | E6: 1 | F6: =F9+F8*F7 -> 63.05887653 | G6: =G9+G8*G7 -> 62.08793761 | H6: 62.07234932 | I6: 62.07209491 | J6: 62.07209076 | K6: 62.07209069 | L6: 62.07209069 | M6: 62.07209069 | N6: 62.07209069 | O6: 62.07209069
C7: cable type | D7: cable | E7: 0 | F7: =VLOOKUP($D7,specs!$K$5:$L$19,2)*IF($E$1="m",$D8,($D8*0.3048))/1000 -> 0 | G7: =VLOOKUP($D7,specs!$K$5:$L$19,2)*IF($E$1="m",$D8,($D8*0.3048))/1000 -> 0 | H7: =VLOOKUP($D7,specs!$K$5:$L$19,2)*IF($E$1="m",$D8,($D8*0.3048))/1000 -> 0 | I7: =VLOOKUP($D7,specs!$K$5:$L$19,2)*IF($E$1="m",$D8,($D8*0.3048))/1000 -> 0 | J7: =VLOOKUP($D7,specs!$K$5:$L$19,2)*IF($E$1="m",$D8,($D8*0.3048))/1000 -> 0 | K7: =VLOOKUP($D7,specs!$K$5:$L$19,2)*IF($E$1="m",$D8,($D8*0.3048))/1000 -> 0 | L7: =VLOOKUP($D7,specs!$K$5:$L$19,2)*IF($E$1="m",$D8,($D8*0.3048))/1000 -> 0 | M7: =VLOOKUP($D7,specs!$K$5:$L$19,2)*IF($E$1="m",$D8,($D8*0.3048))/1000 -> 0 | N7: =VLOOKUP($D7,specs!$K$5:$L$19,2)*IF($E$1="m",$D8,($D8*0.3048))/1000 -> 0 | O7: =VLOOKUP($D7,specs!$K$5:$L$19,2)*IF($E$1="m",$D8,($D8*0.3048))/1000 -> 0
C8: span length,m | D8: 0 | E8: 0 | F8: =VLOOKUP($D9,specs!$D$5:$H$17,4)/F9*1.03*$E9+F11 -> 2.306143377 | G8: =VLOOKUP($D9,specs!$D$5:$H$17,4)/G9*1.03*$E9+G11 -> 2.342843502 | H8: =VLOOKUP($D9,specs!$D$5:$H$17,4)/H9*1.03*$E9+H11 -> 2.343442334 | I8: =VLOOKUP($D9,specs!$D$5:$H$17,4)/I9*1.03*$E9+I11 -> 2.34345211 | J8: =VLOOKUP($D9,specs!$D$5:$H$17,4)/J9*1.03*$E9+J11 -> 2.34345227 | K8: =VLOOKUP($D9,specs!$D$5:$H$17,4)/K9*1.03*$E9+K11 -> 2.343452272 | L8: =VLOOKUP($D9,specs!$D$5:$H$17,4)/L9*1.03*$E9+L11 -> 2.343452272 | M8: =VLOOKUP($D9,specs!$D$5:$H$17,4)/M9*1.03*$E9+M11 -> 2.343452272 | N8: =VLOOKUP($D9,specs!$D$5:$H$17,4)/N9*1.03*$E9+N11 -> 2.343452272 | O8: =VLOOKUP($D9,specs!$D$5:$H$17,4)/O9*1.03*$E9+O11 -> 2.343452272
C9: amplifier | D9: DBLE | E9: 1 | F9: =F12+F11*F10 -> 63.05887653 | G9: =G12+G11*G10 -> 62.08793761 | H9: 62.07234932 | I9: 62.07209491 | J9: 62.07209076 | K9: 62.07209069 | L9: 62.07209069 | M9: 62.07209069 | N9: 62.07209069 | O9: 62.07209069
C10: cable type | D10: C565 | E10: 0 | F10: =VLOOKUP($D10,specs!$K$5:$L$19,2)*IF($E$1="m",$D11,($D11*0.3048))/1000 -> 0.1704 | G10: =VLOOKUP($D10,specs!$K$5:$L$19,2)*IF($E$1="m",$D11,($D11*0.3048))/1000 -> 0.1704 | H10: =VLOOKUP($D10,specs!$K$5:$L$19,2)*IF($E$1="m",$D11,($D11*0.3048))/1000 -> 0.1704 | I10: =VLOOKUP($D10,specs!$K$5:$L$19,2)*IF($E$1="m",$D11,($D11*0.3048))/1000 -> 0.1704 | J10: =VLOOKUP($D10,specs!$K$5:$L$19,2)*IF($E$1="m",$D11,($D11*0.3048))/1000 -> 0.1704 | K10: =VLOOKUP($D10,specs!$K$5:$L$19,2)*IF($E$1="m",$D11,($D11*0.3048))/1000 -> 0.1704 | L10: =VLOOKUP($D10,specs!$K$5:$L$19,2)*IF($E$1="m",$D11,($D11*0.3048))/1000 -> 0.1704 | M10: =VLOOKUP($D10,specs!$K$5:$L$19,2)*IF($E$1="m",$D11,($D11*0.3048))/1000 -> 0.1704 | N10: =VLOOKUP($D10,specs!$K$5:$L$19,2)*IF($E$1="m",$D11,($D11*0.3048))/1000 -> 0.1704 | O10: =VLOOKUP($D10,specs!$K$5:$L$19,2)*IF($E$1="m",$D11,($D11*0.3048))/1000 -> 0.1704
C11: span length,m | D11: 40 | E11: 0 | F11: =VLOOKUP($D12,specs!$D$5:$H$17,4)/F12*1.03*$E12+F14 -> 1.848793015 | G11: =VLOOKUP($D12,specs!$D$5:$H$17,4)/G12*1.03*$E12+G14 -> 1.878341038 | H11: =VLOOKUP($D12,specs!$D$5:$H$17,4)/H12*1.03*$E12+H14 -> 1.878823219 | I11: =VLOOKUP($D12,specs!$D$5:$H$17,4)/I12*1.03*$E12+I14 -> 1.878831091 | J11: =VLOOKUP($D12,specs!$D$5:$H$17,4)/J12*1.03*$E12+J14 -> 1.878831219 | K11: =VLOOKUP($D12,specs!$D$5:$H$17,4)/K12*1.03*$E12+K14 -> 1.878831221 | L11: =VLOOKUP($D12,specs!$D$5:$H$17,4)/L12*1.03*$E12+L14 -> 1.878831222 | M11: =VLOOKUP($D12,specs!$D$5:$H$17,4)/M12*1.03*$E12+M14 -> 1.878831222 | N11: =VLOOKUP($D12,specs!$D$5:$H$17,4)/N12*1.03*$E12+N14 -> 1.878831222 | O11: =VLOOKUP($D12,specs!$D$5:$H$17,4)/O12*1.03*$E12+O14 -> 1.878831222
C12: amplifier | D12: DBLE | E12: 1 | F12: =F15+F14*F13 -> 62.7438422 | G12: =G15+G14*G13 -> 61.7678683 | H12: 61.75219784 | I12: 61.7519421 | J12: 61.75193792 | K12: 61.75193785 | L12: 61.75193785 | M12: 61.75193785 | N12: 61.75193785 | O12: 61.75193785
C13: cable type | D13: C565 | E13: 0 | F13: =VLOOKUP($D13,specs!$K$5:$L$19,2)*IF($E$1="m",$D14,($D14*0.3048))/1000 -> 0.2556 | G13: =VLOOKUP($D13,specs!$K$5:$L$19,2)*IF($E$1="m",$D14,($D14*0.3048))/1000 -> 0.2556 | H13: =VLOOKUP($D13,specs!$K$5:$L$19,2)*IF($E$1="m",$D14,($D14*0.3048))/1000 -> 0.2556 | I13: =VLOOKUP($D13,specs!$K$5:$L$19,2)*IF($E$1="m",$D14,($D14*0.3048))/1000 -> 0.2556 | J13: =VLOOKUP($D13,specs!$K$5:$L$19,2)*IF($E$1="m",$D14,($D14*0.3048))/1000 -> 0.2556 | K13: =VLOOKUP($D13,specs!$K$5:$L$19,2)*IF($E$1="m",$D14,($D14*0.3048))/1000 -> 0.2556 | L13: =VLOOKUP($D13,specs!$K$5:$L$19,2)*IF($E$1="m",$D14,($D14*0.3048))/1000 -> 0.2556 | M13: =VLOOKUP($D13,specs!$K$5:$L$19,2)*IF($E$1="m",$D14,($D14*0.3048))/1000 -> 0.2556 | N13: =VLOOKUP($D13,specs!$K$5:$L$19,2)*IF($E$1="m",$D14,($D14*0.3048))/1000 -> 0.2556 | O13: =VLOOKUP($D13,specs!$K$5:$L$19,2)*IF($E$1="m",$D14,($D14*0.3048))/1000 -> 0.2556
C14: span length,m | D14: 60 | E14: 0 | F14: =VLOOKUP($D15,specs!$D$5:$H$17,4)/F15*1.03*$E15+F17 -> 1.389146315 | G14: =VLOOKUP($D15,specs!$D$5:$H$17,4)/G15*1.03*$E15+G17 -> 1.411431611 | H14: =VLOOKUP($D15,specs!$D$5:$H$17,4)/H15*1.03*$E15+H17 -> 1.411795308 | I14: =VLOOKUP($D15,specs!$D$5:$H$17,4)/I15*1.03*$E15+I17 -> 1.411801245 | J14: =VLOOKUP($D15,specs!$D$5:$H$17,4)/J15*1.03*$E15+J17 -> 1.411801342 | K14: =VLOOKUP($D15,specs!$D$5:$H$17,4)/K15*1.03*$E15+K17 -> 1.411801344 | L14: =VLOOKUP($D15,specs!$D$5:$H$17,4)/L15*1.03*$E15+L17 -> 1.411801344 | M14: =VLOOKUP($D15,specs!$D$5:$H$17,4)/M15*1.03*$E15+M17 -> 1.411801344 | N14: =VLOOKUP($D15,specs!$D$5:$H$17,4)/N15*1.03*$E15+N17 -> 1.411801344 | O14: =VLOOKUP($D15,specs!$D$5:$H$17,4)/O15*1.03*$E15+O17 -> 1.411801344
C15: amplifier | D15: DBLE | E15: 2 | F15: =F18+F17*F16 -> 62.3887764 | G15: =G18+G17*G16 -> 61.40710638 | H15: 61.39134296 | I15: 61.3910857 | J15: 61.3910815 | K15: 61.39108143 | L15: 61.39108143 | M15: 61.39108143 | N15: 61.39108143 | O15: 61.39108143
C16: cable type | D16: C565 | E16: 0 | F16: =VLOOKUP($D16,specs!$K$5:$L$19,2)*IF($E$1="m",$D17,($D17*0.3048))/1000 -> 0.6816 | G16: =VLOOKUP($D16,specs!$K$5:$L$19,2)*IF($E$1="m",$D17,($D17*0.3048))/1000 -> 0.6816 | H16: =VLOOKUP($D16,specs!$K$5:$L$19,2)*IF($E$1="m",$D17,($D17*0.3048))/1000 -> 0.6816 | I16: =VLOOKUP($D16,specs!$K$5:$L$19,2)*IF($E$1="m",$D17,($D17*0.3048))/1000 -> 0.6816 | J16: =VLOOKUP($D16,specs!$K$5:$L$19,2)*IF($E$1="m",$D17,($D17*0.3048))/1000 -> 0.6816 | K16: =VLOOKUP($D16,specs!$K$5:$L$19,2)*IF($E$1="m",$D17,($D17*0.3048))/1000 -> 0.6816 | L16: =VLOOKUP($D16,specs!$K$5:$L$19,2)*IF($E$1="m",$D17,($D17*0.3048))/1000 -> 0.6816 | M16: =VLOOKUP($D16,specs!$K$5:$L$19,2)*IF($E$1="m",$D17,($D17*0.3048))/1000 -> 0.6816 | N16: =VLOOKUP($D16,specs!$K$5:$L$19,2)*IF($E$1="m",$D17,($D17*0.3048))/1000 -> 0.6816 | O16: =VLOOKUP($D16,specs!$K$5:$L$19,2)*IF($E$1="m",$D17,($D17*0.3048))/1000 -> 0.6816
C17: span length,m | D17: 160 | E17: 0 | F17: =VLOOKUP($D18,specs!$D$5:$H$17,4)/F18*1.03*$E18+F20 -> 0.4646210508 | G17: =VLOOKUP($D18,specs!$D$5:$H$17,4)/G18*1.03*$E18+G20 -> 0.4721266443 | H17: =VLOOKUP($D18,specs!$D$5:$H$17,4)/H18*1.03*$E18+H20 -> 0.4722491565 | I17: =VLOOKUP($D18,specs!$D$5:$H$17,4)/I18*1.03*$E18+I20 -> 0.4722511565 | J17: =VLOOKUP($D18,specs!$D$5:$H$17,4)/J18*1.03*$E18+J20 -> 0.4722511891 | K17: =VLOOKUP($D18,specs!$D$5:$H$17,4)/K18*1.03*$E18+K20 -> 0.4722511897 | L17: =VLOOKUP($D18,specs!$D$5:$H$17,4)/L18*1.03*$E18+L20 -> 0.4722511897 | M17: =VLOOKUP($D18,specs!$D$5:$H$17,4)/M18*1.03*$E18+M20 -> 0.4722511897 | N17: =VLOOKUP($D18,specs!$D$5:$H$17,4)/N18*1.03*$E18+N20 -> 0.4722511897 | O17: =VLOOKUP($D18,specs!$D$5:$H$17,4)/O18*1.03*$E18+O20 -> 0.4722511897
C18: amplifier | D18: DBLE | E18: 1 | F18: =F21+F20*F19 -> 62.07209069 | G18: =G21+G20*G19 -> 61.08530485 | H18: 61.06945794 | I18: 61.06919931 | J18: 61.06919509 | K18: 61.06919502 | L18: 61.06919502 | M18: 61.06919502 | N18: 61.06919502 | O18: 61.06919502
C19: cable type | D19: cable | E19: 0 | F19: =VLOOKUP($D19,specs!$K$5:$L$19,2)*IF($E$1="m",$D20,($D20*0.3048))/1000 -> 0 | G19: =VLOOKUP($D19,specs!$K$5:$L$19,2)*IF($E$1="m",$D20,($D20*0.3048))/1000 -> 0 | H19: =VLOOKUP($D19,specs!$K$5:$L$19,2)*IF($E$1="m",$D20,($D20*0.3048))/1000 -> 0 | I19: =VLOOKUP($D19,specs!$K$5:$L$19,2)*IF($E$1="m",$D20,($D20*0.3048))/1000 -> 0 | J19: =VLOOKUP($D19,specs!$K$5:$L$19,2)*IF($E$1="m",$D20,($D20*0.3048))/1000 -> 0 | K19: =VLOOKUP($D19,specs!$K$5:$L$19,2)*IF($E$1="m",$D20,($D20*0.3048))/1000 -> 0 | L19: =VLOOKUP($D19,specs!$K$5:$L$19,2)*IF($E$1="m",$D20,($D20*0.3048))/1000 -> 0 | M19: =VLOOKUP($D19,specs!$K$5:$L$19,2)*IF($E$1="m",$D20,($D20*0.3048))/1000 -> 0 | N19: =VLOOKUP($D19,specs!$K$5:$L$19,2)*IF($E$1="m",$D20,($D20*0.3048))/1000 -> 0 | O19: =VLOOKUP($D19,specs!$K$5:$L$19,2)*IF($E$1="m",$D20,($D20*0.3048))/1000 -> 0
C20: span length,m | D20: 0 | E20: 0 | F20: =VLOOKUP($D21,specs!$D$5:$H$17,4)/F21*1.03*$E21+F23 -> 0 | G20: =VLOOKUP($D21,specs!$D$5:$H$17,4)/G21*1.03*$E21+G23 -> 0 | H20: =VLOOKUP($D21,specs!$D$5:$H$17,4)/H21*1.03*$E21+H23 -> 0 | I20: =VLOOKUP($D21,specs!$D$5:$H$17,4)/I21*1.03*$E21+I23 -> 0 | J20: =VLOOKUP($D21,specs!$D$5:$H$17,4)/J21*1.03*$E21+J23 -> 0 | K20: =VLOOKUP($D21,specs!$D$5:$H$17,4)/K21*1.03*$E21+K23 -> 0 | L20: =VLOOKUP($D21,specs!$D$5:$H$17,4)/L21*1.03*$E21+L23 -> 0 | M20: =VLOOKUP($D21,specs!$D$5:$H$17,4)/M21*1.03*$E21+M23 -> 0 | N20: =VLOOKUP($D21,specs!$D$5:$H$17,4)/N21*1.03*$E21+N23 -> 0 | O20: =VLOOKUP($D21,specs!$D$5:$H$17,4)/O21*1.03*$E21+O23 -> 0
C21: amplifier | D21: load | E21: 0 | F21: =B2 -> 62.07209069 | G21: =F21-(F3-$B$2) -> 61.08530485 | H21: 61.06945794 | I21: 61.06919931 | J21: 61.06919509 | K21: 61.06919502 | L21: 61.06919502 | M21: 61.06919502 | N21: 61.06919502 | O21: 61.06919502
F22: =IF(F21<0,1,0) -> 0 | G22: =IF(G21<0,1,0) -> 0 | H22: 0 | I22: 0 | J22: 0 | K22: 0 | L22: 0 | M22: 0 | N22: 0 | O22: 0
C24: User added Branch
M27: =O21 -> 61.06919502
F34: Main Branch Net12

Sheet Net11 (hidden)
B1: =SUM(F22:O22) -> 0 | D1: =IF(O21<'AUX2'!B6,1,0)+'Net11 (2)'!D1 -> 0 | E1: =+'AUX2'!J5 -> m
B2: =+'AUX2'!M7 -> 61.91231613 | C2: U start, V | D2: =+O5*1+'Net11 (2)'!D2 -> 1.87529168 | F2: 1 | G2: 2 | H2: 3 | I2: 4 | J2: 5 | K2: 6 | L2: 7 | M2: 8 | N2: 9 | O2: iteration10
E3: mult. | F3: =F6+F5*F4 -> 62.71134691 | G3: =G6+G5*G4 -> 61.92274504 | H3: 61.91245405 | I3: 61.91231796 | J3: 61.91231616 | K3: 61.91231613 | L3: 61.91231613 | M3: 61.91231613 | N3: 61.91231613 | O3: =O6+O5*O4 -> 61.91231613
C4: cable type | D4: cable | E4: 0 | F4: =VLOOKUP($D4,specs!$K$5:$L$19,2)*IF($E$1="m",$D5,($D5*0.3048))/1000 -> 0 | G4: =VLOOKUP($D4,specs!$K$5:$L$19,2)*IF($E$1="m",$D5,($D5*0.3048))/1000 -> 0 | H4: =VLOOKUP($D4,specs!$K$5:$L$19,2)*IF($E$1="m",$D5,($D5*0.3048))/1000 -> 0 | I4: =VLOOKUP($D4,specs!$K$5:$L$19,2)*IF($E$1="m",$D5,($D5*0.3048))/1000 -> 0 | J4: =VLOOKUP($D4,specs!$K$5:$L$19,2)*IF($E$1="m",$D5,($D5*0.3048))/1000 -> 0 | K4: =VLOOKUP($D4,specs!$K$5:$L$19,2)*IF($E$1="m",$D5,($D5*0.3048))/1000 -> 0 | L4: =VLOOKUP($D4,specs!$K$5:$L$19,2)*IF($E$1="m",$D5,($D5*0.3048))/1000 -> 0 | M4: =VLOOKUP($D4,specs!$K$5:$L$19,2)*IF($E$1="m",$D5,($D5*0.3048))/1000 -> 0 | N4: =VLOOKUP($D4,specs!$K$5:$L$19,2)*IF($E$1="m",$D5,($D5*0.3048))/1000 -> 0 | O4: =VLOOKUP($D4,specs!$K$5:$L$19,2)*IF($E$1="m",$D5,($D5*0.3048))/1000 -> 0
C5: span length,m | D5: 0 | E5: 0 | F5: =VLOOKUP($D6,specs!$D$5:$H$17,4)/F6*1.03*$E6+F8 -> 1.39058632 | G5: =VLOOKUP($D6,specs!$D$5:$H$17,4)/G6*1.03*$E6+G8 -> 1.408586626 | H5: =VLOOKUP($D6,specs!$D$5:$H$17,4)/H6*1.03*$E6+H8 -> 1.408824631 | I5: =VLOOKUP($D6,specs!$D$5:$H$17,4)/I6*1.03*$E6+I8 -> 1.408827779 | J5: =VLOOKUP($D6,specs!$D$5:$H$17,4)/J6*1.03*$E6+J8 -> 1.408827821 | K5: =VLOOKUP($D6,specs!$D$5:$H$17,4)/K6*1.03*$E6+K8 -> 1.408827822 | L5: =VLOOKUP($D6,specs!$D$5:$H$17,4)/L6*1.03*$E6+L8 -> 1.408827822 | M5: =VLOOKUP($D6,specs!$D$5:$H$17,4)/M6*1.03*$E6+M8 -> 1.408827822 | N5: =VLOOKUP($D6,specs!$D$5:$H$17,4)/N6*1.03*$E6+N8 -> 1.408827822 | O5: =VLOOKUP($D6,specs!$D$5:$H$17,4)/O6*1.03*$E6+O8 -> 1.408827822
C6: amplifier | D6: DBLE | E6: 1 | F6: =F9+F8*F7 -> 62.71134691 | G6: =G9+G8*G7 -> 61.92274504 | H6: 61.91245405 | I6: 61.91231796 | J6: 61.91231616 | K6: 61.91231613 | L6: 61.91231613 | M6: 61.91231613 | N6: 61.91231613 | O6: =O9+O8*O7 -> 61.91231613
C7: cable type | D7: C565 | E7: 0 | F7: =VLOOKUP($D7,specs!$K$5:$L$19,2)*IF($E$1="m",$D8,($D8*0.3048))/1000 -> 0.7242 | G7: =VLOOKUP($D7,specs!$K$5:$L$19,2)*IF($E$1="m",$D8,($D8*0.3048))/1000 -> 0.7242 | H7: =VLOOKUP($D7,specs!$K$5:$L$19,2)*IF($E$1="m",$D8,($D8*0.3048))/1000 -> 0.7242 | I7: =VLOOKUP($D7,specs!$K$5:$L$19,2)*IF($E$1="m",$D8,($D8*0.3048))/1000 -> 0.7242 | J7: =VLOOKUP($D7,specs!$K$5:$L$19,2)*IF($E$1="m",$D8,($D8*0.3048))/1000 -> 0.7242 | K7: =VLOOKUP($D7,specs!$K$5:$L$19,2)*IF($E$1="m",$D8,($D8*0.3048))/1000 -> 0.7242 | L7: =VLOOKUP($D7,specs!$K$5:$L$19,2)*IF($E$1="m",$D8,($D8*0.3048))/1000 -> 0.7242 | M7: =VLOOKUP($D7,specs!$K$5:$L$19,2)*IF($E$1="m",$D8,($D8*0.3048))/1000 -> 0.7242 | N7: =VLOOKUP($D7,specs!$K$5:$L$19,2)*IF($E$1="m",$D8,($D8*0.3048))/1000 -> 0.7242 | O7: =VLOOKUP($D7,specs!$K$5:$L$19,2)*IF($E$1="m",$D8,($D8*0.3048))/1000 -> 0.7242
C8: span length,m | D8: 170 | E8: 0 | F8: =VLOOKUP($D9,specs!$D$5:$H$17,4)/F9*1.03*$E9+F11 -> 0.930701444 | G8: =VLOOKUP($D9,specs!$D$5:$H$17,4)/G9*1.03*$E9+G11 -> 0.9428449998 | H8: =VLOOKUP($D9,specs!$D$5:$H$17,4)/H9*1.03*$E9+H11 -> 0.94300559 | I8: =VLOOKUP($D9,specs!$D$5:$H$17,4)/I9*1.03*$E9+I11 -> 0.9430077141 | J8: =VLOOKUP($D9,specs!$D$5:$H$17,4)/J9*1.03*$E9+J11 -> 0.9430077422 | K8: =VLOOKUP($D9,specs!$D$5:$H$17,4)/K9*1.03*$E9+K11 -> 0.9430077425 | L8: =VLOOKUP($D9,specs!$D$5:$H$17,4)/L9*1.03*$E9+L11 -> 0.9430077425 | M8: =VLOOKUP($D9,specs!$D$5:$H$17,4)/M9*1.03*$E9+M11 -> 0.9430077425 | N8: =VLOOKUP($D9,specs!$D$5:$H$17,4)/N9*1.03*$E9+N11 -> 0.9430077425 | O8: =VLOOKUP($D9,specs!$D$5:$H$17,4)/O9*1.03*$E9+O11 -> 0.9430077425
C9: amplifier | D9: DBLE | E9: 1 | F9: =F12+F11*F10 -> 62.03733292 | G9: =G12+G11*G10 -> 61.23993669 | H9: 61.2295294 | I9: 61.22939177 | J9: 61.22938995 | K9: 61.22938992 | L9: 61.22938992 | M9: 61.22938992 | N9: 61.22938992 | O9: =O12+O11*O10 -> 61.22938992
C10: cable type | D10: C565 | E10: 0 | F10: =VLOOKUP($D10,specs!$K$5:$L$19,2)*IF($E$1="m",$D11,($D11*0.3048))/1000 -> 0.26838 | G10: =VLOOKUP($D10,specs!$K$5:$L$19,2)*IF($E$1="m",$D11,($D11*0.3048))/1000 -> 0.26838 | H10: =VLOOKUP($D10,specs!$K$5:$L$19,2)*IF($E$1="m",$D11,($D11*0.3048))/1000 -> 0.26838 | I10: =VLOOKUP($D10,specs!$K$5:$L$19,2)*IF($E$1="m",$D11,($D11*0.3048))/1000 -> 0.26838 | J10: =VLOOKUP($D10,specs!$K$5:$L$19,2)*IF($E$1="m",$D11,($D11*0.3048))/1000 -> 0.26838 | K10: =VLOOKUP($D10,specs!$K$5:$L$19,2)*IF($E$1="m",$D11,($D11*0.3048))/1000 -> 0.26838 | L10: =VLOOKUP($D10,specs!$K$5:$L$19,2)*IF($E$1="m",$D11,($D11*0.3048))/1000 -> 0.26838 | M10: =VLOOKUP($D10,specs!$K$5:$L$19,2)*IF($E$1="m",$D11,($D11*0.3048))/1000 -> 0.26838 | N10: =VLOOKUP($D10,specs!$K$5:$L$19,2)*IF($E$1="m",$D11,($D11*0.3048))/1000 -> 0.26838 | O10: =VLOOKUP($D10,specs!$K$5:$L$19,2)*IF($E$1="m",$D11,($D11*0.3048))/1000 -> 0.26838
C11: span length,m | D11: 63 | E11: 0 | F11: =VLOOKUP($D12,specs!$D$5:$H$17,4)/F12*1.03*$E12+F14 -> 0.4658200791 | G11: =VLOOKUP($D12,specs!$D$5:$H$17,4)/G12*1.03*$E12+G14 -> 0.4719104829 | H11: =VLOOKUP($D12,specs!$D$5:$H$17,4)/H12*1.03*$E12+H14 -> 0.4719910275 | I11: =VLOOKUP($D12,specs!$D$5:$H$17,4)/I12*1.03*$E12+I14 -> 0.4719920929 | J11: =VLOOKUP($D12,specs!$D$5:$H$17,4)/J12*1.03*$E12+J14 -> 0.471992107 | K11: =VLOOKUP($D12,specs!$D$5:$H$17,4)/K12*1.03*$E12+K14 -> 0.4719921072 | L11: =VLOOKUP($D12,specs!$D$5:$H$17,4)/L12*1.03*$E12+L14 -> 0.4719921072 | M11: =VLOOKUP($D12,specs!$D$5:$H$17,4)/M12*1.03*$E12+M14 -> 0.4719921072 | N11: =VLOOKUP($D12,specs!$D$5:$H$17,4)/N12*1.03*$E12+N14 -> 0.4719921072 | O11: =VLOOKUP($D12,specs!$D$5:$H$17,4)/O12*1.03*$E12+O14 -> 0.4719921072
C12: amplifier | D12: DBLE | E12: 1 | F12: =F15+F14*F13 -> 61.91231613 | G12: =G15+G14*G13 -> 61.11328535 | H12: 61.10285645 | I12: 61.10271853 | J12: 61.10271671 | K12: 61.10271668 | L12: 61.10271668 | M12: 61.10271668 | N12: 61.10271668 | O12: =O15+O14*O13 -> 61.10271668
C13: cable type | D13: cable | E13: 0 | F13: =VLOOKUP($D13,specs!$K$5:$L$19,2)*IF($E$1="m",$D14,($D14*0.3048))/1000 -> 0 | G13: =VLOOKUP($D13,specs!$K$5:$L$19,2)*IF($E$1="m",$D14,($D14*0.3048))/1000 -> 0 | H13: =VLOOKUP($D13,specs!$K$5:$L$19,2)*IF($E$1="m",$D14,($D14*0.3048))/1000 -> 0 | I13: =VLOOKUP($D13,specs!$K$5:$L$19,2)*IF($E$1="m",$D14,($D14*0.3048))/1000 -> 0 | J13: =VLOOKUP($D13,specs!$K$5:$L$19,2)*IF($E$1="m",$D14,($D14*0.3048))/1000 -> 0 | K13: =VLOOKUP($D13,specs!$K$5:$L$19,2)*IF($E$1="m",$D14,($D14*0.3048))/1000 -> 0 | L13: =VLOOKUP($D13,specs!$K$5:$L$19,2)*IF($E$1="m",$D14,($D14*0.3048))/1000 -> 0 | M13: =VLOOKUP($D13,specs!$K$5:$L$19,2)*IF($E$1="m",$D14,($D14*0.3048))/1000 -> 0 | N13: =VLOOKUP($D13,specs!$K$5:$L$19,2)*IF($E$1="m",$D14,($D14*0.3048))/1000 -> 0 | O13: =VLOOKUP($D13,specs!$K$5:$L$19,2)*IF($E$1="m",$D14,($D14*0.3048))/1000 -> 0
C14: span length,m | D14: 0 | E14: 0 | F14: =VLOOKUP($D15,specs!$D$5:$H$17,4)/F15*1.03*$E15+F17 -> 0 | G14: =VLOOKUP($D15,specs!$D$5:$H$17,4)/G15*1.03*$E15+G17 -> 0 | H14: =VLOOKUP($D15,specs!$D$5:$H$17,4)/H15*1.03*$E15+H17 -> 0 | I14: =VLOOKUP($D15,specs!$D$5:$H$17,4)/I15*1.03*$E15+I17 -> 0 | J14: =VLOOKUP($D15,specs!$D$5:$H$17,4)/J15*1.03*$E15+J17 -> 0 | K14: =VLOOKUP($D15,specs!$D$5:$H$17,4)/K15*1.03*$E15+K17 -> 0 | L14: =VLOOKUP($D15,specs!$D$5:$H$17,4)/L15*1.03*$E15+L17 -> 0 | M14: =VLOOKUP($D15,specs!$D$5:$H$17,4)/M15*1.03*$E15+M17 -> 0 | N14: =VLOOKUP($D15,specs!$D$5:$H$17,4)/N15*1.03*$E15+N17 -> 0 | O14: =VLOOKUP($D15,specs!$D$5:$H$17,4)/O15*1.03*$E15+O17 -> 0
C15: amplifier | D15: load | E15: 0 | F15: =F18+F17*F16 -> 61.91231613 | G15: =G18+G17*G16 -> 61.11328535 | H15: 61.10285645 | I15: 61.10271853 | J15: 61.10271671 | K15: 61.10271668 | L15: 61.10271668 | M15: 61.10271668 | N15: 61.10271668 | O15: =O18+O17*O16 -> 61.10271668
C16: cable type | D16: cable | E16: 0 | F16: =VLOOKUP($D16,specs!$K$5:$L$19,2)*IF($E$1="m",$D17,($D17*0.3048))/1000 -> 0 | G16: =VLOOKUP($D16,specs!$K$5:$L$19,2)*IF($E$1="m",$D17,($D17*0.3048))/1000 -> 0 | H16: =VLOOKUP($D16,specs!$K$5:$L$19,2)*IF($E$1="m",$D17,($D17*0.3048))/1000 -> 0 | I16: =VLOOKUP($D16,specs!$K$5:$L$19,2)*IF($E$1="m",$D17,($D17*0.3048))/1000 -> 0 | J16: =VLOOKUP($D16,specs!$K$5:$L$19,2)*IF($E$1="m",$D17,($D17*0.3048))/1000 -> 0 | K16: =VLOOKUP($D16,specs!$K$5:$L$19,2)*IF($E$1="m",$D17,($D17*0.3048))/1000 -> 0 | L16: =VLOOKUP($D16,specs!$K$5:$L$19,2)*IF($E$1="m",$D17,($D17*0.3048))/1000 -> 0 | M16: =VLOOKUP($D16,specs!$K$5:$L$19,2)*IF($E$1="m",$D17,($D17*0.3048))/1000 -> 0 | N16: =VLOOKUP($D16,specs!$K$5:$L$19,2)*IF($E$1="m",$D17,($D17*0.3048))/1000 -> 0 | O16: =VLOOKUP($D16,specs!$K$5:$L$19,2)*IF($E$1="m",$D17,($D17*0.3048))/1000 -> 0
C17: span length,m | D17: 0 | E17: 0 | F17: =VLOOKUP($D18,specs!$D$5:$H$17,4)/F18*1.03*$E18+F20 -> 0 | G17: =VLOOKUP($D18,specs!$D$5:$H$17,4)/G18*1.03*$E18+G20 -> 0 | H17: =VLOOKUP($D18,specs!$D$5:$H$17,4)/H18*1.03*$E18+H20 -> 0 | I17: =VLOOKUP($D18,specs!$D$5:$H$17,4)/I18*1.03*$E18+I20 -> 0 | J17: =VLOOKUP($D18,specs!$D$5:$H$17,4)/J18*1.03*$E18+J20 -> 0 | K17: =VLOOKUP($D18,specs!$D$5:$H$17,4)/K18*1.03*$E18+K20 -> 0 | L17: =VLOOKUP($D18,specs!$D$5:$H$17,4)/L18*1.03*$E18+L20 -> 0 | M17: =VLOOKUP($D18,specs!$D$5:$H$17,4)/M18*1.03*$E18+M20 -> 0 | N17: =VLOOKUP($D18,specs!$D$5:$H$17,4)/N18*1.03*$E18+N20 -> 0 | O17: =VLOOKUP($D18,specs!$D$5:$H$17,4)/O18*1.03*$E18+O20 -> 0
C18: amplifier | D18: load | E18: 0 | F18: =F21+F20*F19 -> 61.91231613 | G18: =G21+G20*G19 -> 61.11328535 | H18: 61.10285645 | I18: 61.10271853 | J18: 61.10271671 | K18: 61.10271668 | L18: 61.10271668 | M18: 61.10271668 | N18: 61.10271668 | O18: =O21+O20*O19 -> 61.10271668
C19: cable type | D19: cable | E19: 0 | F19: =VLOOKUP($D19,specs!$K$5:$L$19,2)*IF($E$1="m",$D20,($D20*0.3048))/1000 -> 0 | G19: =VLOOKUP($D19,specs!$K$5:$L$19,2)*IF($E$1="m",$D20,($D20*0.3048))/1000 -> 0 | H19: =VLOOKUP($D19,specs!$K$5:$L$19,2)*IF($E$1="m",$D20,($D20*0.3048))/1000 -> 0 | I19: =VLOOKUP($D19,specs!$K$5:$L$19,2)*IF($E$1="m",$D20,($D20*0.3048))/1000 -> 0 | J19: =VLOOKUP($D19,specs!$K$5:$L$19,2)*IF($E$1="m",$D20,($D20*0.3048))/1000 -> 0 | K19: =VLOOKUP($D19,specs!$K$5:$L$19,2)*IF($E$1="m",$D20,($D20*0.3048))/1000 -> 0 | L19: =VLOOKUP($D19,specs!$K$5:$L$19,2)*IF($E$1="m",$D20,($D20*0.3048))/1000 -> 0 | M19: =VLOOKUP($D19,specs!$K$5:$L$19,2)*IF($E$1="m",$D20,($D20*0.3048))/1000 -> 0 | N19: =VLOOKUP($D19,specs!$K$5:$L$19,2)*IF($E$1="m",$D20,($D20*0.3048))/1000 -> 0 | O19: =VLOOKUP($D19,specs!$K$5:$L$19,2)*IF($E$1="m",$D20,($D20*0.3048))/1000 -> 0
C20: span length,m | D20: 0 | E20: 0 | F20: =VLOOKUP($D21,specs!$D$5:$H$17,4)/F21*1.03*$E21+F23 -> 0 | G20: =VLOOKUP($D21,specs!$D$5:$H$17,4)/G21*1.03*$E21+G23 -> 0 | H20: =VLOOKUP($D21,specs!$D$5:$H$17,4)/H21*1.03*$E21+H23 -> 0 | I20: =VLOOKUP($D21,specs!$D$5:$H$17,4)/I21*1.03*$E21+I23 -> 0 | J20: =VLOOKUP($D21,specs!$D$5:$H$17,4)/J21*1.03*$E21+J23 -> 0 | K20: =VLOOKUP($D21,specs!$D$5:$H$17,4)/K21*1.03*$E21+K23 -> 0 | L20: =VLOOKUP($D21,specs!$D$5:$H$17,4)/L21*1.03*$E21+L23 -> 0 | M20: =VLOOKUP($D21,specs!$D$5:$H$17,4)/M21*1.03*$E21+M23 -> 0 | N20: =VLOOKUP($D21,specs!$D$5:$H$17,4)/N21*1.03*$E21+N23 -> 0 | O20: =VLOOKUP($D21,specs!$D$5:$H$17,4)/O21*1.03*$E21+O23 -> 0
C21: amplifier | D21: load | E21: 0 | F21: =B2 -> 61.91231613 | G21: =F21-(F3-$B$2) -> 61.11328535 | H21: 61.10285645 | I21: 61.10271853 | J21: 61.10271671 | K21: 61.10271668 | L21: 61.10271668 | M21: 61.10271668 | N21: 61.10271668 | O21: 61.10271668
F22: =IF(F21<0,1,0) -> 0 | G22: =IF(G21<0,1,0) -> 0 | H22: 0 | I22: 0 | J22: 0 | K22: 0 | L22: 0 | M22: 0 | N22: 0 | O22: 0
C24: User added Branch
M27: =O21 -> 61.10271668
F34: Main Branch Net11

Sheet AUX (hidden)
D2: R,Ohm | H2: Vdrop,V
B3: length,m | C3: I,A | D3: 540 | E3: 860 | F3: 750 | G3: 3x10 | H3: 540 | I3: 860 | J3: 750 | K3: 3x10 | L3: amp type | M3: Inom,A | N3: Vnom,V | O3: Pnom,W | P3: factor_i | Q3: cable | R3: loop_res | AA3: LIST
A4: 1 | D4: =B4*$R$4 -> 0 | E4: =B4*$R$5 -> 0 | F4: =B4*$R$6 -> 0 | G4: =+B4*$R$7 -> 0 | H4: =$C4*D4 -> 0 | I4: =$C4*E4 -> 0 | J4: =$C4*F4 -> 0 | K4: =$C4*G4 -> 0 | L4: HLN | M4: 1.4 | N4: 60 | O4: 84 | P4: =M4/(O4/N4) -> 1 | Q4: QR540 | R4: =S4/1000 -> 0.00528 | S4: 5.28 | T4: C500 | U4: =V4/1000 -> 0.00564 | V4: 5.64 | AA4: Net11
A5: 2 | D5: 0 | E5: 0 | F5: 0 | G5: =+B5*$R$7 -> 0 | H5: =$C5*D5 -> 0 | I5: =$C5*E5 -> 0 | J5: =$C5*F5 -> 0 | K5: =$C5*G5 -> 0 | L5: TNA | M5: 1 | N5: 60 | O5: 60 | P5: =M5/(O5/N5) -> 1 | Q5: QR860 | R5: =S5/1000 -> 0.00237 | S5: 2.37 | T5: C625 | U5: =V5/1000 -> 0.00361 | V5: 3.61 | AA5: Net12
A6: 3 | D6: 0 | E6: 0 | F6: 0 | G6: =+B6*$R$7 -> 0 | H6: 0 | I6: 0 | J6: 0 | K6: 0 | L6: LEX | M6: 0.5 | N6: 60 | O6: 36 | P6: =M6/(O6/N6) -> 0.8333333333 | Q6: C750 | R6: =S6/1000 -> 0.00249 | S6: 2.49 | AA6: Net21
A7: 4 | D7: 0 | E7: 0 | F7: 0 | G7: 0 | H7: 0 | I7: 0 | J7: 0 | K7: 0 | L7: DBLE | M7: 0.6 | N7: 60 | O7: 24 | P7: =M7/(O7/N7) -> 1.5 | Q7: 3x10 | R7: =+S7/1000 -> 0.0025 | S7: 2.5 | AA7: Net22
A8: 5 | D8: 0 | E8: 0 | F8: 0 | G8: 0 | H8: =$C8*D8 -> 0 | I8: =$C8*E8 -> 0 | J8: 0 | K8: 0 | L8: GNA | M8: 1 | N8: 60 | O8: 60 | P8: =M8/(O8/N8) -> 1 | Q8: C500 | R8: =S8/1000 -> 0.00564 | S8: 5.64 | AA8: Net31
A9: 6 | D9: 0 | E9: 0 | F9: 0 | G9: 0 | H9: =$C9*D9 -> 0 | I9: =$C9*E9 -> 0 | J9: 0 | K9: 0 | Q9: C625 | R9: 0.00361 | S9: 3.61 | AA9: Net32
A10: 7 | D10: 0 | E10: 0 | F10: 0 | G10: 0 | H10: 0 | I10: 0 | J10: 0 | K10: 0 | Q10: 2x10 | R10: 0.00366 | S10: 3.66 | AA10: Net41
A11: 8 | D11: 0 | E11: 0 | F11: 0 | G11: 0 | H11: 0 | I11: 0 | J11: 0 | K11: 0 | Q11: 2x6 | R11: 0.006 | S11: 6 | AA11: Net42
A12: 9 | D12: 0 | E12: 0 | F12: 0 | G12: 0 | H12: 0 | I12: 0 | J12: 0 | K12: 0 | Q12: 4x10 | R12: 0.00183 | S12: 1.83
A13: 10 | D13: 0 | E13: 0 | F13: 0 | G13: 0 | H13: 0 | I13: 0 | J13: 0 | K13: 0 | Q13: 4x6 | R13: 0.003 | S13: 3

Sheet specs
D3: 1 | E3: 2 | F3: 3 | G3: 4 | H3: 5 | K3: 1 | L3: 2
C4: amp type | D4: sorted | E4: Inom,A | F4: Vnom,V | G4: Pnom,W | I4: original | J4: cable | K4: sorted | L4: loop_res | O4: original
C5: load | D5: DBLE | F5: 60 | G5: 28 | H5: 1 | I5: 30 | J5: cable | K5: 2x10 | L5: 3.66 | M5: cable | N5: 1 | O5: 3.66
C6: HLN | D6: future1 | F6: 60 | G6: 0 | H6: 1 | I6: 0 | J6: QR860 | K6: 2x6 | L6: 6 | M6: QR860 | N6: 2 | O6: 6
C7: TNA | D7: future2 | F7: 60 | G7: 0 | H7: 1 | I7: 0 | J7: C750 | K7: 3x10 | L7: 2.5 | M7: C750 | N7: 3 | O7: 2.5
C8: GNA | D8: future3 | F8: 60 | G8: 0 | H8: 1 | I8: 0 | J8: QR715 | K8: 4x10 | L8: 1.83 | M8: QR715 | N8: 4 | O8: 1.83
C9: LEX | D9: future4 | F9: 60 | G9: 0 | H9: 1 | I9: 0 | J9: C625 | K9: 4x6 | L9: 3 | M9: C625 | N9: 5 | O9: 3
C10: DBLE | D10: future5 | F10: 60 | G10: 0 | H10: 1 | I10: 0 | J10: C565 | K10: C500 | L10: 5.64 | M10: C565 | N10: 6 | O10: 5.64
C11: future1 | D11: future6 | F11: 60 | G11: 0 | H11: 1 | I11: 0 | J11: QR540 | K11: C565 | L11: 4.26 | M11: QR540 | N11: 7 | O11: 4.26
C12: future2 | D12: future7 | F12: 60 | G12: 0 | H12: 1 | I12: 0 | J12: C500 | K12: C625 | L12: 3.61 | M12: C500 | N12: 8 | O12: 3.61
C13: future3 | D13: GNA | F13: 60 | G13: 48 | H13: 1 | I13: 48 | J13: QR1125 | K13: C750 | L13: 2.49 | M13: QR1125 | N13: 9 | O13: 2.49
C14: future4 | D14: HLN | F14: 60 | G14: 84 | H14: 1 | I14: 84 | J14: 3x10 | K14: cable | L14: 0 | M14: 2x10 | N14: 10 | O14: 0
C15: future5 | D15: LEX | F15: 60 | G15: 24 | H15: 1 | I15: 24 | J15: 4x10 | K15: QR1125 | L15: 1.3 | M15: 2x6 | N15: 11 | O15: 1.3
C16: future6 | D16: load | F16: 1 | G16: 0 | H16: 0 | I16: 0 | J16: 2x10 | K16: QR540 | L16: 5.28 | M16: 3x10 | N16: 12 | O16: 5.28
C17: future7 | D17: TNA | F17: 60 | G17: 48 | H17: 1 | I17: 52 | J17: 2x6 | K17: QR715 | L17: 3.27 | M17: 4x10 | N17: 13 | O17: 3.27
J18: 4x6 | K18: QR860 | L18: 1.7 | M18: 4x6 | N18: 14 | O18: 2.37
J19: type | K19: spare | L19: 0 | O19: 0
